Organisation Code,Organisation Label,Effective Date,Organisational Unit,Service Division Label,Category Internal Name,Purpose,Detailed Expenditure Code,Payment Date,Transaction Number,Irrecoverable VAT Amount,Amount,Capital Or Revenue,Beneficiary Name,Procurement Card
Http://opendatacommunities.org/id/metropolitan-district-council/leeds,Leeds City Council,30/04/2021,Adults and Health,Services For Older People Under 65 P/Dis,Agency Payments,Sheltered Accommodation,569,28/04/2021,2104-00001,0.00,5400.00,R,A & V TRANSITIONAL HOMES,No
Http://opendatacommunities.org/id/metropolitan-district-council/leeds,Leeds City Council,30/04/2021,Resources and Housing,HRA Housing Leeds,Capital ,OTHER COSTS,7,12/04/2021,2104-00002,0.00,100.00,C,REDACTED PERSONAL DATA,No
Http://opendatacommunities.org/id/metropolitan-district-council/leeds,Leeds City Council,30/04/2021,Resources and Housing,HRA Housing Leeds,Capital ,OTHER COSTS,7,15/04/2021,2104-00003,0.00,100.00,C,REDACTED PERSONAL DATA,No
Http://opendatacommunities.org/id/metropolitan-district-council/leeds,Leeds City Council,30/04/2021,Children and Families,Social Care,Agency Payments,Services Rendered By Other Organisations,511,01/04/2021,2104-00004,0.00,173.94,R,REDACTED PERSONAL DATA,No
Http://opendatacommunities.org/id/metropolitan-district-council/leeds,Leeds City Council,30/04/2021,Resources and Housing,Leeds Building Services,Supplies and Services,Other Hired And Contracted Services,265,15/04/2021,2104-00005,0.00,32145.00,R,A Buckler (Haulage) Ltd,No
Http://opendatacommunities.org/id/metropolitan-district-council/leeds,Leeds City Council,30/04/2021,City Development,Libraries Arts & Heritage,Supplies and Services,Operational Furniture And Equipment,203,23/04/2021,2104-00006,0.00,5077.09,R,A C Entertainment Technologies Ltd,No
Http://opendatacommunities.org/id/metropolitan-district-council/leeds,Leeds City Council,30/04/2021,City Development,Libraries Arts & Heritage,Supplies and Services,Operational Furniture And Equipment,203,23/04/2021,2104-00007,0.00,5235.23,R,A C Entertainment Technologies Ltd,No
Http://opendatacommunities.org/id/metropolitan-district-council/leeds,Leeds City Council,30/04/2021,City Development,Libraries Arts & Heritage,Supplies and Services,Operational Furniture And Equipment,203,23/04/2021,2104-00008,0.00,4002.44,R,A C Entertainment Technologies Ltd,No
Http://opendatacommunities.org/id/metropolitan-district-council/leeds,Leeds City Council,30/04/2021,City Development,Libraries Arts & Heritage,Supplies and Services,Operational Furniture And Equipment,203,23/04/2021,2104-00009,0.00,2863.14,R,A C Entertainment Technologies Ltd,No
Http://opendatacommunities.org/id/metropolitan-district-council/leeds,Leeds City Council,30/04/2021,City Development,Libraries Arts & Heritage,Supplies and Services,Operational Furniture And Equipment,203,23/04/2021,2104-00010,0.00,9643.68,R,A C Entertainment Technologies Ltd,No
Http://opendatacommunities.org/id/metropolitan-district-council/leeds,Leeds City Council,30/04/2021,City Development,Libraries Arts & Heritage,Supplies and Services,Operational Furniture And Equipment,203,30/04/2021,2104-00011,0.00,1410.70,R,A C Entertainment Technologies Ltd,No
Http://opendatacommunities.org/id/metropolitan-district-council/leeds,Leeds City Council,30/04/2021,City Development,Highways,Capital ,OTHER COSTS,7,30/04/2021,2104-00012,0.00,1500.00,C,A C GILPIN,No
Http://opendatacommunities.org/id/metropolitan-district-council/leeds,Leeds City Council,30/04/2021,Children and Families,Social Care,Agency Payments,Services Rendered By Other Organisations,511,01/04/2021,2104-00013,0.00,695.76,R,REDACTED PERSONAL DATA,No
Http://opendatacommunities.org/id/metropolitan-district-council/leeds,Leeds City Council,30/04/2021,Resources and Housing,Leeds Building Services,Supplies and Services,Other Hired And Contracted Services,265,01/04/2021,2104-00014,0.00,3060.00,R,A Coole Electrical Ltd,No
Http://opendatacommunities.org/id/metropolitan-district-council/leeds,Leeds City Council,30/04/2021,Resources and Housing,Leeds Building Services,Supplies and Services,Other Hired And Contracted Services,265,01/04/2021,2104-00015,0.00,2795.00,R,A Coole Electrical Ltd,No
Http://opendatacommunities.org/id/metropolitan-district-council/leeds,Leeds City Council,30/04/2021,Resources and Housing,Leeds Building Services,Supplies and Services,Other Hired And Contracted Services,265,09/04/2021,2104-00016,0.00,85.00,R,A Coole Electrical Ltd,No
Http://opendatacommunities.org/id/metropolitan-district-council/leeds,Leeds City Council,30/04/2021,Resources and Housing,Leeds Building Services,Supplies and Services,Other Hired And Contracted Services,265,09/04/2021,2104-00017,0.00,85.00,R,A Coole Electrical Ltd,No
Http://opendatacommunities.org/id/metropolitan-district-council/leeds,Leeds City Council,30/04/2021,Resources and Housing,Leeds Building Services,Supplies and Services,Other Hired And Contracted Services,265,16/04/2021,2104-00018,0.00,2303.00,R,A Coole Electrical Ltd,No
Http://opendatacommunities.org/id/metropolitan-district-council/leeds,Leeds City Council,30/04/2021,Resources and Housing,Leeds Building Services,Supplies and Services,Other Hired And Contracted Services,265,16/04/2021,2104-00019,0.00,2393.00,R,A Coole Electrical Ltd,No
Http://opendatacommunities.org/id/metropolitan-district-council/leeds,Leeds City Council,30/04/2021,Resources and Housing,Leeds Building Services,Supplies and Services,Other Hired And Contracted Services,265,16/04/2021,2104-00020,0.00,2438.00,R,A Coole Electrical Ltd,No
Http://opendatacommunities.org/id/metropolitan-district-council/leeds,Leeds City Council,30/04/2021,Resources and Housing,Leeds Building Services,Supplies and Services,Other Hired And Contracted Services,265,16/04/2021,2104-00021,0.00,2393.00,R,A Coole Electrical Ltd,No
Http://opendatacommunities.org/id/metropolitan-district-council/leeds,Leeds City Council,30/04/2021,Resources and Housing,Leeds Building Services,Supplies and Services,Other Hired And Contracted Services,265,16/04/2021,2104-00022,0.00,2348.00,R,A Coole Electrical Ltd,No
Http://opendatacommunities.org/id/metropolitan-district-council/leeds,Leeds City Council,30/04/2021,Resources and Housing,Leeds Building Services,Supplies and Services,Other Hired And Contracted Services,265,16/04/2021,2104-00023,0.00,2835.00,R,A Coole Electrical Ltd,No
Http://opendatacommunities.org/id/metropolitan-district-council/leeds,Leeds City Council,30/04/2021,Resources and Housing,Leeds Building Services,Supplies and Services,Other Hired And Contracted Services,265,16/04/2021,2104-00024,0.00,2438.00,R,A Coole Electrical Ltd,No
Http://opendatacommunities.org/id/metropolitan-district-council/leeds,Leeds City Council,30/04/2021,Resources and Housing,Leeds Building Services,Supplies and Services,Other Hired And Contracted Services,265,16/04/2021,2104-00025,0.00,2438.00,R,A Coole Electrical Ltd,No
Http://opendatacommunities.org/id/metropolitan-district-council/leeds,Leeds City Council,30/04/2021,Resources and Housing,Leeds Building Services,Supplies and Services,Other Hired And Contracted Services,265,16/04/2021,2104-00026,0.00,2785.00,R,A Coole Electrical Ltd,No
Http://opendatacommunities.org/id/metropolitan-district-council/leeds,Leeds City Council,30/04/2021,Resources and Housing,Leeds Building Services,Supplies and Services,Other Hired And Contracted Services,265,16/04/2021,2104-00027,0.00,2438.00,R,A Coole Electrical Ltd,No
Http://opendatacommunities.org/id/metropolitan-district-council/leeds,Leeds City Council,30/04/2021,Resources and Housing,Leeds Building Services,Supplies and Services,Other Hired And Contracted Services,265,16/04/2021,2104-00028,0.00,2925.00,R,A Coole Electrical Ltd,No
Http://opendatacommunities.org/id/metropolitan-district-council/leeds,Leeds City Council,30/04/2021,Communities and Environment,Communities,Supplies and Services,Other Hired And Contracted Services,265,07/04/2021,2104-00029,0.00,50.00,R,A D Dumitru,No
Http://opendatacommunities.org/id/metropolitan-district-council/leeds,Leeds City Council,30/04/2021,Communities and Environment,Customer Access,Supplies and Services,Bought In Professional Services,277,09/04/2021,2104-00030,0.00,18.00,R,A D Dumitru,No
Http://opendatacommunities.org/id/metropolitan-district-council/leeds,Leeds City Council,30/04/2021,Communities and Environment,Customer Access,Supplies and Services,Bought In Professional Services,277,09/04/2021,2104-00031,0.00,9.00,R,A D Dumitru,No
Http://opendatacommunities.org/id/metropolitan-district-council/leeds,Leeds City Council,30/04/2021,Communities and Environment,Customer Access,Supplies and Services,Bought In Professional Services,277,14/04/2021,2104-00032,0.00,9.00,R,A D Dumitru,No
Http://opendatacommunities.org/id/metropolitan-district-council/leeds,Leeds City Council,30/04/2021,Communities and Environment,Customer Access,Supplies and Services,Bought In Professional Services,277,14/04/2021,2104-00033,0.00,18.00,R,A D Dumitru,No
Http://opendatacommunities.org/id/metropolitan-district-council/leeds,Leeds City Council,30/04/2021,Communities and Environment,Customer Access,Supplies and Services,Bought In Professional Services,277,21/04/2021,2104-00034,0.00,18.00,R,A D Dumitru,No
Http://opendatacommunities.org/id/metropolitan-district-council/leeds,Leeds City Council,30/04/2021,Communities and Environment,Customer Access,Supplies and Services,Bought In Professional Services,277,21/04/2021,2104-00035,0.00,9.00,R,A D Dumitru,No
Http://opendatacommunities.org/id/metropolitan-district-council/leeds,Leeds City Council,30/04/2021,Communities and Environment,Customer Access,Supplies and Services,Bought In Professional Services,277,28/04/2021,2104-00036,0.00,18.00,R,A D Dumitru,No
Http://opendatacommunities.org/id/metropolitan-district-council/leeds,Leeds City Council,30/04/2021,Communities and Environment,Customer Access,Supplies and Services,Bought In Professional Services,277,28/04/2021,2104-00037,0.00,27.00,R,A D Dumitru,No
Http://opendatacommunities.org/id/metropolitan-district-council/leeds,Leeds City Council,30/04/2021,Communities and Environment,Customer Access,Supplies and Services,Bought In Professional Services,277,28/04/2021,2104-00038,0.00,63.00,R,A D Dumitru,No
Http://opendatacommunities.org/id/metropolitan-district-council/leeds,Leeds City Council,30/04/2021,Communities and Environment,Communities,Supplies and Services,Other Hired And Contracted Services,265,28/04/2021,2104-00039,0.00,150.00,R,A D Dumitru,No
Http://opendatacommunities.org/id/metropolitan-district-council/leeds,Leeds City Council,30/04/2021,Communities and Environment,Communities,Supplies and Services,Other Hired And Contracted Services,265,28/04/2021,2104-00040,0.00,25.00,R,A D Dumitru,No
Http://opendatacommunities.org/id/metropolitan-district-council/leeds,Leeds City Council,30/04/2021,Children and Families,Social Care,Agency Payments,Services Rendered By Voluntary Sector,505,01/04/2021,2104-00041,0.00,5705.23,R,REDACTED PERSONAL DATA,No
Http://opendatacommunities.org/id/metropolitan-district-council/leeds,Leeds City Council,30/04/2021,Children and Families,Social Care,Agency Payments,Services Rendered By Voluntary Sector,505,07/04/2021,2104-00042,0.00,627.12,R,REDACTED PERSONAL DATA,No
Http://opendatacommunities.org/id/metropolitan-district-council/leeds,Leeds City Council,30/04/2021,Children and Families,Social Care,Internal Recharges,Legal Disbursements,411,08/04/2021,2104-00043,0.00,194.40,R,A F F Ghaly,No
Http://opendatacommunities.org/id/metropolitan-district-council/leeds,Leeds City Council,30/04/2021,Children and Families,Social Care,Agency Payments,Services Rendered By Other Organisations,511,01/04/2021,2104-00044,0.00,939.28,R,REDACTED PERSONAL DATA,No
Http://opendatacommunities.org/id/metropolitan-district-council/leeds,Leeds City Council,30/04/2021,Children and Families,Social Care,Agency Payments,Services Rendered By Other Organisations,511,01/04/2021,2104-00045,0.00,173.94,R,REDACTED PERSONAL DATA,No
Http://opendatacommunities.org/id/metropolitan-district-council/leeds,Leeds City Council,30/04/2021,Children and Families,Social Care,Agency Payments,Services Rendered By Other Organisations,511,07/04/2021,2104-00046,0.00,418.08,R,REDACTED PERSONAL DATA,No
Http://opendatacommunities.org/id/metropolitan-district-council/leeds,Leeds City Council,30/04/2021,Children and Families,Social Care,Agency Payments,Services Rendered By Other Organisations,511,07/04/2021,2104-00047,0.00,316.80,R,REDACTED PERSONAL DATA,No
Http://opendatacommunities.org/id/metropolitan-district-council/leeds,Leeds City Council,30/04/2021,Resources and Housing,HRA Housing Leeds,Capital ,OTHER COSTS,7,06/04/2021,2104-00048,0.00,170.09,C,REDACTED PERSONAL DATA,No
Http://opendatacommunities.org/id/metropolitan-district-council/leeds,Leeds City Council,30/04/2021,Children and Families,Social Care,Agency Payments,Services Rendered By Other Organisations,511,01/04/2021,2104-00049,0.00,347.88,R,REDACTED PERSONAL DATA,No
Http://opendatacommunities.org/id/metropolitan-district-council/leeds,Leeds City Council,30/04/2021,Children and Families,Social Care,Agency Payments,Services Rendered By Other Organisations,511,01/04/2021,2104-00050,0.00,556.61,R,REDACTED PERSONAL DATA,No
Http://opendatacommunities.org/id/metropolitan-district-council/leeds,Leeds City Council,30/04/2021,Adults and Health,Other Generic Services,Agency Payments,Fees To Carers,563,01/04/2021,2104-00051,0.00,160.30,R,REDACTED PERSONAL DATA,No
Http://opendatacommunities.org/id/metropolitan-district-council/leeds,Leeds City Council,30/04/2021,Adults and Health,Other Generic Services,Agency Payments,Fees To Carers,563,01/04/2021,2104-00052,0.00,393.36,R,REDACTED PERSONAL DATA,No
Http://opendatacommunities.org/id/metropolitan-district-council/leeds,Leeds City Council,30/04/2021,Adults and Health,Other Generic Services,Agency Payments,Fees To Carers,563,27/04/2021,2104-00053,0.00,495.72,R,REDACTED PERSONAL DATA,No
Http://opendatacommunities.org/id/metropolitan-district-council/leeds,Leeds City Council,30/04/2021,Adults and Health,Other Generic Services,Agency Payments,Fees To Carers,563,27/04/2021,2104-00054,0.00,56.70,R,REDACTED PERSONAL DATA,No
Http://opendatacommunities.org/id/metropolitan-district-council/leeds,Leeds City Council,30/04/2021,Adults and Health,Other Generic Services,Agency Payments,Fees To Carers,563,30/04/2021,2104-00055,0.00,163.80,R,REDACTED PERSONAL DATA,No
Http://opendatacommunities.org/id/metropolitan-district-council/leeds,Leeds City Council,30/04/2021,City Development,Libraries Arts & Heritage,Supplies and Services,Other Hired And Contracted Services,265,30/04/2021,2104-00056,0.00,320.00,R,REDACTED COMMERCIAL CONFIDENTIALITY,No
Http://opendatacommunities.org/id/metropolitan-district-council/leeds,Leeds City Council,30/04/2021,Resources and Housing,Leeds Building Services,Supplies and Services,Operational Materials,205,08/04/2021,2104-00057,0.00,374.40,R,A J H  Pump Supply & Repair Ltd,No
Http://opendatacommunities.org/id/metropolitan-district-council/leeds,Leeds City Council,30/04/2021,Resources and Housing,Leeds Building Services,Supplies and Services,Operational Materials,205,08/04/2021,2104-00058,0.00,175.22,R,A J H  Pump Supply & Repair Ltd,No
Http://opendatacommunities.org/id/metropolitan-district-council/leeds,Leeds City Council,30/04/2021,Resources and Housing,Leeds Building Services,Supplies and Services,Operational Materials,205,08/04/2021,2104-00059,0.00,63.32,R,A J H  Pump Supply & Repair Ltd,No
Http://opendatacommunities.org/id/metropolitan-district-council/leeds,Leeds City Council,30/04/2021,Resources and Housing,Leeds Building Services,Supplies and Services,Operational Materials,205,08/04/2021,2104-00060,0.00,11.67,R,A J H  Pump Supply & Repair Ltd,No
Http://opendatacommunities.org/id/metropolitan-district-council/leeds,Leeds City Council,30/04/2021,Resources and Housing,Leeds Building Services,Supplies and Services,Operational Materials,205,08/04/2021,2104-00061,0.00,223.40,R,A J H  Pump Supply & Repair Ltd,No
Http://opendatacommunities.org/id/metropolitan-district-council/leeds,Leeds City Council,30/04/2021,Resources and Housing,Leeds Building Services,Supplies and Services,Operational Materials,205,08/04/2021,2104-00062,0.00,193.75,R,A J H  Pump Supply & Repair Ltd,No
Http://opendatacommunities.org/id/metropolitan-district-council/leeds,Leeds City Council,30/04/2021,Resources and Housing,Leeds Building Services,Supplies and Services,Operational Materials,205,08/04/2021,2104-00063,0.00,368.00,R,A J H  Pump Supply & Repair Ltd,No
Http://opendatacommunities.org/id/metropolitan-district-council/leeds,Leeds City Council,30/04/2021,Resources and Housing,Leeds Building Services,Supplies and Services,Operational Materials,205,08/04/2021,2104-00064,0.00,36.15,R,A J H  Pump Supply & Repair Ltd,No
Http://opendatacommunities.org/id/metropolitan-district-council/leeds,Leeds City Council,30/04/2021,Resources and Housing,Leeds Building Services,Supplies and Services,Other Hired And Contracted Services,265,08/04/2021,2104-00065,0.00,185.00,R,A J H  Pump Supply & Repair Ltd,No
Http://opendatacommunities.org/id/metropolitan-district-council/leeds,Leeds City Council,30/04/2021,Resources and Housing,Leeds Building Services,Supplies and Services,Operational Materials,205,09/04/2021,2104-00066,0.00,157.45,R,A J H  Pump Supply & Repair Ltd,No
Http://opendatacommunities.org/id/metropolitan-district-council/leeds,Leeds City Council,30/04/2021,Resources and Housing,Leeds Building Services,Supplies and Services,Operational Materials,205,09/04/2021,2104-00067,0.00,88.00,R,A J H  Pump Supply & Repair Ltd,No
Http://opendatacommunities.org/id/metropolitan-district-council/leeds,Leeds City Council,30/04/2021,Resources and Housing,Leeds Building Services,Supplies and Services,Operational Materials,205,09/04/2021,2104-00068,0.00,95.00,R,A J H  Pump Supply & Repair Ltd,No
Http://opendatacommunities.org/id/metropolitan-district-council/leeds,Leeds City Council,30/04/2021,Resources and Housing,Leeds Building Services,Supplies and Services,Operational Materials,205,09/04/2021,2104-00069,0.00,41.92,R,A J H  Pump Supply & Repair Ltd,No
Http://opendatacommunities.org/id/metropolitan-district-council/leeds,Leeds City Council,30/04/2021,Resources and Housing,Leeds Building Services,Supplies and Services,Operational Materials,205,09/04/2021,2104-00070,0.00,45.25,R,A J H  Pump Supply & Repair Ltd,No
Http://opendatacommunities.org/id/metropolitan-district-council/leeds,Leeds City Council,30/04/2021,Resources and Housing,Leeds Building Services,Supplies and Services,Operational Materials,205,09/04/2021,2104-00071,0.00,90.63,R,A J H  Pump Supply & Repair Ltd,No
Http://opendatacommunities.org/id/metropolitan-district-council/leeds,Leeds City Council,30/04/2021,Resources and Housing,Leeds Building Services,Supplies and Services,Operational Materials,205,09/04/2021,2104-00072,0.00,42.92,R,A J H  Pump Supply & Repair Ltd,No
Http://opendatacommunities.org/id/metropolitan-district-council/leeds,Leeds City Council,30/04/2021,Resources and Housing,Leeds Building Services,Supplies and Services,Operational Materials,205,09/04/2021,2104-00073,0.00,42.00,R,A J H  Pump Supply & Repair Ltd,No
Http://opendatacommunities.org/id/metropolitan-district-council/leeds,Leeds City Council,30/04/2021,Resources and Housing,Leeds Building Services,Supplies and Services,Operational Materials,205,09/04/2021,2104-00074,0.00,427.50,R,A J H  Pump Supply & Repair Ltd,No
Http://opendatacommunities.org/id/metropolitan-district-council/leeds,Leeds City Council,30/04/2021,Resources and Housing,Leeds Building Services,Supplies and Services,Operational Materials,205,09/04/2021,2104-00075,0.00,136.00,R,A J H  Pump Supply & Repair Ltd,No
Http://opendatacommunities.org/id/metropolitan-district-council/leeds,Leeds City Council,30/04/2021,Resources and Housing,Leeds Building Services,Supplies and Services,Operational Materials,205,16/04/2021,2104-00076,0.00,820.00,R,A J H  Pump Supply & Repair Ltd,No
Http://opendatacommunities.org/id/metropolitan-district-council/leeds,Leeds City Council,30/04/2021,Resources and Housing,Leeds Building Services,Supplies and Services,Operational Materials,205,20/04/2021,2104-00077,0.00,55.83,R,A J H  Pump Supply & Repair Ltd,No
Http://opendatacommunities.org/id/metropolitan-district-council/leeds,Leeds City Council,30/04/2021,Resources and Housing,Leeds Building Services,Supplies and Services,Operational Materials,205,20/04/2021,2104-00078,0.00,140.00,R,A J H  Pump Supply & Repair Ltd,No
Http://opendatacommunities.org/id/metropolitan-district-council/leeds,Leeds City Council,30/04/2021,Resources and Housing,Leeds Building Services,Supplies and Services,Operational Materials,205,20/04/2021,2104-00079,0.00,145.50,R,A J H  Pump Supply & Repair Ltd,No
Http://opendatacommunities.org/id/metropolitan-district-council/leeds,Leeds City Council,30/04/2021,Resources and Housing,Leeds Building Services,Supplies and Services,Operational Materials,205,20/04/2021,2104-00080,0.00,125.19,R,A J H  Pump Supply & Repair Ltd,No
Http://opendatacommunities.org/id/metropolitan-district-council/leeds,Leeds City Council,30/04/2021,Resources and Housing,Leeds Building Services,Supplies and Services,Operational Materials,205,20/04/2021,2104-00081,0.00,275.95,R,A J H  Pump Supply & Repair Ltd,No
Http://opendatacommunities.org/id/metropolitan-district-council/leeds,Leeds City Council,30/04/2021,Resources and Housing,Leeds Building Services,Supplies and Services,Operational Materials,205,20/04/2021,2104-00082,0.00,111.81,R,A J H  Pump Supply & Repair Ltd,No
Http://opendatacommunities.org/id/metropolitan-district-council/leeds,Leeds City Council,30/04/2021,Resources and Housing,Leeds Building Services,Supplies and Services,Operational Materials,205,20/04/2021,2104-00083,0.00,985.00,R,A J H  Pump Supply & Repair Ltd,No
Http://opendatacommunities.org/id/metropolitan-district-council/leeds,Leeds City Council,30/04/2021,Resources and Housing,Leeds Building Services,Supplies and Services,Operational Materials,205,20/04/2021,2104-00084,0.00,132.50,R,A J H  Pump Supply & Repair Ltd,No
Http://opendatacommunities.org/id/metropolitan-district-council/leeds,Leeds City Council,30/04/2021,Resources and Housing,Leeds Building Services,Supplies and Services,Operational Materials,205,20/04/2021,2104-00085,0.00,963.89,R,A J H  Pump Supply & Repair Ltd,No
Http://opendatacommunities.org/id/metropolitan-district-council/leeds,Leeds City Council,30/04/2021,Resources and Housing,Leeds Building Services,Supplies and Services,Operational Materials,205,20/04/2021,2104-00086,0.00,52.70,R,A J H  Pump Supply & Repair Ltd,No
Http://opendatacommunities.org/id/metropolitan-district-council/leeds,Leeds City Council,30/04/2021,Resources and Housing,Leeds Building Services,Supplies and Services,Operational Materials,205,20/04/2021,2104-00087,0.00,119.10,R,A J H  Pump Supply & Repair Ltd,No
Http://opendatacommunities.org/id/metropolitan-district-council/leeds,Leeds City Council,30/04/2021,Resources and Housing,Leeds Building Services,Supplies and Services,Operational Materials,205,20/04/2021,2104-00088,0.00,175.77,R,A J H  Pump Supply & Repair Ltd,No
Http://opendatacommunities.org/id/metropolitan-district-council/leeds,Leeds City Council,30/04/2021,Resources and Housing,Leeds Building Services,Supplies and Services,Operational Materials,205,20/04/2021,2104-00089,0.00,49.50,R,A J H  Pump Supply & Repair Ltd,No
Http://opendatacommunities.org/id/metropolitan-district-council/leeds,Leeds City Council,30/04/2021,Resources and Housing,Leeds Building Services,Supplies and Services,Operational Materials,205,20/04/2021,2104-00090,0.00,165.00,R,A J H  Pump Supply & Repair Ltd,No
Http://opendatacommunities.org/id/metropolitan-district-council/leeds,Leeds City Council,30/04/2021,Resources and Housing,Leeds Building Services,Supplies and Services,Operational Materials,205,20/04/2021,2104-00091,0.00,118.44,R,A J H  Pump Supply & Repair Ltd,No
Http://opendatacommunities.org/id/metropolitan-district-council/leeds,Leeds City Council,30/04/2021,Resources and Housing,Leeds Building Services,Supplies and Services,Operational Materials,205,20/04/2021,2104-00092,0.00,72.45,R,A J H  Pump Supply & Repair Ltd,No
Http://opendatacommunities.org/id/metropolitan-district-council/leeds,Leeds City Council,30/04/2021,Resources and Housing,Leeds Building Services,Supplies and Services,Operational Materials,205,20/04/2021,2104-00093,0.00,64.37,R,A J H  Pump Supply & Repair Ltd,No
Http://opendatacommunities.org/id/metropolitan-district-council/leeds,Leeds City Council,30/04/2021,Resources and Housing,Leeds Building Services,Supplies and Services,Operational Materials,205,20/04/2021,2104-00094,0.00,142.50,R,A J H  Pump Supply & Repair Ltd,No
Http://opendatacommunities.org/id/metropolitan-district-council/leeds,Leeds City Council,30/04/2021,Resources and Housing,Leeds Building Services,Supplies and Services,Operational Materials,205,20/04/2021,2104-00095,0.00,23.95,R,A J H  Pump Supply & Repair Ltd,No
Http://opendatacommunities.org/id/metropolitan-district-council/leeds,Leeds City Council,30/04/2021,Resources and Housing,Leeds Building Services,Supplies and Services,Operational Materials,205,20/04/2021,2104-00096,0.00,19.10,R,A J H  Pump Supply & Repair Ltd,No
Http://opendatacommunities.org/id/metropolitan-district-council/leeds,Leeds City Council,30/04/2021,Resources and Housing,Leeds Building Services,Supplies and Services,Operational Materials,205,20/04/2021,2104-00097,0.00,430.47,R,A J H  Pump Supply & Repair Ltd,No
Http://opendatacommunities.org/id/metropolitan-district-council/leeds,Leeds City Council,30/04/2021,Resources and Housing,Leeds Building Services,Supplies and Services,Operational Materials,205,20/04/2021,2104-00098,0.00,49.75,R,A J H  Pump Supply & Repair Ltd,No
Http://opendatacommunities.org/id/metropolitan-district-council/leeds,Leeds City Council,30/04/2021,Resources and Housing,Leeds Building Services,Supplies and Services,Operational Materials,205,21/04/2021,2104-00099,0.00,23.25,R,A J H  Pump Supply & Repair Ltd,No
Http://opendatacommunities.org/id/metropolitan-district-council/leeds,Leeds City Council,30/04/2021,Resources and Housing,Leeds Building Services,Supplies and Services,Operational Materials,205,21/04/2021,2104-00100,0.00,117.00,R,A J H  Pump Supply & Repair Ltd,No
Http://opendatacommunities.org/id/metropolitan-district-council/leeds,Leeds City Council,30/04/2021,Resources and Housing,Leeds Building Services,Supplies and Services,Operational Materials,205,21/04/2021,2104-00101,0.00,9.95,R,A J H  Pump Supply & Repair Ltd,No
Http://opendatacommunities.org/id/metropolitan-district-council/leeds,Leeds City Council,30/04/2021,Resources and Housing,Leeds Building Services,Supplies and Services,Operational Materials,205,23/04/2021,2104-00102,0.00,490.00,R,A J H  Pump Supply & Repair Ltd,No
Http://opendatacommunities.org/id/metropolitan-district-council/leeds,Leeds City Council,30/04/2021,Resources and Housing,Leeds Building Services,Supplies and Services,Other Hired And Contracted Services,265,23/04/2021,2104-00103,0.00,205.00,R,A J H  Pump Supply & Repair Ltd,No
Http://opendatacommunities.org/id/metropolitan-district-council/leeds,Leeds City Council,30/04/2021,Resources and Housing,Leeds Building Services,Supplies and Services,Operational Materials,205,27/04/2021,2104-00104,0.00,1332.26,R,A J H  Pump Supply & Repair Ltd,No
Http://opendatacommunities.org/id/metropolitan-district-council/leeds,Leeds City Council,30/04/2021,Resources and Housing,Leeds Building Services,Supplies and Services,Operational Materials,205,27/04/2021,2104-00105,0.00,295.24,R,A J H  Pump Supply & Repair Ltd,No
Http://opendatacommunities.org/id/metropolitan-district-council/leeds,Leeds City Council,30/04/2021,Resources and Housing,Leeds Building Services,Supplies and Services,Operational Materials,205,27/04/2021,2104-00106,0.00,64.80,R,A J H  Pump Supply & Repair Ltd,No
Http://opendatacommunities.org/id/metropolitan-district-council/leeds,Leeds City Council,30/04/2021,Resources and Housing,Leeds Building Services,Supplies and Services,Operational Materials,205,27/04/2021,2104-00107,0.00,474.00,R,A J H  Pump Supply & Repair Ltd,No
Http://opendatacommunities.org/id/metropolitan-district-council/leeds,Leeds City Council,30/04/2021,Resources and Housing,Leeds Building Services,Supplies and Services,Operational Materials,205,27/04/2021,2104-00108,0.00,237.00,R,A J H  Pump Supply & Repair Ltd,No
Http://opendatacommunities.org/id/metropolitan-district-council/leeds,Leeds City Council,30/04/2021,Resources and Housing,Leeds Building Services,Supplies and Services,Operational Materials,205,27/04/2021,2104-00109,0.00,152.04,R,A J H  Pump Supply & Repair Ltd,No
Http://opendatacommunities.org/id/metropolitan-district-council/leeds,Leeds City Council,30/04/2021,Resources and Housing,Leeds Building Services,Supplies and Services,Operational Materials,205,27/04/2021,2104-00110,0.00,103.80,R,A J H  Pump Supply & Repair Ltd,No
Http://opendatacommunities.org/id/metropolitan-district-council/leeds,Leeds City Council,30/04/2021,Resources and Housing,Leeds Building Services,Supplies and Services,Operational Materials,205,27/04/2021,2104-00111,0.00,28.75,R,A J H  Pump Supply & Repair Ltd,No
Http://opendatacommunities.org/id/metropolitan-district-council/leeds,Leeds City Council,30/04/2021,Resources and Housing,Leeds Building Services,Supplies and Services,Operational Materials,205,27/04/2021,2104-00112,0.00,45.50,R,A J H  Pump Supply & Repair Ltd,No
Http://opendatacommunities.org/id/metropolitan-district-council/leeds,Leeds City Council,30/04/2021,Resources and Housing,Leeds Building Services,Supplies and Services,Operational Materials,205,27/04/2021,2104-00113,0.00,353.90,R,A J H  Pump Supply & Repair Ltd,No
Http://opendatacommunities.org/id/metropolitan-district-council/leeds,Leeds City Council,30/04/2021,Resources and Housing,Leeds Building Services,Supplies and Services,Operational Materials,205,27/04/2021,2104-00114,0.00,16.28,R,A J H  Pump Supply & Repair Ltd,No
Http://opendatacommunities.org/id/metropolitan-district-council/leeds,Leeds City Council,30/04/2021,Resources and Housing,Leeds Building Services,Supplies and Services,Operational Materials,205,27/04/2021,2104-00115,0.00,534.20,R,A J H  Pump Supply & Repair Ltd,No
Http://opendatacommunities.org/id/metropolitan-district-council/leeds,Leeds City Council,30/04/2021,Resources and Housing,Leeds Building Services,Supplies and Services,Operational Materials,205,30/04/2021,2104-00116,0.00,864.00,R,A J H  Pump Supply & Repair Ltd,No
Http://opendatacommunities.org/id/metropolitan-district-council/leeds,Leeds City Council,30/04/2021,Resources and Housing,Leeds Building Services,Supplies and Services,Operational Materials,205,30/04/2021,2104-00117,0.00,179.22,R,A J H  Pump Supply & Repair Ltd,No
Http://opendatacommunities.org/id/metropolitan-district-council/leeds,Leeds City Council,30/04/2021,Resources and Housing,Leeds Building Services,Supplies and Services,Operational Materials,205,30/04/2021,2104-00118,0.00,85.00,R,A J H  Pump Supply & Repair Ltd,No
Http://opendatacommunities.org/id/metropolitan-district-council/leeds,Leeds City Council,30/04/2021,Resources and Housing,Leeds Building Services,Supplies and Services,Operational Materials,205,30/04/2021,2104-00119,0.00,49.50,R,A J H  Pump Supply & Repair Ltd,No
Http://opendatacommunities.org/id/metropolitan-district-council/leeds,Leeds City Council,30/04/2021,Resources and Housing,Leeds Building Services,Supplies and Services,Operational Materials,205,30/04/2021,2104-00120,0.00,80.54,R,A J H  Pump Supply & Repair Ltd,No
Http://opendatacommunities.org/id/metropolitan-district-council/leeds,Leeds City Council,30/04/2021,Resources and Housing,Leeds Building Services,Supplies and Services,Operational Materials,205,30/04/2021,2104-00121,0.00,46.35,R,A J H  Pump Supply & Repair Ltd,No
Http://opendatacommunities.org/id/metropolitan-district-council/leeds,Leeds City Council,30/04/2021,Resources and Housing,Leeds Building Services,Supplies and Services,Operational Materials,205,30/04/2021,2104-00122,0.00,294.30,R,A J H  Pump Supply & Repair Ltd,No
Http://opendatacommunities.org/id/metropolitan-district-council/leeds,Leeds City Council,30/04/2021,Resources and Housing,Leeds Building Services,Supplies and Services,Operational Materials,205,30/04/2021,2104-00123,0.00,31.35,R,A J H  Pump Supply & Repair Ltd,No
Http://opendatacommunities.org/id/metropolitan-district-council/leeds,Leeds City Council,30/04/2021,Resources and Housing,Leeds Building Services,Supplies and Services,Operational Materials,205,30/04/2021,2104-00124,0.00,31.35,R,A J H  Pump Supply & Repair Ltd,No
Http://opendatacommunities.org/id/metropolitan-district-council/leeds,Leeds City Council,30/04/2021,Resources and Housing,Leeds Building Services,Supplies and Services,Operational Materials,205,30/04/2021,2104-00125,0.00,59.40,R,A J H  Pump Supply & Repair Ltd,No
Http://opendatacommunities.org/id/metropolitan-district-council/leeds,Leeds City Council,30/04/2021,Resources and Housing,Leeds Building Services,Supplies and Services,Operational Materials,205,30/04/2021,2104-00126,0.00,243.20,R,A J H  Pump Supply & Repair Ltd,No
Http://opendatacommunities.org/id/metropolitan-district-council/leeds,Leeds City Council,30/04/2021,Resources and Housing,Leeds Building Services,Supplies and Services,Operational Materials,205,30/04/2021,2104-00127,0.00,72.50,R,A J H  Pump Supply & Repair Ltd,No
Http://opendatacommunities.org/id/metropolitan-district-council/leeds,Leeds City Council,30/04/2021,Resources and Housing,Leeds Building Services,Supplies and Services,Operational Materials,205,30/04/2021,2104-00128,0.00,184.85,R,A J H  Pump Supply & Repair Ltd,No
Http://opendatacommunities.org/id/metropolitan-district-council/leeds,Leeds City Council,30/04/2021,Resources and Housing,Leeds Building Services,Supplies and Services,Operational Materials,205,30/04/2021,2104-00129,0.00,1840.82,R,A J H  Pump Supply & Repair Ltd,No
Http://opendatacommunities.org/id/metropolitan-district-council/leeds,Leeds City Council,30/04/2021,Resources and Housing,HRA Housing Leeds,Capital ,OTHER COSTS,7,08/04/2021,2104-00130,0.00,80.00,C,REDACTED PERSONAL DATA,No
Http://opendatacommunities.org/id/metropolitan-district-council/leeds,Leeds City Council,30/04/2021,Children and Families,Social Care,Agency Payments,Services Rendered By Other Organisations,511,01/04/2021,2104-00131,0.00,2609.10,R,REDACTED PERSONAL DATA,No
Http://opendatacommunities.org/id/metropolitan-district-council/leeds,Leeds City Council,30/04/2021,Children and Families,Social Care,Agency Payments,Services Rendered By Other Organisations,511,07/04/2021,2104-00132,0.00,209.04,R,REDACTED PERSONAL DATA,No
Http://opendatacommunities.org/id/metropolitan-district-council/leeds,Leeds City Council,30/04/2021,Resources and Housing,HRA Housing Leeds,Capital ,OTHER COSTS,7,09/04/2021,2104-00133,0.00,100.00,C,REDACTED PERSONAL DATA,No
Http://opendatacommunities.org/id/metropolitan-district-council/leeds,Leeds City Council,30/04/2021,City Development,Economic Development,Supplies and Services,Grant Related Expenditure,290,07/04/2021,2104-00134,0.00,500.00,R,A L Stringer,No
Http://opendatacommunities.org/id/metropolitan-district-council/leeds,Leeds City Council,30/04/2021,Children and Families,Social Care,Supplies and Services,Other Hired And Contracted Services,265,30/04/2021,2104-00135,0.00,180.00,R,REDACTED PERSONAL DATA,No
Http://opendatacommunities.org/id/metropolitan-district-council/leeds,Leeds City Council,30/04/2021,Communities and Environment,Customer Access,Supplies and Services,Bought In Professional Services,277,09/04/2021,2104-00136,0.00,5.00,R,A MOHAMMED,No
Http://opendatacommunities.org/id/metropolitan-district-council/leeds,Leeds City Council,30/04/2021,Communities and Environment,Customer Access,Supplies and Services,Bought In Professional Services,277,09/04/2021,2104-00137,0.00,33.00,R,A MOHAMMED,No
Http://opendatacommunities.org/id/metropolitan-district-council/leeds,Leeds City Council,30/04/2021,Communities and Environment,Customer Access,Supplies and Services,Bought In Professional Services,277,09/04/2021,2104-00138,0.00,18.00,R,A MOHAMMED,No
Http://opendatacommunities.org/id/metropolitan-district-council/leeds,Leeds City Council,30/04/2021,Communities and Environment,Customer Access,Supplies and Services,Bought In Professional Services,277,09/04/2021,2104-00139,0.00,30.00,R,A MOHAMMED,No
Http://opendatacommunities.org/id/metropolitan-district-council/leeds,Leeds City Council,30/04/2021,Communities and Environment,Customer Access,Supplies and Services,Bought In Professional Services,277,09/04/2021,2104-00140,0.00,18.00,R,A MOHAMMED,No
Http://opendatacommunities.org/id/metropolitan-district-council/leeds,Leeds City Council,30/04/2021,Communities and Environment,Customer Access,Supplies and Services,Bought In Professional Services,277,09/04/2021,2104-00141,0.00,22.50,R,A MOHAMMED,No
Http://opendatacommunities.org/id/metropolitan-district-council/leeds,Leeds City Council,30/04/2021,Communities and Environment,Customer Access,Supplies and Services,Bought In Professional Services,277,09/04/2021,2104-00142,0.00,18.00,R,A MOHAMMED,No
Http://opendatacommunities.org/id/metropolitan-district-council/leeds,Leeds City Council,30/04/2021,Communities and Environment,Customer Access,Supplies and Services,Bought In Professional Services,277,09/04/2021,2104-00143,0.00,9.00,R,A MOHAMMED,No
Http://opendatacommunities.org/id/metropolitan-district-council/leeds,Leeds City Council,30/04/2021,Communities and Environment,Customer Access,Supplies and Services,Bought In Professional Services,277,14/04/2021,2104-00144,0.00,18.00,R,A MOHAMMED,No
Http://opendatacommunities.org/id/metropolitan-district-council/leeds,Leeds City Council,30/04/2021,Communities and Environment,Customer Access,Supplies and Services,Bought In Professional Services,277,14/04/2021,2104-00145,0.00,18.00,R,A MOHAMMED,No
Http://opendatacommunities.org/id/metropolitan-district-council/leeds,Leeds City Council,30/04/2021,Communities and Environment,Customer Access,Supplies and Services,Bought In Professional Services,277,14/04/2021,2104-00146,0.00,22.50,R,A MOHAMMED,No
Http://opendatacommunities.org/id/metropolitan-district-council/leeds,Leeds City Council,30/04/2021,Communities and Environment,Customer Access,Supplies and Services,Bought In Professional Services,277,14/04/2021,2104-00147,0.00,40.50,R,A MOHAMMED,No
Http://opendatacommunities.org/id/metropolitan-district-council/leeds,Leeds City Council,30/04/2021,Communities and Environment,Customer Access,Supplies and Services,Bought In Professional Services,277,14/04/2021,2104-00148,0.00,27.00,R,A MOHAMMED,No
Http://opendatacommunities.org/id/metropolitan-district-council/leeds,Leeds City Council,30/04/2021,Communities and Environment,Customer Access,Supplies and Services,Bought In Professional Services,277,21/04/2021,2104-00149,0.00,18.00,R,A MOHAMMED,No
Http://opendatacommunities.org/id/metropolitan-district-council/leeds,Leeds City Council,30/04/2021,Communities and Environment,Customer Access,Supplies and Services,Bought In Professional Services,277,21/04/2021,2104-00150,0.00,18.00,R,A MOHAMMED,No
Http://opendatacommunities.org/id/metropolitan-district-council/leeds,Leeds City Council,30/04/2021,Communities and Environment,Customer Access,Supplies and Services,Bought In Professional Services,277,21/04/2021,2104-00151,0.00,18.00,R,A MOHAMMED,No
Http://opendatacommunities.org/id/metropolitan-district-council/leeds,Leeds City Council,30/04/2021,Communities and Environment,Customer Access,Supplies and Services,Bought In Professional Services,277,21/04/2021,2104-00152,0.00,33.00,R,A MOHAMMED,No
Http://opendatacommunities.org/id/metropolitan-district-council/leeds,Leeds City Council,30/04/2021,Communities and Environment,Customer Access,Supplies and Services,Bought In Professional Services,277,21/04/2021,2104-00153,0.00,27.00,R,A MOHAMMED,No
Http://opendatacommunities.org/id/metropolitan-district-council/leeds,Leeds City Council,30/04/2021,Communities and Environment,Customer Access,Supplies and Services,Bought In Professional Services,277,28/04/2021,2104-00154,0.00,18.00,R,A MOHAMMED,No
Http://opendatacommunities.org/id/metropolitan-district-council/leeds,Leeds City Council,30/04/2021,Communities and Environment,Customer Access,Supplies and Services,Bought In Professional Services,277,28/04/2021,2104-00155,0.00,18.00,R,A MOHAMMED,No
Http://opendatacommunities.org/id/metropolitan-district-council/leeds,Leeds City Council,30/04/2021,Communities and Environment,Customer Access,Supplies and Services,Bought In Professional Services,277,28/04/2021,2104-00156,0.00,9.00,R,A MOHAMMED,No
Http://opendatacommunities.org/id/metropolitan-district-council/leeds,Leeds City Council,30/04/2021,Communities and Environment,Customer Access,Supplies and Services,Bought In Professional Services,277,28/04/2021,2104-00157,0.00,36.00,R,A MOHAMMED,No
Http://opendatacommunities.org/id/metropolitan-district-council/leeds,Leeds City Council,30/04/2021,Communities and Environment,Customer Access,Supplies and Services,Bought In Professional Services,277,28/04/2021,2104-00158,0.00,13.50,R,A MOHAMMED,No
Http://opendatacommunities.org/id/metropolitan-district-council/leeds,Leeds City Council,30/04/2021,Communities and Environment,Customer Access,Supplies and Services,Bought In Professional Services,277,28/04/2021,2104-00159,0.00,18.00,R,A MOHAMMED,No
Http://opendatacommunities.org/id/metropolitan-district-council/leeds,Leeds City Council,30/04/2021,Communities and Environment,Customer Access,Supplies and Services,Bought In Professional Services,277,28/04/2021,2104-00160,0.00,36.00,R,A MOHAMMED,No
Http://opendatacommunities.org/id/metropolitan-district-council/leeds,Leeds City Council,30/04/2021,Children and Families,Social Care,Agency Payments,Services Rendered By Other Organisations,511,01/04/2021,2104-00161,0.00,1913.34,R,REDACTED PERSONAL DATA,No
Http://opendatacommunities.org/id/metropolitan-district-council/leeds,Leeds City Council,30/04/2021,Children and Families,Social Care,Agency Payments,Services Rendered By Other Organisations,511,07/04/2021,2104-00162,0.00,1254.24,R,REDACTED PERSONAL DATA,No
Http://opendatacommunities.org/id/metropolitan-district-council/leeds,Leeds City Council,30/04/2021,Communities and Environment,Customer Access,Supplies and Services,Bought In Professional Services,277,09/04/2021,2104-00163,0.00,18.00,R,A NAMAKI,No
Http://opendatacommunities.org/id/metropolitan-district-council/leeds,Leeds City Council,30/04/2021,Communities and Environment,Customer Access,Supplies and Services,Bought In Professional Services,277,09/04/2021,2104-00164,0.00,19.50,R,A NAMAKI,No
Http://opendatacommunities.org/id/metropolitan-district-council/leeds,Leeds City Council,30/04/2021,Communities and Environment,Customer Access,Supplies and Services,Bought In Professional Services,277,09/04/2021,2104-00165,0.00,18.00,R,A NAMAKI,No
Http://opendatacommunities.org/id/metropolitan-district-council/leeds,Leeds City Council,30/04/2021,Children and Families,Social Care,Agency Payments,Services Rendered By Other Organisations,511,01/04/2021,2104-00166,0.00,173.94,R,REDACTED PERSONAL DATA,No
Http://opendatacommunities.org/id/metropolitan-district-council/leeds,Leeds City Council,30/04/2021,City Development,Libraries Arts & Heritage,Supplies and Services,Other Hired And Contracted Services,265,09/04/2021,2104-00167,0.00,400.00,R,A R E Lapwood,No
Http://opendatacommunities.org/id/metropolitan-district-council/leeds,Leeds City Council,30/04/2021,Resources and Housing,HRA Housing Leeds,Capital ,OTHER COSTS,7,13/04/2021,2104-00168,0.00,100.00,C,REDACTED PERSONAL DATA,No
Http://opendatacommunities.org/id/metropolitan-district-council/leeds,Leeds City Council,30/04/2021,City Development,Culture and Sport,Capital ,OTHER COSTS,7,07/04/2021,2104-00169,0.00,1875.00,C,A Sense of Hew Ma,No
Http://opendatacommunities.org/id/metropolitan-district-council/leeds,Leeds City Council,30/04/2021,City Development,Culture and Sport,Capital ,OTHER COSTS,7,26/04/2021,2104-00170,0.00,1875.00,C,A Sense of Hew Ma,No
Http://opendatacommunities.org/id/metropolitan-district-council/leeds,Leeds City Council,30/04/2021,City Development,Culture and Sport,Capital ,OTHER COSTS,7,26/04/2021,2104-00171,0.00,0.00,C,A Sense of Hew Ma,No
Http://opendatacommunities.org/id/metropolitan-district-council/leeds,Leeds City Council,30/04/2021,Children and Families,Social Care,Agency Payments,Services Rendered By Other Organisations,511,01/04/2021,2104-00172,0.00,521.82,R,REDACTED PERSONAL DATA,No
Http://opendatacommunities.org/id/metropolitan-district-council/leeds,Leeds City Council,30/04/2021,City Development,Highways,Supplies and Services,Operational Materials,205,26/02/2021,2104-00173,0.00,2489.92,R,A T Plant Services Ltd,Yes
Http://opendatacommunities.org/id/metropolitan-district-council/leeds,Leeds City Council,30/04/2021,City Development,Economic Development,Supplies and Services,Grant Related Expenditure,290,28/04/2021,2104-00174,0.00,500.00,R,REDACTED PERSONAL DATA,No
Http://opendatacommunities.org/id/metropolitan-district-council/leeds,Leeds City Council,30/04/2021,Children and Families,Social Care,Agency Payments,Independent Fostering Agencies,509,09/04/2021,2104-00175,0.00,1080.00,R,A Taxis,No
Http://opendatacommunities.org/id/metropolitan-district-council/leeds,Leeds City Council,30/04/2021,Resources and Housing,HRA Housing Leeds,Capital ,OTHER COSTS,7,06/04/2021,2104-00176,0.00,170.09,C,REDACTED PERSONAL DATA,No
Http://opendatacommunities.org/id/metropolitan-district-council/leeds,Leeds City Council,30/04/2021,Resources and Housing,HRA Housing Leeds,Capital ,OTHER COSTS,7,01/04/2021,2104-00177,0.00,100.00,C,REDACTED PERSONAL DATA,No
Http://opendatacommunities.org/id/metropolitan-district-council/leeds,Leeds City Council,30/04/2021,Children and Families,Social Care,Agency Payments,Services Rendered By Other Organisations,511,07/04/2021,2104-00178,0.00,209.04,R,REDACTED PERSONAL DATA,No
Http://opendatacommunities.org/id/metropolitan-district-council/leeds,Leeds City Council,30/04/2021,Resources and Housing,HRA Housing Leeds,Capital ,OTHER COSTS,7,09/04/2021,2104-00179,0.00,80.00,C,REDACTED PERSONAL DATA,No
Http://opendatacommunities.org/id/metropolitan-district-council/leeds,Leeds City Council,30/04/2021,Children and Families,Social Care,Agency Payments,Services Rendered By Other Organisations,511,01/04/2021,2104-00180,0.00,347.88,R,REDACTED PERSONAL DATA,No
Http://opendatacommunities.org/id/metropolitan-district-council/leeds,Leeds City Council,30/04/2021,Children and Families,Social Care,Agency Payments,General External Residential Placements,507,01/04/2021,2104-00181,0.00,339.40,R,A Wilderness Way Ltd,No
Http://opendatacommunities.org/id/metropolitan-district-council/leeds,Leeds City Council,30/04/2021,Children and Families,Social Care,Agency Payments,General External Residential Placements,507,01/04/2021,2104-00182,0.00,33595.01,R,A Wilderness Way Ltd,No
Http://opendatacommunities.org/id/metropolitan-district-council/leeds,Leeds City Council,30/04/2021,Children and Families,Social Care,Agency Payments,General External Residential Placements,507,01/04/2021,2104-00183,0.00,30114.33,R,A Wilderness Way Ltd,No
Http://opendatacommunities.org/id/metropolitan-district-council/leeds,Leeds City Council,30/04/2021,Children and Families,Social Care,Agency Payments,General External Residential Placements,507,01/04/2021,2104-00184,0.00,46500.00,R,A Wilderness Way Ltd,No
Http://opendatacommunities.org/id/metropolitan-district-council/leeds,Leeds City Council,30/04/2021,Children and Families,Social Care,Agency Payments,General External Residential Placements,507,01/04/2021,2104-00185,0.00,3220.00,R,A Wilderness Way Ltd,No
Http://opendatacommunities.org/id/metropolitan-district-council/leeds,Leeds City Council,30/04/2021,Children and Families,Social Care,Agency Payments,General External Residential Placements,507,01/04/2021,2104-00186,0.00,14385.98,R,A Wilderness Way Ltd,No
Http://opendatacommunities.org/id/metropolitan-district-council/leeds,Leeds City Council,30/04/2021,Children and Families,Social Care,Agency Payments,General External Residential Placements,507,01/04/2021,2104-00187,0.00,-67190.02,R,A Wilderness Way Ltd,No
Http://opendatacommunities.org/id/metropolitan-district-council/leeds,Leeds City Council,30/04/2021,Children and Families,Social Care,Agency Payments,General External Residential Placements,507,09/04/2021,2104-00188,0.00,11920.81,R,A Wilderness Way Ltd,No
Http://opendatacommunities.org/id/metropolitan-district-council/leeds,Leeds City Council,30/04/2021,City Development,Economic Development,Supplies and Services,Grant Related Expenditure,290,23/04/2021,2104-00189,0.00,2184.00,R,A&C Design Shop Fitting And Maintenance,No
Http://opendatacommunities.org/id/metropolitan-district-council/leeds,Leeds City Council,30/04/2021,Resources and Housing,Leeds Building Services,Supplies and Services,Other Hired And Contracted Services,265,22/04/2021,2104-00190,0.00,9950.00,R,A1 STAIR LIFT SERVICES,No
Http://opendatacommunities.org/id/metropolitan-district-council/leeds,Leeds City Council,30/04/2021,Resources and Housing,Leeds Building Services,Supplies and Services,Other Hired And Contracted Services,265,28/04/2021,2104-00191,0.00,1160.00,R,A1 STAIR LIFT SERVICES,No
Http://opendatacommunities.org/id/metropolitan-district-council/leeds,Leeds City Council,30/04/2021,Communities and Environment,Customer Access,Supplies and Services,Bought In Professional Services,277,13/04/2021,2104-00192,0.00,445.00,R,AA Global Language Services Ltd,No
Http://opendatacommunities.org/id/metropolitan-district-council/leeds,Leeds City Council,30/04/2021,Communities and Environment,Customer Access,Supplies and Services,Bought In Professional Services,277,28/04/2021,2104-00193,0.00,235.00,R,AA Global Language Services Ltd,No
Http://opendatacommunities.org/id/metropolitan-district-council/leeds,Leeds City Council,30/04/2021,Communities and Environment,Customer Access,Supplies and Services,Bought In Professional Services,277,28/04/2021,2104-00194,0.00,220.00,R,AA Global Language Services Ltd,No
Http://opendatacommunities.org/id/metropolitan-district-council/leeds,Leeds City Council,30/04/2021,Communities and Environment,Parks and Countryside,Supplies and Services,Resaleable Materials,204,26/02/2021,2104-00195,0.00,132.60,R,Aagrah Foods,Yes
Http://opendatacommunities.org/id/metropolitan-district-council/leeds,Leeds City Council,30/04/2021,Children and Families,Social Care,Supplies and Services,Operational Furniture And Equipment,203,05/03/2021,2104-00196,0.00,445.72,R,Aardvark Archery,Yes
Http://opendatacommunities.org/id/metropolitan-district-council/leeds,Leeds City Council,30/04/2021,Adults and Health,Services For Older People - 65 And Over,Agency Payments,Residential Care Dementia,571,28/04/2021,2104-00197,0.00,1245.20,R,Aaron Court Care Home,No
Http://opendatacommunities.org/id/metropolitan-district-council/leeds,Leeds City Council,30/04/2021,Children and Families,Social Care,Agency Payments,Section 17,551,01/04/2021,2104-00198,0.00,30.00,R,REDACTED PERSONAL DATA,No
Http://opendatacommunities.org/id/metropolitan-district-council/leeds,Leeds City Council,30/04/2021,Children and Families,Social Care,Agency Payments,Section 17,551,16/04/2021,2104-00199,0.00,16.50,R,REDACTED PERSONAL DATA,No
Http://opendatacommunities.org/id/metropolitan-district-council/leeds,Leeds City Council,30/04/2021,Children and Families,Social Care,Agency Payments,Section 17,551,20/04/2021,2104-00200,0.00,50.00,R,REDACTED PERSONAL DATA,No
Http://opendatacommunities.org/id/metropolitan-district-council/leeds,Leeds City Council,30/04/2021,Children and Families,Social Care,Agency Payments,Section 17,551,30/04/2021,2104-00201,0.00,10.40,R,REDACTED PERSONAL DATA,No
Http://opendatacommunities.org/id/metropolitan-district-council/leeds,Leeds City Council as Accountable Body,30/04/2021,Social Services Pooled Budgets,Leeds Community Equip Store Pooled Budgt,Supplies and Services,Other Equipment,203,01/04/2021,2104-00202,0.00,249.00,R,AAT (GB) LTD,No
Http://opendatacommunities.org/id/metropolitan-district-council/leeds,Leeds City Council as Accountable Body,30/04/2021,Social Services Pooled Budgets,Leeds Community Equip Store Pooled Budgt,Supplies and Services,Other Equipment,203,06/04/2021,2104-00203,0.00,2162.00,R,AAT (GB) LTD,No
Http://opendatacommunities.org/id/metropolitan-district-council/leeds,Leeds City Council,30/04/2021,Communities and Environment,Customer Access,Supplies and Services,Bought In Professional Services,277,14/04/2021,2104-00204,0.00,18.00,R,Abadit Kiros,No
Http://opendatacommunities.org/id/metropolitan-district-council/leeds,Leeds City Council,30/04/2021,Communities and Environment,Customer Access,Supplies and Services,Bought In Professional Services,277,21/04/2021,2104-00205,0.00,31.50,R,Abadit Kiros,No
Http://opendatacommunities.org/id/metropolitan-district-council/leeds,Leeds City Council,30/04/2021,Communities and Environment,Customer Access,Supplies and Services,Bought In Professional Services,277,21/04/2021,2104-00206,0.00,18.00,R,Abadit Kiros,No
Http://opendatacommunities.org/id/metropolitan-district-council/leeds,Leeds City Council,30/04/2021,Communities and Environment,Customer Access,Supplies and Services,Bought In Professional Services,277,21/04/2021,2104-00207,0.00,24.00,R,Abadit Kiros,No
Http://opendatacommunities.org/id/metropolitan-district-council/leeds,Leeds City Council,30/04/2021,Communities and Environment,Customer Access,Supplies and Services,Bought In Professional Services,277,21/04/2021,2104-00208,0.00,18.00,R,Abadit Kiros,No
Http://opendatacommunities.org/id/metropolitan-district-council/leeds,Leeds City Council,30/04/2021,Communities and Environment,Benefits Welfare and Poverty,Supplies and Services,Schools related grant expenditure,299,14/04/2021,2104-00209,0.00,10920.00,R,Abbey Multi Academy Trust,No
Http://opendatacommunities.org/id/metropolitan-district-council/leeds,Leeds City Council,30/04/2021,Communities and Environment,Benefits Welfare and Poverty,Supplies and Services,Schools related grant expenditure,299,14/04/2021,2104-00210,0.00,510.00,R,Abbey Multi Academy Trust,No
Http://opendatacommunities.org/id/metropolitan-district-council/leeds,Leeds City Council,30/04/2021,Communities and Environment,Benefits Welfare and Poverty,Supplies and Services,Schools related grant expenditure,299,14/04/2021,2104-00211,0.00,1470.00,R,Abbey Multi Academy Trust,No
Http://opendatacommunities.org/id/metropolitan-district-council/leeds,Leeds City Council,30/04/2021,Communities and Environment,Benefits Welfare and Poverty,Supplies and Services,Schools related grant expenditure,299,14/04/2021,2104-00212,0.00,7380.00,R,Abbey Multi Academy Trust,No
Http://opendatacommunities.org/id/metropolitan-district-council/leeds,Leeds City Council,30/04/2021,Communities and Environment,Benefits Welfare and Poverty,Supplies and Services,Schools related grant expenditure,299,14/04/2021,2104-00213,0.00,2580.00,R,Abbey Multi Academy Trust,No
Http://opendatacommunities.org/id/metropolitan-district-council/leeds,Leeds City Council,30/04/2021,City Development,Economic Development,Supplies and Services,Grant Related Expenditure,290,07/04/2021,2104-00214,0.00,10000.00,R,Abbey Tappas Ltd,No
Http://opendatacommunities.org/id/metropolitan-district-council/leeds,Leeds City Council,30/04/2021,Insurance,Insurance,Supplies and Services,Insurance Claims,248,14/04/2021,2104-00215,0.00,60.00,R,REDACTED PERSONAL DATA,No
Http://opendatacommunities.org/id/metropolitan-district-council/leeds,Leeds City Council,30/04/2021,Children and Families,Social Care,Agency Payments,Services Rendered By Other Organisations,511,07/04/2021,2104-00216,0.00,334.46,R,REDACTED PERSONAL DATA,No
Http://opendatacommunities.org/id/metropolitan-district-council/leeds,Leeds City Council,30/04/2021,Communities and Environment,Parks and Countryside,Supplies and Services,Other Hired And Contracted Services,265,23/04/2021,2104-00217,0.00,550.00,R,Abbotts Memorials,No
Http://opendatacommunities.org/id/metropolitan-district-council/leeds,Leeds City Council,30/04/2021,Communities and Environment,Parks and Countryside,Supplies and Services,Other Hired And Contracted Services,265,23/04/2021,2104-00218,0.00,550.00,R,Abbotts Memorials,No
Http://opendatacommunities.org/id/metropolitan-district-council/leeds,Leeds City Council,30/04/2021,Communities and Environment,Parks and Countryside,Supplies and Services,Other Hired And Contracted Services,265,30/04/2021,2104-00219,0.00,800.00,R,Abbotts Memorials,No
Http://opendatacommunities.org/id/metropolitan-district-council/leeds,Leeds City Council,30/04/2021,Children and Families,Social Care,Agency Payments,Services Rendered By Other Organisations,511,01/04/2021,2104-00220,0.00,4926.12,R,Abc Daycare And Ozone Out Of School,No
Http://opendatacommunities.org/id/metropolitan-district-council/leeds,Leeds City Council,30/04/2021,Children and Families,Social Care,Agency Payments,Services Rendered By Other Organisations,511,07/04/2021,2104-00221,0.00,2299.44,R,Abc Daycare And Ozone Out Of School,No
Http://opendatacommunities.org/id/metropolitan-district-council/leeds,Leeds City Council,30/04/2021,Communities and Environment,Environmental Health,Supplies and Services,Other Hired And Contracted Services,265,29/04/2021,2104-00222,0.00,1950.00,R,Abc Food Law Limited,No
Http://opendatacommunities.org/id/metropolitan-district-council/leeds,Leeds City Council,30/04/2021,Children and Families,Social Care,Agency Payments,Services Rendered By Other Organisations,511,01/04/2021,2104-00223,0.00,6957.60,R,ABC NURSERY AT LUFC,No
Http://opendatacommunities.org/id/metropolitan-district-council/leeds,Leeds City Council,30/04/2021,Children and Families,Social Care,Agency Payments,Services Rendered By Other Organisations,511,07/04/2021,2104-00224,0.00,3473.28,R,ABC NURSERY AT LUFC,No
Http://opendatacommunities.org/id/metropolitan-district-council/leeds,Leeds City Council,30/04/2021,Children and Families,Social Care,Agency Payments,Services Rendered By Other Organisations,511,01/04/2021,2104-00225,0.00,6261.84,R,Abc@D'S Childcare,No
Http://opendatacommunities.org/id/metropolitan-district-council/leeds,Leeds City Council,30/04/2021,Children and Families,Social Care,Agency Payments,Services Rendered By Other Organisations,511,07/04/2021,2104-00226,0.00,1672.32,R,Abc@D'S Childcare,No
Http://opendatacommunities.org/id/metropolitan-district-council/leeds,Leeds City Council,30/04/2021,City Development,Economic Development,Supplies and Services,Grant Related Expenditure,290,26/04/2021,2104-00227,0.00,500.00,R,ABCD Services Ltd,No
Http://opendatacommunities.org/id/metropolitan-district-council/leeds,Leeds City Council,30/04/2021,Resources and Housing,Sustainable Energy & Climate Change,Capital ,OTHER COSTS,7,26/04/2021,2104-00228,0.00,2100.00,C,REDACTED COMMERCIAL CONFIDENTIALITY,No
Http://opendatacommunities.org/id/metropolitan-district-council/leeds,Leeds City Council,30/04/2021,Communities and Environment,Customer Access,Supplies and Services,Bought In Professional Services,277,14/04/2021,2104-00229,0.00,9.00,R,Abdulahad Denha,No
Http://opendatacommunities.org/id/metropolitan-district-council/leeds,Leeds City Council,30/04/2021,Communities and Environment,Customer Access,Supplies and Services,Bought In Professional Services,277,14/04/2021,2104-00230,0.00,18.00,R,Abdulahad Denha,No
Http://opendatacommunities.org/id/metropolitan-district-council/leeds,Leeds City Council,30/04/2021,Communities and Environment,Customer Access,Supplies and Services,Bought In Professional Services,277,21/04/2021,2104-00231,0.00,27.00,R,Abdulahad Denha,No
Http://opendatacommunities.org/id/metropolitan-district-council/leeds,Leeds City Council,30/04/2021,Communities and Environment,Customer Access,Supplies and Services,Bought In Professional Services,277,28/04/2021,2104-00232,0.00,36.00,R,Abdulahad Denha,No
Http://opendatacommunities.org/id/metropolitan-district-council/leeds,Leeds City Council,30/04/2021,Resources and Housing,HRA Housing Leeds,Capital ,OTHER COSTS,7,29/04/2021,2104-00233,0.00,100.00,C,REDACTED PERSONAL DATA,No
Http://opendatacommunities.org/id/metropolitan-district-council/leeds,Leeds City Council,30/04/2021,Communities and Environment,Customer Access,Supplies and Services,Bought In Professional Services,277,09/04/2021,2104-00234,0.00,31.50,R,Abdulrahim Dastyar,No
Http://opendatacommunities.org/id/metropolitan-district-council/leeds,Leeds City Council,30/04/2021,Communities and Environment,Customer Access,Supplies and Services,Bought In Professional Services,277,09/04/2021,2104-00235,0.00,27.00,R,Abdulrahim Dastyar,No
Http://opendatacommunities.org/id/metropolitan-district-council/leeds,Leeds City Council,30/04/2021,Communities and Environment,Customer Access,Supplies and Services,Bought In Professional Services,277,09/04/2021,2104-00236,0.00,18.00,R,Abdulrahim Dastyar,No
Http://opendatacommunities.org/id/metropolitan-district-council/leeds,Leeds City Council,30/04/2021,Communities and Environment,Customer Access,Supplies and Services,Bought In Professional Services,277,09/04/2021,2104-00237,0.00,36.00,R,Abdulrahim Dastyar,No
Http://opendatacommunities.org/id/metropolitan-district-council/leeds,Leeds City Council,30/04/2021,Communities and Environment,Customer Access,Supplies and Services,Bought In Professional Services,277,09/04/2021,2104-00238,0.00,18.00,R,Abdulrahim Dastyar,No
Http://opendatacommunities.org/id/metropolitan-district-council/leeds,Leeds City Council,30/04/2021,Communities and Environment,Customer Access,Supplies and Services,Bought In Professional Services,277,14/04/2021,2104-00239,0.00,18.00,R,Abdulrahim Dastyar,No
Http://opendatacommunities.org/id/metropolitan-district-council/leeds,Leeds City Council,30/04/2021,Communities and Environment,Customer Access,Supplies and Services,Bought In Professional Services,277,21/04/2021,2104-00240,0.00,13.50,R,Abdulrahim Dastyar,No
Http://opendatacommunities.org/id/metropolitan-district-council/leeds,Leeds City Council,30/04/2021,Children and Families,Social Care,Appropriations,Leaving Care Allowances,634,15/04/2021,2104-00241,0.00,50.00,R,REDACTED PERSONAL DATA,No
Http://opendatacommunities.org/id/metropolitan-district-council/leeds,Leeds City Council,30/04/2021,Resources and Housing,Strategy and Improvement,Supplies and Services,Publication And Promotion,267,08/04/2021,2104-00242,0.00,6950.00,R,Aberfield Communications Limited,No
Http://opendatacommunities.org/id/metropolitan-district-council/leeds,Leeds City Council,30/04/2021,Resources and Housing,Strategy and Improvement,Supplies and Services,Publication And Promotion,267,08/04/2021,2104-00243,0.00,3166.70,R,Aberfield Communications Limited,No
Http://opendatacommunities.org/id/metropolitan-district-council/leeds,Leeds City Council,30/04/2021,Strategic Accounts,Strategic,Supplies and Services,Non-Recurring Grants,227,01/04/2021,2104-00244,0.00,357.00,R,ABERFORD AND DISTRICT PARISH COUNCIL,No
Http://opendatacommunities.org/id/metropolitan-district-council/leeds,Leeds City Council,30/04/2021,Strategic Accounts,Strategic,Supplies and Services,Office Consumables,210,01/04/2021,2104-00245,0.00,21000.00,R,ABERFORD AND DISTRICT PARISH COUNCIL,No
Http://opendatacommunities.org/id/metropolitan-district-council/leeds,Leeds City Council,30/04/2021,Communities and Environment,Parks and Countryside,Supplies and Services,Non-Recurring Grants,227,29/04/2021,2104-00246,0.00,550.00,R,ABERFORD AND DISTRICT PARISH COUNCIL,No
Http://opendatacommunities.org/id/metropolitan-district-council/leeds,Leeds City Council,30/04/2021,Adults and Health,Services For Older People - 65 And Over,Agency Payments,Nursing Home,570,28/04/2021,2104-00247,0.00,21011.06,R,Aberford Hall,No
Http://opendatacommunities.org/id/metropolitan-district-council/leeds,Leeds City Council,30/04/2021,Adults and Health,Services For Older People - 65 And Over,Agency Payments,Nursing Care Dementia,574,28/04/2021,2104-00248,0.00,-1661.69,R,Aberford Hall,No
Http://opendatacommunities.org/id/metropolitan-district-council/leeds,Leeds City Council,30/04/2021,Resources and Housing,Leeds Building Services,Supplies and Services,Operational Materials,205,08/04/2021,2104-00249,0.00,281.04,R,ABI GARAGE DOORS LTD,No
Http://opendatacommunities.org/id/metropolitan-district-council/leeds,Leeds City Council,30/04/2021,Resources and Housing,Leeds Building Services,Supplies and Services,Operational Materials,205,08/04/2021,2104-00250,0.00,281.04,R,ABI GARAGE DOORS LTD,No
Http://opendatacommunities.org/id/metropolitan-district-council/leeds,Leeds City Council,30/04/2021,Resources and Housing,Leeds Building Services,Supplies and Services,Operational Materials,205,08/04/2021,2104-00251,0.00,281.04,R,ABI GARAGE DOORS LTD,No
Http://opendatacommunities.org/id/metropolitan-district-council/leeds,Leeds City Council,30/04/2021,Resources and Housing,Leeds Building Services,Supplies and Services,Operational Materials,205,09/04/2021,2104-00252,0.00,281.04,R,ABI GARAGE DOORS LTD,No
Http://opendatacommunities.org/id/metropolitan-district-council/leeds,Leeds City Council,30/04/2021,Resources and Housing,Leeds Building Services,Supplies and Services,Operational Materials,205,09/04/2021,2104-00253,0.00,10.83,R,ABI GARAGE DOORS LTD,No
Http://opendatacommunities.org/id/metropolitan-district-council/leeds,Leeds City Council,30/04/2021,Resources and Housing,Leeds Building Services,Supplies and Services,Operational Materials,205,09/04/2021,2104-00254,0.00,10.83,R,ABI GARAGE DOORS LTD,No
Http://opendatacommunities.org/id/metropolitan-district-council/leeds,Leeds City Council,30/04/2021,Resources and Housing,Leeds Building Services,Supplies and Services,Operational Materials,205,09/04/2021,2104-00255,0.00,6.67,R,ABI GARAGE DOORS LTD,No
Http://opendatacommunities.org/id/metropolitan-district-council/leeds,Leeds City Council,30/04/2021,Resources and Housing,Leeds Building Services,Supplies and Services,Operational Materials,205,09/04/2021,2104-00256,0.00,6.67,R,ABI GARAGE DOORS LTD,No
Http://opendatacommunities.org/id/metropolitan-district-council/leeds,Leeds City Council,30/04/2021,Resources and Housing,Leeds Building Services,Supplies and Services,Operational Materials,205,09/04/2021,2104-00257,0.00,227.79,R,ABI GARAGE DOORS LTD,No
Http://opendatacommunities.org/id/metropolitan-district-council/leeds,Leeds City Council,30/04/2021,Communities and Environment,Benefits Welfare and Poverty,Supplies and Services,Grant Related Expenditure,290,08/04/2021,2104-00258,0.00,500.00,R,REDACTED PERSONAL DATA,No
Http://opendatacommunities.org/id/metropolitan-district-council/leeds,Leeds City Council,30/04/2021,Communities and Environment,Benefits Welfare and Poverty,Supplies and Services,Grant Related Expenditure,290,21/04/2021,2104-00259,0.00,500.00,R,REDACTED PERSONAL DATA,No
Http://opendatacommunities.org/id/metropolitan-district-council/leeds,Leeds City Council,30/04/2021,Communities and Environment,Customer Access,Supplies and Services,Bought In Professional Services,277,21/04/2021,2104-00260,0.00,27.00,R,Abida Begum,No
Http://opendatacommunities.org/id/metropolitan-district-council/leeds,Leeds City Council,30/04/2021,Communities and Environment,Customer Access,Supplies and Services,Bought In Professional Services,277,28/04/2021,2104-00261,0.00,18.00,R,Abida Begum,No
Http://opendatacommunities.org/id/metropolitan-district-council/leeds,Leeds City Council,30/04/2021,Communities and Environment,Customer Access,Supplies and Services,Bought In Professional Services,277,28/04/2021,2104-00262,0.00,13.50,R,Abida Begum,No
Http://opendatacommunities.org/id/metropolitan-district-council/leeds,Leeds City Council,30/04/2021,Communities and Environment,Customer Access,Supplies and Services,Bought In Professional Services,277,28/04/2021,2104-00263,0.00,34.50,R,Abida Begum,No
Http://opendatacommunities.org/id/metropolitan-district-council/leeds,Leeds City Council,30/04/2021,Children and Families,Social Care,Agency Payments,Placement Support,550,26/04/2021,2104-00264,0.00,7.94,R,REDACTED PERSONAL DATA,No
Http://opendatacommunities.org/id/metropolitan-district-council/leeds,Leeds City Council,30/04/2021,Communities and Environment,Benefits Welfare and Poverty,Supplies and Services,Grant Related Expenditure,298,01/04/2021,2104-00265,0.00,500.00,R,REDACTED PERSONAL DATA,No
Http://opendatacommunities.org/id/metropolitan-district-council/leeds,Leeds City Council,30/04/2021,Children and Families,Social Care,Appropriations,Leaving Care Allowances,634,16/04/2021,2104-00266,0.00,10.00,R,REDACTED PERSONAL DATA,No
Http://opendatacommunities.org/id/metropolitan-district-council/leeds,Leeds City Council,30/04/2021,Children and Families,Social Care,Agency Payments,Allowances,546,19/04/2021,2104-00267,0.00,100.00,R,REDACTED PERSONAL DATA,No
Http://opendatacommunities.org/id/metropolitan-district-council/leeds,Leeds City Council,30/04/2021,Adults and Health,Services For Adults Under 65 Mental/Dis,Agency Payments,Fees - Level 4,520,06/04/2021,2104-00268,0.00,175.00,R,Abubaker Denja Mohammed,No
Http://opendatacommunities.org/id/metropolitan-district-council/leeds,Leeds City Council,30/04/2021,Adults and Health,Services For Adults Under 65 Mental/Dis,Agency Payments,Fees - Level 4,520,14/04/2021,2104-00269,0.00,175.00,R,Abubaker Denja Mohammed,No
Http://opendatacommunities.org/id/metropolitan-district-council/leeds,Leeds City Council,30/04/2021,Adults and Health,Services For Adults Under 65 Mental/Dis,Agency Payments,Fees - Level 4,520,14/04/2021,2104-00270,0.00,175.00,R,Abubaker Denja Mohammed,No
Http://opendatacommunities.org/id/metropolitan-district-council/leeds,Leeds City Council,30/04/2021,Adults and Health,Services For Adults Under 65 Mental/Dis,Agency Payments,Fees - Level 4,520,16/04/2021,2104-00271,0.00,175.00,R,Abubaker Denja Mohammed,No
Http://opendatacommunities.org/id/metropolitan-district-council/leeds,Leeds City Council,30/04/2021,Adults and Health,Services For Adults Under 65 Mental/Dis,Agency Payments,Fees - Level 4,520,20/04/2021,2104-00272,0.00,175.00,R,Abubaker Denja Mohammed,No
Http://opendatacommunities.org/id/metropolitan-district-council/leeds,Leeds City Council,30/04/2021,Adults and Health,Services For Adults Under 65 Mental/Dis,Agency Payments,Fees - Level 4,520,23/04/2021,2104-00273,0.00,175.00,R,Abubaker Denja Mohammed,No
Http://opendatacommunities.org/id/metropolitan-district-council/leeds,Leeds City Council,30/04/2021,Communities and Environment,Benefits Welfare and Poverty,Supplies and Services,Schools related grant expenditure,299,14/04/2021,2104-00274,0.00,4380.00,R,Academies Enterprise Trust (AET),No
Http://opendatacommunities.org/id/metropolitan-district-council/leeds,Leeds City Council,30/04/2021,Adults and Health,Services For Older People - 65 And Over,Agency Payments,Home Care,568,14/04/2021,2104-00275,0.00,4875.27,R,Academy Care Ltd,No
Http://opendatacommunities.org/id/metropolitan-district-council/leeds,Leeds City Council,30/04/2021,Adults and Health,Services For Older People - 65 And Over,Agency Payments,HCAIT Other,577,14/04/2021,2104-00276,0.00,1003.86,R,Academy Care Ltd,No
Http://opendatacommunities.org/id/metropolitan-district-council/leeds,Leeds City Council,30/04/2021,Adults and Health,Service Strategy,Supplies and Services,Other Hired And Contracted Services,265,16/04/2021,2104-00277,0.00,8125.00,R,Acainn Ltd,No
Http://opendatacommunities.org/id/metropolitan-district-council/leeds,Leeds City Council,30/04/2021,Adults and Health,Social Services Support Services,Employees,Training & Development,70,30/04/2021,2104-00278,0.00,1070.00,R,ACAS,No
Http://opendatacommunities.org/id/metropolitan-district-council/leeds,Leeds City Council,30/04/2021,City Development,Economic Development,Supplies and Services,Grant Related Expenditure,290,27/04/2021,2104-00279,0.00,10000.00,R,Acaster Clarke Pubs Limited,No
Http://opendatacommunities.org/id/metropolitan-district-council/leeds,Leeds City Council,30/04/2021,Resources and Housing,Strategic Housing Partnership & Support,Supplies and Services,Other Hired And Contracted Services,265,08/04/2021,2104-00280,0.00,336.80,R,Accent Foundation Ltd,No
Http://opendatacommunities.org/id/metropolitan-district-council/leeds,Leeds City Council,30/04/2021,Resources and Housing,Strategic Housing Partnerships,Capital ,CONSTRUCTION,3,06/04/2021,2104-00281,0.00,2764.80,C,Accent Group,No
Http://opendatacommunities.org/id/metropolitan-district-council/leeds,Leeds City Council,30/04/2021,Communities and Environment,Waste Management,Supplies and Services,Operational Furniture And Equipment,203,04/03/2021,2104-00282,0.00,11.25,R,Access Locksmiths,Yes
Http://opendatacommunities.org/id/metropolitan-district-council/leeds,Leeds City Council,30/04/2021,Resources and Housing,Strategic Housing Partnership & Support,Supplies and Services,Other Hired And Contracted Services,265,04/03/2021,2104-00283,0.00,5.79,R,Access Locksmiths,Yes
Http://opendatacommunities.org/id/metropolitan-district-council/leeds,Leeds City Council,30/04/2021,Resources and Housing,Commercial Services,Supplies and Services,Operational Materials,205,08/03/2021,2104-00284,0.00,679.06,R,Access Locksmiths,Yes
Http://opendatacommunities.org/id/metropolitan-district-council/leeds,Leeds City Council,30/04/2021,Resources and Housing,Facilities Management,Supplies and Services,Operational Materials,205,08/03/2021,2104-00285,0.00,1078.75,R,Access Locksmiths,Yes
Http://opendatacommunities.org/id/metropolitan-district-council/leeds,Leeds City Council,30/04/2021,Strategic Landlord,Housing Management,Premises,General Maintenance,104,01/04/2021,2104-00286,0.00,108.90,R,ACCESS LOCKSMITHS (LEEDS) LIMITED,No
Http://opendatacommunities.org/id/metropolitan-district-council/leeds,Leeds City Council,30/04/2021,Resources and Housing,Leeds Building Services,Supplies and Services,Operational Materials,205,08/04/2021,2104-00287,0.00,7.00,R,ACCESS LOCKSMITHS (LEEDS) LIMITED,No
Http://opendatacommunities.org/id/metropolitan-district-council/leeds,Leeds City Council,30/04/2021,Resources and Housing,Leeds Building Services,Supplies and Services,Operational Materials,205,09/04/2021,2104-00288,0.00,74.20,R,ACCESS LOCKSMITHS (LEEDS) LIMITED,No
Http://opendatacommunities.org/id/metropolitan-district-council/leeds,Leeds City Council,30/04/2021,Resources and Housing,Leeds Building Services,Supplies and Services,Operational Materials,205,09/04/2021,2104-00289,0.00,28.75,R,ACCESS LOCKSMITHS (LEEDS) LIMITED,No
Http://opendatacommunities.org/id/metropolitan-district-council/leeds,Leeds City Council,30/04/2021,Resources and Housing,Leeds Building Services,Supplies and Services,Operational Materials,205,09/04/2021,2104-00290,0.00,328.09,R,ACCESS LOCKSMITHS (LEEDS) LIMITED,No
Http://opendatacommunities.org/id/metropolitan-district-council/leeds,Leeds City Council,30/04/2021,Resources and Housing,Leeds Building Services,Supplies and Services,Operational Materials,205,09/04/2021,2104-00291,0.00,40.36,R,ACCESS LOCKSMITHS (LEEDS) LIMITED,No
Http://opendatacommunities.org/id/metropolitan-district-council/leeds,Leeds City Council,30/04/2021,Resources and Housing,Leeds Building Services,Supplies and Services,Operational Materials,205,16/04/2021,2104-00292,0.00,162.42,R,ACCESS LOCKSMITHS (LEEDS) LIMITED,No
Http://opendatacommunities.org/id/metropolitan-district-council/leeds,Leeds City Council,30/04/2021,Resources and Housing,Leeds Building Services,Supplies and Services,Operational Materials,205,16/04/2021,2104-00293,0.00,162.42,R,ACCESS LOCKSMITHS (LEEDS) LIMITED,No
Http://opendatacommunities.org/id/metropolitan-district-council/leeds,Leeds City Council,30/04/2021,Resources and Housing,Leeds Building Services,Supplies and Services,Operational Materials,205,16/04/2021,2104-00294,0.00,162.42,R,ACCESS LOCKSMITHS (LEEDS) LIMITED,No
Http://opendatacommunities.org/id/metropolitan-district-council/leeds,Leeds City Council,30/04/2021,Resources and Housing,Leeds Building Services,Supplies and Services,Operational Materials,205,19/04/2021,2104-00295,0.00,309.04,R,ACCESS LOCKSMITHS (LEEDS) LIMITED,No
Http://opendatacommunities.org/id/metropolitan-district-council/leeds,Leeds City Council,30/04/2021,Resources and Housing,Leeds Building Services,Supplies and Services,Operational Materials,205,19/04/2021,2104-00296,0.00,95.48,R,ACCESS LOCKSMITHS (LEEDS) LIMITED,No
Http://opendatacommunities.org/id/metropolitan-district-council/leeds,Leeds City Council,30/04/2021,Strategic Landlord,Property and Contracts,Premises,General Maintenance,104,23/04/2021,2104-00297,0.00,45.83,R,ACCESS LOCKSMITHS (LEEDS) LIMITED,No
Http://opendatacommunities.org/id/metropolitan-district-council/leeds,Leeds City Council,30/04/2021,Strategic Landlord,Property and Contracts,Premises,General Maintenance,104,23/04/2021,2104-00298,0.00,173.56,R,ACCESS LOCKSMITHS (LEEDS) LIMITED,No
Http://opendatacommunities.org/id/metropolitan-district-council/leeds,Leeds City Council,30/04/2021,Strategic Landlord,Property and Contracts,Premises,General Maintenance,104,23/04/2021,2104-00299,0.00,55.83,R,ACCESS LOCKSMITHS (LEEDS) LIMITED,No
Http://opendatacommunities.org/id/metropolitan-district-council/leeds,Leeds City Council,30/04/2021,Strategic Landlord,Housing Management,Supplies and Services,Operational Furniture And Equipment,203,23/04/2021,2104-00300,0.00,88.00,R,ACCESS LOCKSMITHS (LEEDS) LIMITED,No
Http://opendatacommunities.org/id/metropolitan-district-council/leeds,Leeds City Council,30/04/2021,Resources and Housing,HRA Housing Leeds,Capital ,FURNITURE AND EQUIPMENT,5,23/04/2021,2104-00301,0.00,88.00,C,ACCESS LOCKSMITHS (LEEDS) LIMITED,No
Http://opendatacommunities.org/id/metropolitan-district-council/leeds,Leeds City Council,30/04/2021,Resources and Housing,Commercial Services,Supplies and Services,Operational Materials,205,23/04/2021,2104-00302,0.00,220.00,R,ACCESS LOCKSMITHS (LEEDS) LIMITED,No
Http://opendatacommunities.org/id/metropolitan-district-council/leeds,Leeds City Council,30/04/2021,Strategic Landlord,Housing Management,Supplies and Services,Resaleable Materials,204,23/04/2021,2104-00303,0.00,124.00,R,ACCESS LOCKSMITHS (LEEDS) LIMITED,No
Http://opendatacommunities.org/id/metropolitan-district-council/leeds,Leeds City Council,30/04/2021,Strategic Landlord,Property and Contracts,Premises,Maintenance Of Buildings,101,23/04/2021,2104-00304,0.00,588.70,R,ACCESS LOCKSMITHS (LEEDS) LIMITED,No
Http://opendatacommunities.org/id/metropolitan-district-council/leeds,Leeds City Council,30/04/2021,Strategic Landlord,Property and Contracts,Premises,Maintenance Of Buildings,101,30/04/2021,2104-00305,0.00,42.64,R,ACCESS LOCKSMITHS (LEEDS) LIMITED,No
Http://opendatacommunities.org/id/metropolitan-district-council/leeds,Leeds City Council,30/04/2021,City Development,Libraries Arts & Heritage,Supplies and Services,Bought In Professional Services,277,07/04/2021,2104-00306,0.00,600.00,R,ACCESS MOVING IMAGE LTD,No
Http://opendatacommunities.org/id/metropolitan-district-council/leeds,Leeds City Council as Accountable Body,30/04/2021,Social Services Pooled Budgets,Leeds Community Equip Store Pooled Budgt,Supplies and Services,Other Equipment,203,22/04/2021,2104-00307,0.00,1792.00,R,Accora,No
Http://opendatacommunities.org/id/metropolitan-district-council/leeds,Leeds City Council,30/04/2021,City Development,Markets & City Centre Management,Premises,General Maintenance,104,17/03/2021,2104-00308,0.00,7.95,R,Accu.Co.Uk,Yes
Http://opendatacommunities.org/id/metropolitan-district-council/leeds,Leeds City Council,30/04/2021,City Development,Recreation,Transport,External Hire -Occasional,304,30/04/2021,2104-00309,0.00,124.50,R,ACE CONTAINER SERVICES LIMITED,No
Http://opendatacommunities.org/id/metropolitan-district-council/leeds,Leeds City Council,30/04/2021,City Development,Economic Development,Supplies and Services,Grant Related Expenditure,290,23/04/2021,2104-00310,0.00,1497.00,R,Ace Leaflet Distribution & Print Ltd,No
Http://opendatacommunities.org/id/metropolitan-district-council/leeds,Leeds City Council,30/04/2021,City Development,Economic Development,Supplies and Services,Grant Related Expenditure,290,30/04/2021,2104-00311,0.00,2874.00,R,Achievers Faith International Ministers,No
Http://opendatacommunities.org/id/metropolitan-district-council/leeds,Leeds City Council,30/04/2021,Children and Families,Partnerships & Health,Agency Payments,SEN Placements,566,07/04/2021,2104-00312,0.00,18641.70,R,ACKWORTH SCHOOL,No
Http://opendatacommunities.org/id/metropolitan-district-council/leeds,Leeds City Council,30/04/2021,Children and Families,Partnerships & Health,Agency Payments,SEN Placements,566,07/04/2021,2104-00313,0.00,18641.70,R,ACKWORTH SCHOOL,No
Http://opendatacommunities.org/id/metropolitan-district-council/leeds,Leeds City Council,30/04/2021,Children and Families,Partnerships & Health,Agency Payments,SEN Placements,566,07/04/2021,2104-00314,0.00,18641.70,R,ACKWORTH SCHOOL,No
Http://opendatacommunities.org/id/metropolitan-district-council/leeds,Leeds City Council,30/04/2021,Children and Families,Partnerships & Health,Agency Payments,SEN Placements,566,07/04/2021,2104-00315,0.00,26196.66,R,ACKWORTH SCHOOL,No
Http://opendatacommunities.org/id/metropolitan-district-council/leeds,Leeds City Council,30/04/2021,Children and Families,Partnerships & Health,Agency Payments,Home Care,568,07/04/2021,2104-00316,0.00,-261.96,R,ACKWORTH SCHOOL,No
Http://opendatacommunities.org/id/metropolitan-district-council/leeds,Leeds City Council,30/04/2021,Children and Families,Partnerships & Health,Agency Payments,SEN Placements,566,07/04/2021,2104-00317,0.00,18641.70,R,ACKWORTH SCHOOL,No
Http://opendatacommunities.org/id/metropolitan-district-council/leeds,Leeds City Council,30/04/2021,Children and Families,Partnerships & Health,Agency Payments,SEN Placements,566,07/04/2021,2104-00318,0.00,18641.70,R,ACKWORTH SCHOOL,No
Http://opendatacommunities.org/id/metropolitan-district-council/leeds,Leeds City Council,30/04/2021,Children and Families,Partnerships & Health,Agency Payments,SEN Placements,566,07/04/2021,2104-00319,0.00,18641.70,R,ACKWORTH SCHOOL,No
Http://opendatacommunities.org/id/metropolitan-district-council/leeds,Leeds City Council,30/04/2021,Children and Families,Partnerships & Health,Agency Payments,SEN Placements,566,07/04/2021,2104-00320,0.00,18830.00,R,ACKWORTH SCHOOL,No
Http://opendatacommunities.org/id/metropolitan-district-council/leeds,Leeds City Council,30/04/2021,Children and Families,Partnerships & Health,Agency Payments,Home Care,568,07/04/2021,2104-00321,0.00,-188.30,R,ACKWORTH SCHOOL,No
Http://opendatacommunities.org/id/metropolitan-district-council/leeds,Leeds City Council,30/04/2021,Children and Families,Social Care,Agency Payments,Independent Fostering Agencies,509,14/04/2021,2104-00322,0.00,22561.46,R,Acorn Care & Education Ltd,No
Http://opendatacommunities.org/id/metropolitan-district-council/leeds,Leeds City Council,30/04/2021,Children and Families,Social Care,Agency Payments,General External Residential Placements,507,01/04/2021,2104-00323,0.00,16692.86,R,Acorn Care & Education Ltd (Sales),No
Http://opendatacommunities.org/id/metropolitan-district-council/leeds,Leeds City Council,30/04/2021,Children and Families,Social Care,Agency Payments,General External Residential Placements,507,01/04/2021,2104-00324,0.00,15580.00,R,Acorn Care & Education Ltd (Sales),No
Http://opendatacommunities.org/id/metropolitan-district-council/leeds,Leeds City Council,30/04/2021,Children and Families,Partnerships & Health,Agency Payments,SEN Placements,566,01/04/2021,2104-00325,0.00,1200.00,R,Acorn Care & Education Ltd (Sales),No
Http://opendatacommunities.org/id/metropolitan-district-council/leeds,Leeds City Council,30/04/2021,Children and Families,Social Care,Agency Payments,General External Residential Placements,507,01/04/2021,2104-00326,0.00,11625.00,R,Acorn Care & Education Ltd (Sales),No
Http://opendatacommunities.org/id/metropolitan-district-council/leeds,Leeds City Council,30/04/2021,Children and Families,Social Care,Agency Payments,General External Residential Placements,507,01/04/2021,2104-00327,0.00,11625.00,R,Acorn Care & Education Ltd (Sales),No
Http://opendatacommunities.org/id/metropolitan-district-council/leeds,Leeds City Council,30/04/2021,Children and Families,Social Care,Agency Payments,General External Residential Placements,507,01/04/2021,2104-00328,0.00,5007.86,R,Acorn Care & Education Ltd (Sales),No
Http://opendatacommunities.org/id/metropolitan-district-council/leeds,Leeds City Council,30/04/2021,Children and Families,Social Care,Agency Payments,General External Residential Placements,507,01/04/2021,2104-00329,0.00,3375.00,R,Acorn Care & Education Ltd (Sales),No
Http://opendatacommunities.org/id/metropolitan-district-council/leeds,Leeds City Council,30/04/2021,Children and Families,Partnerships & Health,Agency Payments,SEN Placements,566,15/04/2021,2104-00330,0.00,19261.87,R,Acorn Care & Education Ltd (Sales),No
Http://opendatacommunities.org/id/metropolitan-district-council/leeds,Leeds City Council,30/04/2021,Children and Families,Partnerships & Health,Agency Payments,SEN Placements,566,15/04/2021,2104-00331,0.00,18726.30,R,Acorn Care & Education Ltd (Sales),No
Http://opendatacommunities.org/id/metropolitan-district-council/leeds,Leeds City Council,30/04/2021,Children and Families,Partnerships & Health,Agency Payments,SEN Placements,566,15/04/2021,2104-00332,0.00,18726.30,R,Acorn Care & Education Ltd (Sales),No
Http://opendatacommunities.org/id/metropolitan-district-council/leeds,Leeds City Council,30/04/2021,Children and Families,Partnerships & Health,Agency Payments,SEN Placements,566,15/04/2021,2104-00333,0.00,19261.87,R,Acorn Care & Education Ltd (Sales),No
Http://opendatacommunities.org/id/metropolitan-district-council/leeds,Leeds City Council,30/04/2021,Children and Families,Partnerships & Health,Agency Payments,SEN Placements,566,15/04/2021,2104-00334,0.00,19418.00,R,Acorn Care & Education Ltd (Sales),No
Http://opendatacommunities.org/id/metropolitan-district-council/leeds,Leeds City Council,30/04/2021,Children and Families,Partnerships & Health,Agency Payments,SEN Placements,566,23/04/2021,2104-00335,0.00,74668.66,R,Acorn Care & Education Ltd (Sales),No
Http://opendatacommunities.org/id/metropolitan-district-council/leeds,Leeds City Council,30/04/2021,Children and Families,Partnerships & Health,Agency Payments,SEN Placements,566,23/04/2021,2104-00336,0.00,74668.67,R,Acorn Care & Education Ltd (Sales),No
Http://opendatacommunities.org/id/metropolitan-district-council/leeds,Leeds City Council,30/04/2021,Children and Families,Partnerships & Health,Agency Payments,SEN Placements,566,26/04/2021,2104-00337,0.00,58000.00,R,Acorn Care & Education Ltd (Sales),No
Http://opendatacommunities.org/id/metropolitan-district-council/leeds,Leeds City Council,30/04/2021,Children and Families,Partnerships & Health,Agency Payments,SEN Placements,566,29/04/2021,2104-00338,0.00,74668.67,R,Acorn Care & Education Ltd (Sales),No
Http://opendatacommunities.org/id/metropolitan-district-council/leeds,Leeds City Council,30/04/2021,Children and Families,Social Care,Agency Payments,General External Residential Placements,507,29/04/2021,2104-00339,0.00,17249.29,R,Acorn Care & Education Ltd (Sales),No
Http://opendatacommunities.org/id/metropolitan-district-council/leeds,Leeds City Council,30/04/2021,Children and Families,Partnerships & Health,Agency Payments,SEN Placements,566,29/04/2021,2104-00340,0.00,1600.00,R,Acorn Care & Education Ltd (Sales),No
Http://opendatacommunities.org/id/metropolitan-district-council/leeds,Leeds City Council,30/04/2021,Adults and Health,Services For Older People - 65 And Over,Agency Payments,Residential Care Dementia,571,28/04/2021,2104-00341,0.00,1689.62,R,Acorn Nursing Home,No
Http://opendatacommunities.org/id/metropolitan-district-council/leeds,Leeds City Council,30/04/2021,Children and Families,Social Care,Agency Payments,Services Rendered By Other Organisations,511,01/04/2021,2104-00342,0.00,9044.88,R,ACORNS NURSERY,No
Http://opendatacommunities.org/id/metropolitan-district-council/leeds,Leeds City Council,30/04/2021,Communities and Environment,Environmental Health,Supplies and Services,Other Hired And Contracted Services,265,23/04/2021,2104-00343,0.00,926.00,R,Acoustic Calibration Services Limited,No
Http://opendatacommunities.org/id/metropolitan-district-council/leeds,Leeds City Council,30/04/2021,Adults and Health,Services For Older People - 65 And Over,Agency Payments,Nursing Home,570,28/04/2021,2104-00344,0.00,33124.94,R,Acre Green,No
Http://opendatacommunities.org/id/metropolitan-district-council/leeds,Leeds City Council,30/04/2021,Adults and Health,Services For Older People - 65 And Over,Agency Payments,Residential,580,28/04/2021,2104-00345,0.00,3984.34,R,Acre Green,No
Http://opendatacommunities.org/id/metropolitan-district-council/leeds,Leeds City Council,30/04/2021,Adults and Health,Services For Older People Under 65 P/Dis,Agency Payments,Nursing Home,570,28/04/2021,2104-00346,0.00,2428.14,R,Acre Green,No
Http://opendatacommunities.org/id/metropolitan-district-council/leeds,Leeds City Council,30/04/2021,Adults and Health,Services For Older People Under 65 P/Dis,Agency Payments,Residential,580,28/04/2021,2104-00347,0.00,1703.17,R,Acre Green,No
Http://opendatacommunities.org/id/metropolitan-district-council/leeds,Leeds City Council,30/04/2021,Children and Families,Social Care,Agency Payments,Services Rendered By Other Organisations,511,01/04/2021,2104-00348,0.00,12523.68,R,Acre Wood Day Nursery,No
Http://opendatacommunities.org/id/metropolitan-district-council/leeds,Leeds City Council,30/04/2021,Children and Families,Social Care,Agency Payments,Services Rendered By Other Organisations,511,07/04/2021,2104-00349,0.00,1463.28,R,Acre Wood Day Nursery,No
Http://opendatacommunities.org/id/metropolitan-district-council/leeds,Leeds City Council,30/04/2021,Resources and Housing,Leeds Building Services,Supplies and Services,Other Hired And Contracted Services,265,01/04/2021,2104-00350,0.00,27.10,R,Actavo Hire And Sales Uk Limited,No
Http://opendatacommunities.org/id/metropolitan-district-council/leeds,Leeds City Council,30/04/2021,Resources and Housing,Leeds Building Services,Supplies and Services,Other Hired And Contracted Services,265,01/04/2021,2104-00351,0.00,26.23,R,Actavo Hire And Sales Uk Limited,No
Http://opendatacommunities.org/id/metropolitan-district-council/leeds,Leeds City Council,30/04/2021,Resources and Housing,Leeds Building Services,Supplies and Services,Other Hired And Contracted Services,265,01/04/2021,2104-00352,0.00,27.10,R,Actavo Hire And Sales Uk Limited,No
Http://opendatacommunities.org/id/metropolitan-district-council/leeds,Leeds City Council,30/04/2021,Resources and Housing,Leeds Building Services,Supplies and Services,Other Hired And Contracted Services,265,01/04/2021,2104-00353,0.00,27.10,R,Actavo Hire And Sales Uk Limited,No
Http://opendatacommunities.org/id/metropolitan-district-council/leeds,Leeds City Council,30/04/2021,Resources and Housing,Leeds Building Services,Supplies and Services,Other Hired And Contracted Services,265,06/04/2021,2104-00354,0.00,24.48,R,Actavo Hire And Sales Uk Limited,No
Http://opendatacommunities.org/id/metropolitan-district-council/leeds,Leeds City Council,30/04/2021,Communities and Environment,Communities,Supplies and Services,Grant Related Expenditure,290,09/04/2021,2104-00355,0.00,1000.00,R,Action C/O Aireborough Childrens Centre,No
Http://opendatacommunities.org/id/metropolitan-district-council/leeds,Leeds City Council,30/04/2021,Adults and Health,Services For Older People - 65 And Over,Agency Payments,Payments To Voluntary Organisations,561,01/04/2021,2104-00356,0.00,49415.82,R,ACTION FOR GIPTON ELDERLY,No
Http://opendatacommunities.org/id/metropolitan-district-council/leeds,Leeds City Council,30/04/2021,Resources and Housing,Civic Enterprise Leeds,Capital ,OTHER COSTS,7,21/04/2021,2104-00357,0.00,60.00,C,Active Cycling Projects Ltd,No
Http://opendatacommunities.org/id/metropolitan-district-council/leeds,Leeds City Council,30/04/2021,Children and Families,Social Care,Agency Payments,Services Rendered By Other Organisations,511,01/04/2021,2104-00358,0.00,6708.94,R,ACTIVE KIDS YEADON LLP,No
Http://opendatacommunities.org/id/metropolitan-district-council/leeds,Leeds City Council,30/04/2021,Children and Families,Social Care,Agency Payments,Services Rendered By Other Organisations,511,07/04/2021,2104-00359,0.00,627.12,R,ACTIVE KIDS YEADON LLP,No
Http://opendatacommunities.org/id/metropolitan-district-council/leeds,Leeds City Council,30/04/2021,City Development,Economic Development,Supplies and Services,Grant Related Expenditure,290,26/04/2021,2104-00360,0.00,997.00,R,ACTIVE KIDS YEADON LLP,No
Http://opendatacommunities.org/id/metropolitan-district-council/leeds,Leeds City Council as Accountable Body,30/04/2021,Social Services Pooled Budgets,Leeds Community Equip Store Pooled Budgt,Supplies and Services,Other Equipment,203,08/04/2021,2104-00361,0.00,255.00,R,Active Mobility Centre Ltd,No
Http://opendatacommunities.org/id/metropolitan-district-council/leeds,Leeds City Council,30/04/2021,Adults and Health,Services For Adults Under 65 Mental/Dis,Agency Payments,Sheltered Accommodation,569,28/04/2021,2104-00362,0.00,11518.55,R,Active Pathways,No
Http://opendatacommunities.org/id/metropolitan-district-council/leeds,Leeds City Council,30/04/2021,Adults and Health,Services For Adults Under 65 Mental/Dis,Agency Payments,Residential,580,28/04/2021,2104-00363,0.00,6078.02,R,Active Pathways,No
Http://opendatacommunities.org/id/metropolitan-district-council/leeds,Leeds City Council,30/04/2021,Adults and Health,Services For Older People Under 65 P/Dis,Agency Payments,Sheltered Accommodation,569,28/04/2021,2104-00364,0.00,3690.85,R,Active Pathways,No
Http://opendatacommunities.org/id/metropolitan-district-council/leeds,Leeds City Council as Accountable Body,30/04/2021,Social Services Pooled Budgets,Jcs For People With Learning Disabilitie,Agency Payments,Sheltered Accommodation,569,28/04/2021,2104-00365,0.00,12452.52,R,Active Pathways,No
Http://opendatacommunities.org/id/metropolitan-district-council/leeds,Leeds City Council,30/04/2021,Adults and Health,Services For Adults Under 65 Mental/Dis,Agency Payments,Sheltered Accommodation,569,01/04/2021,2104-00366,0.00,1245.25,R,Active Pathways Supported Living,No
Http://opendatacommunities.org/id/metropolitan-district-council/leeds,Leeds City Council,30/04/2021,Communities and Environment,Waste Management,Supplies and Services,Recycling & Reuse Charges,234,01/04/2021,2104-00367,0.00,958.77,R,Acumen Waste Services Ltd,No
Http://opendatacommunities.org/id/metropolitan-district-council/leeds,Leeds City Council,30/04/2021,Communities and Environment,Waste Management,Supplies and Services,Recycling & Reuse Charges,234,01/04/2021,2104-00368,0.00,976.53,R,Acumen Waste Services Ltd,No
Http://opendatacommunities.org/id/metropolitan-district-council/leeds,Leeds City Council,30/04/2021,Communities and Environment,Waste Management,Supplies and Services,Recycling & Reuse Charges,234,01/04/2021,2104-00369,0.00,992.15,R,Acumen Waste Services Ltd,No
Http://opendatacommunities.org/id/metropolitan-district-council/leeds,Leeds City Council,30/04/2021,Communities and Environment,Waste Management,Supplies and Services,Recycling & Reuse Charges,234,01/04/2021,2104-00370,0.00,1002.80,R,Acumen Waste Services Ltd,No
Http://opendatacommunities.org/id/metropolitan-district-council/leeds,Leeds City Council,30/04/2021,Communities and Environment,Cleaner Neighbourhood Teams,Premises,Removal Of Workplace Waste,126,01/04/2021,2104-00371,0.00,116.60,R,Acumen Waste Services Ltd,No
Http://opendatacommunities.org/id/metropolitan-district-council/leeds,Leeds City Council,30/04/2021,Communities and Environment,Cleaner Neighbourhood Teams,Premises,Removal Of Workplace Waste,126,01/04/2021,2104-00372,0.00,116.60,R,Acumen Waste Services Ltd,No
Http://opendatacommunities.org/id/metropolitan-district-council/leeds,Leeds City Council,30/04/2021,Communities and Environment,Cleaner Neighbourhood Teams,Premises,Removal Of Workplace Waste,126,07/04/2021,2104-00373,0.00,116.60,R,Acumen Waste Services Ltd,No
Http://opendatacommunities.org/id/metropolitan-district-council/leeds,Leeds City Council,30/04/2021,Communities and Environment,Cleaner Neighbourhood Teams,Premises,Removal Of Workplace Waste,126,07/04/2021,2104-00374,0.00,116.60,R,Acumen Waste Services Ltd,No
Http://opendatacommunities.org/id/metropolitan-district-council/leeds,Leeds City Council,30/04/2021,Communities and Environment,Waste Management,Supplies and Services,Recycling & Reuse Charges,234,07/04/2021,2104-00375,0.00,998.54,R,Acumen Waste Services Ltd,No
Http://opendatacommunities.org/id/metropolitan-district-council/leeds,Leeds City Council,30/04/2021,Communities and Environment,Waste Management,Supplies and Services,Recycling & Reuse Charges,234,07/04/2021,2104-00376,0.00,976.53,R,Acumen Waste Services Ltd,No
Http://opendatacommunities.org/id/metropolitan-district-council/leeds,Leeds City Council,30/04/2021,Communities and Environment,Waste Management,Supplies and Services,Recycling & Reuse Charges,234,07/04/2021,2104-00377,0.00,982.92,R,Acumen Waste Services Ltd,No
Http://opendatacommunities.org/id/metropolitan-district-council/leeds,Leeds City Council,30/04/2021,Communities and Environment,Cleaner Neighbourhood Teams,Premises,Removal Of Workplace Waste,126,07/04/2021,2104-00378,0.00,116.60,R,Acumen Waste Services Ltd,No
Http://opendatacommunities.org/id/metropolitan-district-council/leeds,Leeds City Council,30/04/2021,Communities and Environment,Waste Management,Supplies and Services,Recycling & Reuse Charges,234,08/04/2021,2104-00379,0.00,1032.63,R,Acumen Waste Services Ltd,No
Http://opendatacommunities.org/id/metropolitan-district-council/leeds,Leeds City Council,30/04/2021,Communities and Environment,Waste Management,Supplies and Services,Recycling & Reuse Charges,234,09/04/2021,2104-00380,0.00,992.86,R,Acumen Waste Services Ltd,No
Http://opendatacommunities.org/id/metropolitan-district-council/leeds,Leeds City Council,30/04/2021,Communities and Environment,Waste Management,Supplies and Services,Recycling & Reuse Charges,234,09/04/2021,2104-00381,0.00,992.86,R,Acumen Waste Services Ltd,No
Http://opendatacommunities.org/id/metropolitan-district-council/leeds,Leeds City Council,30/04/2021,Communities and Environment,Waste Management,Supplies and Services,Recycling & Reuse Charges,234,09/04/2021,2104-00382,0.00,972.26,R,Acumen Waste Services Ltd,No
Http://opendatacommunities.org/id/metropolitan-district-council/leeds,Leeds City Council,30/04/2021,Communities and Environment,Waste Management,Supplies and Services,Recycling & Reuse Charges,234,09/04/2021,2104-00383,0.00,1002.80,R,Acumen Waste Services Ltd,No
Http://opendatacommunities.org/id/metropolitan-district-council/leeds,Leeds City Council,30/04/2021,Communities and Environment,Cleaner Neighbourhood Teams,Premises,Removal Of Workplace Waste,126,12/04/2021,2104-00384,0.00,116.60,R,Acumen Waste Services Ltd,No
Http://opendatacommunities.org/id/metropolitan-district-council/leeds,Leeds City Council,30/04/2021,Communities and Environment,Cleaner Neighbourhood Teams,Premises,Removal Of Workplace Waste,126,13/04/2021,2104-00385,0.00,116.60,R,Acumen Waste Services Ltd,No
Http://opendatacommunities.org/id/metropolitan-district-council/leeds,Leeds City Council,30/04/2021,Communities and Environment,Waste Management,Supplies and Services,Recycling & Reuse Charges,234,13/04/2021,2104-00386,0.00,1014.17,R,Acumen Waste Services Ltd,No
Http://opendatacommunities.org/id/metropolitan-district-council/leeds,Leeds City Council,30/04/2021,Communities and Environment,Cleaner Neighbourhood Teams,Premises,Removal Of Workplace Waste,126,13/04/2021,2104-00387,0.00,116.60,R,Acumen Waste Services Ltd,No
Http://opendatacommunities.org/id/metropolitan-district-council/leeds,Leeds City Council,30/04/2021,Communities and Environment,Cleaner Neighbourhood Teams,Premises,Removal Of Workplace Waste,126,13/04/2021,2104-00388,0.00,116.60,R,Acumen Waste Services Ltd,No
Http://opendatacommunities.org/id/metropolitan-district-council/leeds,Leeds City Council,30/04/2021,Communities and Environment,Cleaner Neighbourhood Teams,Premises,Removal Of Workplace Waste,126,13/04/2021,2104-00389,0.00,116.60,R,Acumen Waste Services Ltd,No
Http://opendatacommunities.org/id/metropolitan-district-council/leeds,Leeds City Council,30/04/2021,Communities and Environment,Cleaner Neighbourhood Teams,Premises,Removal Of Workplace Waste,126,13/04/2021,2104-00390,0.00,116.60,R,Acumen Waste Services Ltd,No
Http://opendatacommunities.org/id/metropolitan-district-council/leeds,Leeds City Council,30/04/2021,Communities and Environment,Cleaner Neighbourhood Teams,Premises,Removal Of Workplace Waste,126,14/04/2021,2104-00391,0.00,116.60,R,Acumen Waste Services Ltd,No
Http://opendatacommunities.org/id/metropolitan-district-council/leeds,Leeds City Council,30/04/2021,Communities and Environment,Cleaner Neighbourhood Teams,Premises,Removal Of Workplace Waste,126,14/04/2021,2104-00392,0.00,116.60,R,Acumen Waste Services Ltd,No
Http://opendatacommunities.org/id/metropolitan-district-council/leeds,Leeds City Council,30/04/2021,Communities and Environment,Waste Management,Supplies and Services,Recycling & Reuse Charges,234,15/04/2021,2104-00393,0.00,982.92,R,Acumen Waste Services Ltd,No
Http://opendatacommunities.org/id/metropolitan-district-council/leeds,Leeds City Council,30/04/2021,Communities and Environment,Waste Management,Supplies and Services,Recycling & Reuse Charges,234,15/04/2021,2104-00394,0.00,960.19,R,Acumen Waste Services Ltd,No
Http://opendatacommunities.org/id/metropolitan-district-council/leeds,Leeds City Council,30/04/2021,Communities and Environment,Cleaner Neighbourhood Teams,Premises,Removal Of Workplace Waste,126,15/04/2021,2104-00395,0.00,116.60,R,Acumen Waste Services Ltd,No
Http://opendatacommunities.org/id/metropolitan-district-council/leeds,Leeds City Council,30/04/2021,Communities and Environment,Waste Management,Supplies and Services,Recycling & Reuse Charges,234,15/04/2021,2104-00396,0.00,972.97,R,Acumen Waste Services Ltd,No
Http://opendatacommunities.org/id/metropolitan-district-council/leeds,Leeds City Council,30/04/2021,Communities and Environment,Waste Management,Supplies and Services,Recycling & Reuse Charges,234,16/04/2021,2104-00397,0.00,993.57,R,Acumen Waste Services Ltd,No
Http://opendatacommunities.org/id/metropolitan-district-council/leeds,Leeds City Council,30/04/2021,Communities and Environment,Waste Management,Supplies and Services,Recycling & Reuse Charges,234,21/04/2021,2104-00398,0.00,983.63,R,Acumen Waste Services Ltd,No
Http://opendatacommunities.org/id/metropolitan-district-council/leeds,Leeds City Council,30/04/2021,Communities and Environment,Waste Management,Supplies and Services,Recycling & Reuse Charges,234,21/04/2021,2104-00399,0.00,988.60,R,Acumen Waste Services Ltd,No
Http://opendatacommunities.org/id/metropolitan-district-council/leeds,Leeds City Council,30/04/2021,Communities and Environment,Waste Management,Supplies and Services,Recycling & Reuse Charges,234,21/04/2021,2104-00400,0.00,947.41,R,Acumen Waste Services Ltd,No
Http://opendatacommunities.org/id/metropolitan-district-council/leeds,Leeds City Council,30/04/2021,Communities and Environment,Cleaner Neighbourhood Teams,Premises,Removal Of Workplace Waste,126,21/04/2021,2104-00401,0.00,116.60,R,Acumen Waste Services Ltd,No
Http://opendatacommunities.org/id/metropolitan-district-council/leeds,Leeds City Council,30/04/2021,Communities and Environment,Cleaner Neighbourhood Teams,Premises,Removal Of Workplace Waste,126,21/04/2021,2104-00402,0.00,116.60,R,Acumen Waste Services Ltd,No
Http://opendatacommunities.org/id/metropolitan-district-council/leeds,Leeds City Council,30/04/2021,Communities and Environment,Cleaner Neighbourhood Teams,Premises,Removal Of Workplace Waste,126,21/04/2021,2104-00403,0.00,116.60,R,Acumen Waste Services Ltd,No
Http://opendatacommunities.org/id/metropolitan-district-council/leeds,Leeds City Council,30/04/2021,Communities and Environment,Cleaner Neighbourhood Teams,Premises,Removal Of Workplace Waste,126,21/04/2021,2104-00404,0.00,116.60,R,Acumen Waste Services Ltd,No
Http://opendatacommunities.org/id/metropolitan-district-council/leeds,Leeds City Council,30/04/2021,Communities and Environment,Cleaner Neighbourhood Teams,Premises,Removal Of Workplace Waste,126,21/04/2021,2104-00405,0.00,116.60,R,Acumen Waste Services Ltd,No
Http://opendatacommunities.org/id/metropolitan-district-council/leeds,Leeds City Council,30/04/2021,Communities and Environment,Waste Management,Supplies and Services,Recycling & Reuse Charges,234,22/04/2021,2104-00406,0.00,968.71,R,Acumen Waste Services Ltd,No
Http://opendatacommunities.org/id/metropolitan-district-council/leeds,Leeds City Council,30/04/2021,Communities and Environment,Waste Management,Supplies and Services,Recycling & Reuse Charges,234,22/04/2021,2104-00407,0.00,1017.01,R,Acumen Waste Services Ltd,No
Http://opendatacommunities.org/id/metropolitan-district-council/leeds,Leeds City Council,30/04/2021,Communities and Environment,Waste Management,Supplies and Services,Recycling & Reuse Charges,234,23/04/2021,2104-00408,0.00,1002.80,R,Acumen Waste Services Ltd,No
Http://opendatacommunities.org/id/metropolitan-district-council/leeds,Leeds City Council,30/04/2021,Communities and Environment,Waste Management,Supplies and Services,Recycling & Reuse Charges,234,23/04/2021,2104-00409,0.00,0.00,R,Acumen Waste Services Ltd,No
Http://opendatacommunities.org/id/metropolitan-district-council/leeds,Leeds City Council,30/04/2021,Communities and Environment,Cleaner Neighbourhood Teams,Premises,Removal Of Workplace Waste,126,23/04/2021,2104-00410,0.00,116.60,R,Acumen Waste Services Ltd,No
Http://opendatacommunities.org/id/metropolitan-district-council/leeds,Leeds City Council,30/04/2021,Communities and Environment,Waste Management,Supplies and Services,Recycling & Reuse Charges,234,23/04/2021,2104-00411,0.00,1057.49,R,Acumen Waste Services Ltd,No
Http://opendatacommunities.org/id/metropolitan-district-council/leeds,Leeds City Council,30/04/2021,Communities and Environment,Waste Management,Supplies and Services,Recycling & Reuse Charges,234,29/04/2021,2104-00412,0.00,938.17,R,Acumen Waste Services Ltd,No
Http://opendatacommunities.org/id/metropolitan-district-council/leeds,Leeds City Council,30/04/2021,Communities and Environment,Waste Management,Supplies and Services,Recycling & Reuse Charges,234,29/04/2021,2104-00413,0.00,981.50,R,Acumen Waste Services Ltd,No
Http://opendatacommunities.org/id/metropolitan-district-council/leeds,Leeds City Council,30/04/2021,Communities and Environment,Waste Management,Supplies and Services,Recycling & Reuse Charges,234,29/04/2021,2104-00414,0.00,986.47,R,Acumen Waste Services Ltd,No
Http://opendatacommunities.org/id/metropolitan-district-council/leeds,Leeds City Council,30/04/2021,Communities and Environment,Waste Management,Supplies and Services,Recycling & Reuse Charges,234,29/04/2021,2104-00415,0.00,1000.67,R,Acumen Waste Services Ltd,No
Http://opendatacommunities.org/id/metropolitan-district-council/leeds,Leeds City Council,30/04/2021,Resources and Housing,Shared Services,Supplies and Services,Other Hired And Contracted Services,265,30/04/2021,2104-00416,0.00,469.29,R,AD3 Envelope Printers Limited,No
Http://opendatacommunities.org/id/metropolitan-district-council/leeds,Leeds City Council,30/04/2021,Resources and Housing,Shared Services,Supplies and Services,Other Hired And Contracted Services,265,30/04/2021,2104-00417,0.00,366.60,R,AD3 Envelope Printers Limited,No
Http://opendatacommunities.org/id/metropolitan-district-council/leeds,Leeds City Council,30/04/2021,Resources and Housing,Shared Services,Supplies and Services,Other Hired And Contracted Services,265,30/04/2021,2104-00418,0.00,111.48,R,AD3 Envelope Printers Limited,No
Http://opendatacommunities.org/id/metropolitan-district-council/leeds,Leeds City Council,30/04/2021,Resources and Housing,Shared Services,Supplies and Services,Operational Materials,205,30/04/2021,2104-00419,0.00,1131.75,R,AD3 Envelope Printers Limited,No
Http://opendatacommunities.org/id/metropolitan-district-council/leeds,Leeds City Council,30/04/2021,Communities and Environment,Waste Management,Supplies and Services,Publication And Promotion,267,12/04/2021,2104-00420,0.00,30.00,R,REDACTED PERSONAL DATA,No
Http://opendatacommunities.org/id/metropolitan-district-council/leeds,Leeds City Council,30/04/2021,City Development,Libraries Arts & Heritage,Supplies and Services,Bought In Professional Services,277,01/04/2021,2104-00421,0.00,1000.00,R,Adam Clarke,No
Http://opendatacommunities.org/id/metropolitan-district-council/leeds,Leeds City Council,30/04/2021,Communities and Environment,Benefits Welfare and Poverty,Supplies and Services,Grant Related Expenditure,298,07/04/2021,2104-00422,0.00,500.00,R,REDACTED PERSONAL DATA,No
Http://opendatacommunities.org/id/metropolitan-district-council/leeds,Leeds City Council,30/04/2021,Communities and Environment,Benefits Welfare and Poverty,Supplies and Services,Grant Related Expenditure,298,26/04/2021,2104-00423,0.00,500.00,R,REDACTED PERSONAL DATA,No
Http://opendatacommunities.org/id/metropolitan-district-council/leeds,Leeds City Council,30/04/2021,Children and Families,Social Care,Appropriations,Leaving Care Grants,635,14/04/2021,2104-00424,0.00,15.99,R,REDACTED PERSONAL DATA,No
Http://opendatacommunities.org/id/metropolitan-district-council/leeds,Leeds City Council,30/04/2021,Children and Families,Social Care,Appropriations,Leaving Care Allowances,634,21/04/2021,2104-00425,0.00,280.00,R,REDACTED PERSONAL DATA,No
Http://opendatacommunities.org/id/metropolitan-district-council/leeds,Leeds City Council,30/04/2021,Children and Families,Social Care,Appropriations,Leaving Care Grants,635,21/04/2021,2104-00426,0.00,103.41,R,REDACTED PERSONAL DATA,No
Http://opendatacommunities.org/id/metropolitan-district-council/leeds,Leeds City Council,30/04/2021,Children and Families,Social Care,Appropriations,Leaving Care Allowances,634,21/04/2021,2104-00427,0.00,70.00,R,REDACTED PERSONAL DATA,No
Http://opendatacommunities.org/id/metropolitan-district-council/leeds,Leeds City Council,30/04/2021,Children and Families,Social Care,Appropriations,Leaving Care Allowances,634,29/04/2021,2104-00428,0.00,70.00,R,REDACTED PERSONAL DATA,No
Http://opendatacommunities.org/id/metropolitan-district-council/leeds,Leeds City Council,30/04/2021,Communities and Environment,Car Parking Services,External Income,Penalties Fines & Car Parking Charges,934,15/04/2021,2104-00429,0.00,83.00,R,REDACTED PERSONAL DATA,No
Http://opendatacommunities.org/id/metropolitan-district-council/leeds,Leeds City Council,30/04/2021,Communities and Environment,Benefits Welfare and Poverty,Supplies and Services,Grant Related Expenditure,290,21/04/2021,2104-00430,0.00,500.00,R,REDACTED PERSONAL DATA,No
Http://opendatacommunities.org/id/metropolitan-district-council/leeds,Leeds City Council,30/04/2021,Adults and Health,Services For Older People - 65 And Over,Agency Payments,Nursing Home,570,28/04/2021,2104-00431,0.00,2584.00,R,Adbolton Hall,No
Http://opendatacommunities.org/id/metropolitan-district-council/leeds,Leeds City Council,30/04/2021,Resources and Housing,Commercial Services,Transport,Road Fund Licences,323,12/04/2021,2104-00432,0.00,315.00,R,Addison Motors Limited,No
Http://opendatacommunities.org/id/metropolitan-district-council/leeds,Leeds City Council,30/04/2021,Resources and Housing,Civic Enterprise Leeds,Capital ,TRANSPORT,4,12/04/2021,2104-00433,0.00,38576.08,C,Addison Motors Limited,No
Http://opendatacommunities.org/id/metropolitan-district-council/leeds,Leeds City Council,30/04/2021,Resources and Housing,Commercial Services,Transport,Road Fund Licences,323,16/04/2021,2104-00434,0.00,315.00,R,Addison Motors Limited,No
Http://opendatacommunities.org/id/metropolitan-district-council/leeds,Leeds City Council,30/04/2021,Resources and Housing,Civic Enterprise Leeds,Capital ,TRANSPORT,4,16/04/2021,2104-00435,0.00,38576.08,C,Addison Motors Limited,No
Http://opendatacommunities.org/id/metropolitan-district-council/leeds,Leeds City Council,30/04/2021,City Development,Economic Development,Supplies and Services,Grant Related Expenditure,290,29/04/2021,2104-00436,0.00,1620.00,R,Additive Design Ltd,No
Http://opendatacommunities.org/id/metropolitan-district-council/leeds,Leeds City Council,30/04/2021,Resources and Housing,PPPU and Procurement,Supplies and Services,Other Hired And Contracted Services,265,23/04/2021,2104-00437,0.00,4000.00,R,Addleshaw Goddard LLP,No
Http://opendatacommunities.org/id/metropolitan-district-council/leeds,Leeds City Council,30/04/2021,Resources and Housing,Technology,Employees,Agency Staff,8,26/02/2021,2104-00438,0.00,18540.80,R,Adecco Alfred Marks,Yes
Http://opendatacommunities.org/id/metropolitan-district-council/leeds,Leeds City Council,30/04/2021,Resources and Housing,Technology,Employees,Agency Staff,8,12/03/2021,2104-00439,0.00,33018.60,R,Adecco Alfred Marks,Yes
Http://opendatacommunities.org/id/metropolitan-district-council/leeds,Leeds City Council,30/04/2021,Resources and Housing,Technology,Employees,Agency Staff,8,18/03/2021,2104-00440,0.00,17648.97,R,Adecco Alfred Marks,Yes
Http://opendatacommunities.org/id/metropolitan-district-council/leeds,Leeds City Council,30/04/2021,Resources and Housing,Technology,Employees,Agency Staff,8,29/03/2021,2104-00441,0.00,37454.30,R,Adecco Alfred Marks,Yes
Http://opendatacommunities.org/id/metropolitan-district-council/leeds,Leeds City Council,30/04/2021,City Development,Economic Development,Supplies and Services,Grant Related Expenditure,290,28/04/2021,2104-00442,0.00,500.00,R,REDACTED PERSONAL DATA,No
Http://opendatacommunities.org/id/metropolitan-district-council/leeds,Leeds City Council,30/04/2021,Communities and Environment,Communities,Supplies and Services,Grant Related Expenditure,290,19/04/2021,2104-00443,0.00,900.64,R,Adel Parochial Church Council,No
Http://opendatacommunities.org/id/metropolitan-district-council/leeds,Leeds City Council,30/04/2021,Children and Families,Social Care,Agency Payments,Services Rendered By Voluntary Sector,505,01/04/2021,2104-00444,0.00,7582.00,R,ADEL PRE SCHOOL,No
Http://opendatacommunities.org/id/metropolitan-district-council/leeds,Leeds City Council,30/04/2021,Children and Families,Social Care,Agency Payments,Services Rendered By Voluntary Sector,505,07/04/2021,2104-00445,0.00,836.16,R,ADEL PRE SCHOOL,No
Http://opendatacommunities.org/id/metropolitan-district-council/leeds,Leeds City Council,30/04/2021,Children and Families,Social Care,Agency Payments,Services Rendered By Other Organisations,511,01/04/2021,2104-00446,0.00,1391.52,R,REDACTED PERSONAL DATA,No
Http://opendatacommunities.org/id/metropolitan-district-council/leeds,Leeds City Council,30/04/2021,Children and Families,Social Care,Agency Payments,Services Rendered By Other Organisations,511,07/04/2021,2104-00447,0.00,209.04,R,REDACTED PERSONAL DATA,No
Http://opendatacommunities.org/id/metropolitan-district-council/leeds,Leeds City Council,30/04/2021,City Development,Support Services,Supplies and Services,Memberships,226,23/04/2021,2104-00448,0.00,2120.00,R,ADEPT,No
Http://opendatacommunities.org/id/metropolitan-district-council/leeds,Leeds City Council,30/04/2021,Children and Families,Social Care,Supplies and Services,Operational Furniture And Equipment,203,03/03/2021,2104-00449,0.00,289.90,R,Adexa Direct,Yes
Http://opendatacommunities.org/id/metropolitan-district-council/leeds,Leeds City Council,30/04/2021,Children and Families,Social Care,Supplies and Services,Operational Furniture And Equipment,203,03/03/2021,2104-00450,0.00,144.95,R,Adexa Direct,Yes
Http://opendatacommunities.org/id/metropolitan-district-council/leeds,Leeds City Council,30/04/2021,Children and Families,Social Care,Supplies and Services,Operational Furniture And Equipment,203,12/03/2021,2104-00451,0.00,173.94,R,Adexa Direct,Yes
Http://opendatacommunities.org/id/metropolitan-district-council/leeds,Leeds City Council,30/04/2021,Children and Families,Social Care,Supplies and Services,Office Consumables,210,29/03/2021,2104-00452,0.00,79.00,R,Adexa Direct,Yes
Http://opendatacommunities.org/id/metropolitan-district-council/leeds,Leeds City Council,30/04/2021,Resources and Housing,Leeds Building Services,Supplies and Services,STORES - CENTRAL AND OTHER DEPOTS,005,08/04/2021,2104-00453,0.00,1050.00,R,ADI Global,No
Http://opendatacommunities.org/id/metropolitan-district-council/leeds,Leeds City Council,30/04/2021,Resources and Housing,Leeds Building Services,Supplies and Services,Operational Materials,205,08/04/2021,2104-00454,0.00,-35.92,R,ADI Global,No
Http://opendatacommunities.org/id/metropolitan-district-council/leeds,Leeds City Council,30/04/2021,Resources and Housing,Leeds Building Services,Supplies and Services,Operational Materials,205,08/04/2021,2104-00455,0.00,-31.38,R,ADI Global,No
Http://opendatacommunities.org/id/metropolitan-district-council/leeds,Leeds City Council,30/04/2021,Resources and Housing,Leeds Building Services,Supplies and Services,Operational Materials,205,08/04/2021,2104-00456,0.00,-34.50,R,ADI Global,No
Http://opendatacommunities.org/id/metropolitan-district-council/leeds,Leeds City Council,30/04/2021,Resources and Housing,Leeds Building Services,Supplies and Services,Operational Materials,205,08/04/2021,2104-00457,0.00,-28.03,R,ADI Global,No
Http://opendatacommunities.org/id/metropolitan-district-council/leeds,Leeds City Council,30/04/2021,Resources and Housing,Leeds Building Services,Supplies and Services,Operational Materials,205,08/04/2021,2104-00458,0.00,118.50,R,ADI Global,No
Http://opendatacommunities.org/id/metropolitan-district-council/leeds,Leeds City Council,30/04/2021,Resources and Housing,Leeds Building Services,Supplies and Services,Operational Materials,205,23/04/2021,2104-00459,0.00,718.71,R,ADI Global,No
Http://opendatacommunities.org/id/metropolitan-district-council/leeds,Leeds City Council,30/04/2021,Resources and Housing,Leeds Building Services,Supplies and Services,Operational Materials,205,23/04/2021,2104-00460,0.00,242.69,R,ADI Global,No
Http://opendatacommunities.org/id/metropolitan-district-council/leeds,Leeds City Council,30/04/2021,Resources and Housing,Leeds Building Services,Supplies and Services,Operational Materials,205,23/04/2021,2104-00461,0.00,119.62,R,ADI Global,No
Http://opendatacommunities.org/id/metropolitan-district-council/leeds,Leeds City Council,30/04/2021,Resources and Housing,Leeds Building Services,Supplies and Services,Operational Materials,205,23/04/2021,2104-00462,0.00,590.45,R,ADI Global,No
Http://opendatacommunities.org/id/metropolitan-district-council/leeds,Leeds City Council,30/04/2021,Resources and Housing,Leeds Building Services,Supplies and Services,Operational Materials,205,23/04/2021,2104-00463,0.00,91.32,R,ADI Global,No
Http://opendatacommunities.org/id/metropolitan-district-council/leeds,Leeds City Council,30/04/2021,Communities and Environment,Community Safety,Supplies and Services,Other Hired And Contracted Services,265,18/03/2021,2104-00464,0.00,280.00,R,Adi-Gardiner Ltd,Yes
Http://opendatacommunities.org/id/metropolitan-district-council/leeds,Leeds City Council,30/04/2021,Insurance,Insurance,Supplies and Services,Insurance Claims,248,27/04/2021,2104-00465,0.00,22897.15,R,Admiral Law,No
Http://opendatacommunities.org/id/metropolitan-district-council/leeds,Leeds City Council,30/04/2021,Insurance,Insurance,Supplies and Services,Insurance Claims,248,27/04/2021,2104-00466,0.00,4986.86,R,Admiral Law,No
Http://opendatacommunities.org/id/metropolitan-district-council/leeds,Leeds City Council,30/04/2021,City Development,Libraries Arts & Heritage,Supplies and Services,Computer Software & Equipment,214,02/03/2021,2104-00467,0.00,25.28,R,Adobe Creative Cloud,Yes
Http://opendatacommunities.org/id/metropolitan-district-council/leeds,Leeds City Council,30/04/2021,Children and Families,Social Care,Agency Payments,Independent Fostering Agencies,509,01/04/2021,2104-00468,0.00,3332.00,R,Adolescent And Childrens Trust,No
Http://opendatacommunities.org/id/metropolitan-district-council/leeds,Leeds City Council,30/04/2021,Children and Families,Social Care,Agency Payments,Independent Fostering Agencies,509,01/04/2021,2104-00469,0.00,3164.00,R,Adolescent And Childrens Trust,No
Http://opendatacommunities.org/id/metropolitan-district-council/leeds,Leeds City Council,30/04/2021,Children and Families,Social Care,Agency Payments,Independent Fostering Agencies,509,01/04/2021,2104-00470,0.00,3164.00,R,Adolescent And Childrens Trust,No
Http://opendatacommunities.org/id/metropolitan-district-council/leeds,Leeds City Council,30/04/2021,Children and Families,Social Care,Agency Payments,Independent Fostering Agencies,509,01/04/2021,2104-00471,0.00,3164.00,R,Adolescent And Childrens Trust,No
Http://opendatacommunities.org/id/metropolitan-district-council/leeds,Leeds City Council,30/04/2021,Children and Families,Social Care,Agency Payments,Independent Fostering Agencies,509,01/04/2021,2104-00472,0.00,238.00,R,Adolescent And Childrens Trust,No
Http://opendatacommunities.org/id/metropolitan-district-council/leeds,Leeds City Council,30/04/2021,Children and Families,Social Care,Agency Payments,Independent Fostering Agencies,509,01/04/2021,2104-00473,0.00,3332.00,R,Adolescent And Childrens Trust,No
Http://opendatacommunities.org/id/metropolitan-district-council/leeds,Leeds City Council,30/04/2021,Children and Families,Social Care,Agency Payments,Independent Fostering Agencies,509,01/04/2021,2104-00474,0.00,3164.00,R,Adolescent And Childrens Trust,No
Http://opendatacommunities.org/id/metropolitan-district-council/leeds,Leeds City Council,30/04/2021,Children and Families,Social Care,Agency Payments,Independent Fostering Agencies,509,01/04/2021,2104-00475,0.00,3164.00,R,Adolescent And Childrens Trust,No
Http://opendatacommunities.org/id/metropolitan-district-council/leeds,Leeds City Council,30/04/2021,Children and Families,Social Care,Agency Payments,Independent Fostering Agencies,509,01/04/2021,2104-00476,0.00,3164.00,R,Adolescent And Childrens Trust,No
Http://opendatacommunities.org/id/metropolitan-district-council/leeds,Leeds City Council,30/04/2021,Children and Families,Social Care,Agency Payments,Independent Fostering Agencies,509,01/04/2021,2104-00477,0.00,3164.00,R,Adolescent And Childrens Trust,No
Http://opendatacommunities.org/id/metropolitan-district-council/leeds,Leeds City Council,30/04/2021,Children and Families,Social Care,Agency Payments,Independent Fostering Agencies,509,01/04/2021,2104-00478,0.00,4096.12,R,Adolescent And Childrens Trust,No
Http://opendatacommunities.org/id/metropolitan-district-council/leeds,Leeds City Council,30/04/2021,Children and Families,Social Care,Agency Payments,Independent Fostering Agencies,509,01/04/2021,2104-00479,0.00,3332.00,R,Adolescent And Childrens Trust,No
Http://opendatacommunities.org/id/metropolitan-district-council/leeds,Leeds City Council,30/04/2021,Children and Families,Social Care,Agency Payments,Independent Fostering Agencies,509,01/04/2021,2104-00480,0.00,3332.00,R,Adolescent And Childrens Trust,No
Http://opendatacommunities.org/id/metropolitan-district-council/leeds,Leeds City Council,30/04/2021,Children and Families,Social Care,Agency Payments,Independent Fostering Agencies,509,30/04/2021,2104-00481,0.00,3689.00,R,Adolescent And Childrens Trust,No
Http://opendatacommunities.org/id/metropolitan-district-council/leeds,Leeds City Council,30/04/2021,Children and Families,Social Care,Agency Payments,Independent Fostering Agencies,509,30/04/2021,2104-00482,0.00,3503.00,R,Adolescent And Childrens Trust,No
Http://opendatacommunities.org/id/metropolitan-district-council/leeds,Leeds City Council,30/04/2021,Children and Families,Social Care,Agency Payments,Independent Fostering Agencies,509,30/04/2021,2104-00483,0.00,3503.00,R,Adolescent And Childrens Trust,No
Http://opendatacommunities.org/id/metropolitan-district-council/leeds,Leeds City Council,30/04/2021,Children and Families,Social Care,Agency Payments,Independent Fostering Agencies,509,30/04/2021,2104-00484,0.00,3503.00,R,Adolescent And Childrens Trust,No
Http://opendatacommunities.org/id/metropolitan-district-council/leeds,Leeds City Council,30/04/2021,Children and Families,Social Care,Agency Payments,Independent Fostering Agencies,509,30/04/2021,2104-00485,0.00,3689.00,R,Adolescent And Childrens Trust,No
Http://opendatacommunities.org/id/metropolitan-district-council/leeds,Leeds City Council,30/04/2021,Children and Families,Social Care,Agency Payments,Independent Fostering Agencies,509,30/04/2021,2104-00486,0.00,1356.00,R,Adolescent And Childrens Trust,No
Http://opendatacommunities.org/id/metropolitan-district-council/leeds,Leeds City Council,30/04/2021,Children and Families,Social Care,Agency Payments,Independent Fostering Agencies,509,30/04/2021,2104-00487,0.00,1356.00,R,Adolescent And Childrens Trust,No
Http://opendatacommunities.org/id/metropolitan-district-council/leeds,Leeds City Council,30/04/2021,Children and Families,Social Care,Agency Payments,Independent Fostering Agencies,509,30/04/2021,2104-00488,0.00,1356.00,R,Adolescent And Childrens Trust,No
Http://opendatacommunities.org/id/metropolitan-district-council/leeds,Leeds City Council,30/04/2021,Children and Families,Social Care,Agency Payments,Independent Fostering Agencies,509,30/04/2021,2104-00489,0.00,3689.00,R,Adolescent And Childrens Trust,No
Http://opendatacommunities.org/id/metropolitan-district-council/leeds,Leeds City Council,30/04/2021,Children and Families,Social Care,Agency Payments,Independent Fostering Agencies,509,30/04/2021,2104-00490,0.00,3503.00,R,Adolescent And Childrens Trust,No
Http://opendatacommunities.org/id/metropolitan-district-council/leeds,Leeds City Council,30/04/2021,Children and Families,Social Care,Agency Payments,Independent Fostering Agencies,509,30/04/2021,2104-00491,0.00,4534.99,R,Adolescent And Childrens Trust,No
Http://opendatacommunities.org/id/metropolitan-district-council/leeds,Leeds City Council,30/04/2021,Children and Families,Social Care,Agency Payments,Independent Fostering Agencies,509,30/04/2021,2104-00492,0.00,3689.00,R,Adolescent And Childrens Trust,No
Http://opendatacommunities.org/id/metropolitan-district-council/leeds,Leeds City Council,30/04/2021,Children and Families,Social Care,Agency Payments,Independent Fostering Agencies,509,30/04/2021,2104-00493,0.00,3689.00,R,Adolescent And Childrens Trust,No
Http://opendatacommunities.org/id/metropolitan-district-council/leeds,Leeds City Council,30/04/2021,Adults and Health,Other Adult Services,Agency Payments,Payments To Voluntary Organisations,561,07/04/2021,2104-00494,0.00,77.80,R,Adopt Healthcare,No
Http://opendatacommunities.org/id/metropolitan-district-council/leeds,Leeds City Council,30/04/2021,Adults and Health,Services For Adults Under 65 Mental/Dis,Agency Payments,Home Care,568,22/04/2021,2104-00495,0.00,181.50,R,Adopt Healthcare,No
Http://opendatacommunities.org/id/metropolitan-district-council/leeds,Leeds City Council,30/04/2021,Adults and Health,Services For Adults Under 65 Mental/Dis,Agency Payments,Home Care,568,28/04/2021,2104-00496,0.00,198.00,R,Adopt Healthcare,No
Http://opendatacommunities.org/id/metropolitan-district-council/leeds,Leeds City Council,30/04/2021,Communities and Environment,Benefits Welfare and Poverty,Supplies and Services,Grant Related Expenditure,298,14/04/2021,2104-00497,0.00,500.00,R,REDACTED PERSONAL DATA,No
Http://opendatacommunities.org/id/metropolitan-district-council/leeds,Leeds City Council,30/04/2021,Communities and Environment,Benefits Welfare and Poverty,Supplies and Services,Grant Related Expenditure,290,08/04/2021,2104-00498,0.00,500.00,R,REDACTED PERSONAL DATA,No
Http://opendatacommunities.org/id/metropolitan-district-council/leeds,Leeds City Council,30/04/2021,Children and Families,Social Care,Agency Payments,Contact,548,08/04/2021,2104-00499,0.00,50.00,R,REDACTED PERSONAL DATA,No
Http://opendatacommunities.org/id/metropolitan-district-council/leeds,Leeds City Council,30/04/2021,Children and Families,Social Care,Agency Payments,Contact,548,09/04/2021,2104-00500,0.00,43.20,R,REDACTED PERSONAL DATA,No
Http://opendatacommunities.org/id/metropolitan-district-council/leeds,Leeds City Council,30/04/2021,Children and Families,Social Care,Agency Payments,Contact,548,23/04/2021,2104-00501,0.00,28.80,R,REDACTED PERSONAL DATA,No
Http://opendatacommunities.org/id/metropolitan-district-council/leeds,Leeds City Council,30/04/2021,Children and Families,Social Care,Agency Payments,Contact,548,27/04/2021,2104-00502,0.00,14.40,R,REDACTED PERSONAL DATA,No
Http://opendatacommunities.org/id/metropolitan-district-council/leeds,Leeds City Council as Accountable Body,30/04/2021,Social Services Pooled Budgets,Jcs For People With Learning Disabilitie,Agency Payments,Residential,580,01/04/2021,2104-00503,0.00,2609.36,R,ADRIAN HOUSE,No
Http://opendatacommunities.org/id/metropolitan-district-council/leeds,Leeds City Council,30/04/2021,City Development,Libraries Arts & Heritage,Supplies and Services,Other Hired And Contracted Services,265,24/03/2021,2104-00504,0.00,40.83,R,Adrienne Florist Limit,Yes
Http://opendatacommunities.org/id/metropolitan-district-council/leeds,Leeds City Council,30/04/2021,City Development,Libraries Arts & Heritage,Supplies and Services,Other Hired And Contracted Services,265,29/04/2021,2104-00505,0.00,85.00,R,ADVANCE STOCKS LTD,No
Http://opendatacommunities.org/id/metropolitan-district-council/leeds,Leeds City Council,30/04/2021,Children and Families,Social Care,Internal Recharges,Legal Disbursements,411,01/04/2021,2104-00506,0.00,1910.50,R,ADVANCED CHILD CARE ASSESSMENTS LTD,No
Http://opendatacommunities.org/id/metropolitan-district-council/leeds,Leeds City Council,30/04/2021,Children and Families,Social Care,Internal Recharges,Legal Disbursements,411,09/04/2021,2104-00507,0.00,294.06,R,ADVANCED CHILD CARE ASSESSMENTS LTD,No
Http://opendatacommunities.org/id/metropolitan-district-council/leeds,Leeds City Council,30/04/2021,Children and Families,Social Care,Internal Recharges,Legal Disbursements,411,09/04/2021,2104-00508,0.00,464.53,R,ADVANCED CHILD CARE ASSESSMENTS LTD,No
Http://opendatacommunities.org/id/metropolitan-district-council/leeds,Leeds City Council,30/04/2021,Children and Families,Social Care,Internal Recharges,Legal Disbursements,411,09/04/2021,2104-00509,0.00,295.00,R,ADVANCED CHILD CARE ASSESSMENTS LTD,No
Http://opendatacommunities.org/id/metropolitan-district-council/leeds,Leeds City Council,30/04/2021,Children and Families,Social Care,Internal Recharges,Legal Disbursements,411,12/04/2021,2104-00510,0.00,418.00,R,ADVANCED CHILD CARE ASSESSMENTS LTD,No
Http://opendatacommunities.org/id/metropolitan-district-council/leeds,Leeds City Council as Accountable Body,30/04/2021,Social Services Pooled Budgets,Jcs For People With Learning Disabilitie,Agency Payments,Home Care,568,01/04/2021,2104-00511,0.00,2292.22,R,Advantage Healthcare Ltd,No
Http://opendatacommunities.org/id/metropolitan-district-council/leeds,Leeds City Council as Accountable Body,30/04/2021,Social Services Pooled Budgets,Jcs For People With Learning Disabilitie,Agency Payments,Home Care,568,01/04/2021,2104-00512,0.00,2362.55,R,Advantage Healthcare Ltd,No
Http://opendatacommunities.org/id/metropolitan-district-council/leeds,Leeds City Council as Accountable Body,30/04/2021,Social Services Pooled Budgets,Jcs For People With Learning Disabilitie,Agency Payments,Home Care,568,01/04/2021,2104-00513,0.00,2292.22,R,Advantage Healthcare Ltd,No
Http://opendatacommunities.org/id/metropolitan-district-council/leeds,Leeds City Council as Accountable Body,30/04/2021,Social Services Pooled Budgets,Jcs For People With Learning Disabilitie,Agency Payments,Home Care,568,01/04/2021,2104-00514,0.00,2414.40,R,Advantage Healthcare Ltd,No
Http://opendatacommunities.org/id/metropolitan-district-council/leeds,Leeds City Council,30/04/2021,Adults and Health,Other Adult Services,Agency Payments,Residential,580,07/04/2021,2104-00515,0.00,869.04,R,Advantage Healthcare Ltd,No
Http://opendatacommunities.org/id/metropolitan-district-council/leeds,Leeds City Council as Accountable Body,30/04/2021,Social Services Pooled Budgets,Jcs For People With Learning Disabilitie,Agency Payments,Home Care,568,09/04/2021,2104-00516,0.00,2292.22,R,Advantage Healthcare Ltd,No
Http://opendatacommunities.org/id/metropolitan-district-council/leeds,Leeds City Council as Accountable Body,30/04/2021,Social Services Pooled Budgets,Jcs For People With Learning Disabilitie,Agency Payments,Home Care,568,09/04/2021,2104-00517,0.00,2492.63,R,Advantage Healthcare Ltd,No
Http://opendatacommunities.org/id/metropolitan-district-council/leeds,Leeds City Council as Accountable Body,30/04/2021,Social Services Pooled Budgets,Jcs For People With Learning Disabilitie,Agency Payments,Home Care,568,21/04/2021,2104-00518,0.00,997.92,R,Advantage Healthcare Ltd,No
Http://opendatacommunities.org/id/metropolitan-district-council/leeds,Leeds City Council as Accountable Body,30/04/2021,Social Services Pooled Budgets,Jcs For People With Learning Disabilitie,Agency Payments,Home Care,568,21/04/2021,2104-00519,0.00,2103.80,R,Advantage Healthcare Ltd,No
Http://opendatacommunities.org/id/metropolitan-district-council/leeds,Leeds City Council as Accountable Body,30/04/2021,Social Services Pooled Budgets,Jcs For People With Learning Disabilitie,Agency Payments,Home Care,568,23/04/2021,2104-00520,0.00,2292.22,R,Advantage Healthcare Ltd,No
Http://opendatacommunities.org/id/metropolitan-district-council/leeds,Leeds City Council as Accountable Body,30/04/2021,Social Services Pooled Budgets,Jcs For People With Learning Disabilitie,Agency Payments,Home Care,568,23/04/2021,2104-00521,0.00,2501.25,R,Advantage Healthcare Ltd,No
Http://opendatacommunities.org/id/metropolitan-district-council/leeds,Leeds City Council,30/04/2021,Resources and Housing,HRA Council Housing Growth Programme,Capital ,LAND,1,08/04/2021,2104-00522,0.00,121700.00,C,Advantage Property Lawyers,No
Http://opendatacommunities.org/id/metropolitan-district-council/leeds,Leeds City Council as Accountable Body,30/04/2021,Social Services Pooled Budgets,Jcs For People With Learning Disabilitie,Agency Payments,Residential,580,28/04/2021,2104-00523,0.00,17121.36,R,ADVITAM LTD,No
Http://opendatacommunities.org/id/metropolitan-district-council/leeds,Leeds City Council,30/04/2021,Adults and Health,Services For Older People - 65 And Over,Agency Payments,Payments To Voluntary Organisations,561,23/04/2021,2104-00524,0.00,103916.67,R,Advonet,No
Http://opendatacommunities.org/id/metropolitan-district-council/leeds,Leeds City Council as Accountable Body,30/04/2021,Social Services Pooled Budgets,Jcs For People With Learning Disabilitie,Agency Payments,Home Care,568,30/04/2021,2104-00525,0.00,32.40,R,Advonet,No
Http://opendatacommunities.org/id/metropolitan-district-council/leeds,Leeds City Council,30/04/2021,Adults and Health,Services For Adults Under 65 Mental/Dis,Agency Payments,Fees - Level 4,520,01/04/2021,2104-00526,0.00,198.00,R,AE BIA Assessments Limited,No
Http://opendatacommunities.org/id/metropolitan-district-council/leeds,Leeds City Council,30/04/2021,Adults and Health,Services For Adults Under 65 Mental/Dis,Agency Payments,Fees - Level 4,520,06/04/2021,2104-00527,0.00,198.00,R,AE BIA Assessments Limited,No
Http://opendatacommunities.org/id/metropolitan-district-council/leeds,Leeds City Council,30/04/2021,Adults and Health,Services For Adults Under 65 Mental/Dis,Agency Payments,Fees - Level 4,520,07/04/2021,2104-00528,0.00,198.00,R,AE BIA Assessments Limited,No
Http://opendatacommunities.org/id/metropolitan-district-council/leeds,Leeds City Council,30/04/2021,Adults and Health,Services For Adults Under 65 Mental/Dis,Agency Payments,Fees - Level 4,520,07/04/2021,2104-00529,0.00,198.00,R,AE BIA Assessments Limited,No
Http://opendatacommunities.org/id/metropolitan-district-council/leeds,Leeds City Council,30/04/2021,Adults and Health,Services For Adults Under 65 Mental/Dis,Agency Payments,Fees - Level 4,520,08/04/2021,2104-00530,0.00,198.00,R,AE BIA Assessments Limited,No
Http://opendatacommunities.org/id/metropolitan-district-council/leeds,Leeds City Council,30/04/2021,Adults and Health,Services For Adults Under 65 Mental/Dis,Agency Payments,Fees - Level 4,520,14/04/2021,2104-00531,0.00,198.00,R,AE BIA Assessments Limited,No
Http://opendatacommunities.org/id/metropolitan-district-council/leeds,Leeds City Council,30/04/2021,Adults and Health,Services For Adults Under 65 Mental/Dis,Agency Payments,Fees - Level 4,520,16/04/2021,2104-00532,0.00,198.00,R,AE BIA Assessments Limited,No
Http://opendatacommunities.org/id/metropolitan-district-council/leeds,Leeds City Council,30/04/2021,Adults and Health,Services For Adults Under 65 Mental/Dis,Agency Payments,Fees - Level 4,520,23/04/2021,2104-00533,0.00,246.53,R,AE BIA Assessments Limited,No
Http://opendatacommunities.org/id/metropolitan-district-council/leeds,Leeds City Council,30/04/2021,Adults and Health,Services For Adults Under 65 Mental/Dis,Agency Payments,Fees - Level 4,520,23/04/2021,2104-00534,0.00,198.00,R,AE BIA Assessments Limited,No
Http://opendatacommunities.org/id/metropolitan-district-council/leeds,Leeds City Council,30/04/2021,Adults and Health,Services For Adults Under 65 Mental/Dis,Agency Payments,Fees - Level 4,520,29/04/2021,2104-00535,0.00,200.00,R,AE BIA Assessments Limited,No
Http://opendatacommunities.org/id/metropolitan-district-council/leeds,Leeds City Council,30/04/2021,Adults and Health,Services For Adults Under 65 Mental/Dis,Agency Payments,Home Care,568,29/04/2021,2104-00536,0.00,-2.00,R,AE BIA Assessments Limited,No
Http://opendatacommunities.org/id/metropolitan-district-council/leeds,Leeds City Council,30/04/2021,Adults and Health,Services For Adults Under 65 Mental/Dis,Agency Payments,Fees - Level 4,520,30/04/2021,2104-00537,0.00,198.00,R,AE BIA Assessments Limited,No
Http://opendatacommunities.org/id/metropolitan-district-council/leeds,Leeds City Council,30/04/2021,City Development,Asset Management,Capital ,OTHER COSTS,7,01/04/2021,2104-00538,0.00,6206.43,C,Aecom Limited,No
Http://opendatacommunities.org/id/metropolitan-district-council/leeds,Leeds City Council,30/04/2021,City Development,Highways,Capital ,OTHER COSTS,7,07/04/2021,2104-00539,0.00,75097.75,C,Aecom Limited,No
Http://opendatacommunities.org/id/metropolitan-district-council/leeds,Leeds City Council,30/04/2021,City Development,Highways,Capital ,OTHER COSTS,7,12/04/2021,2104-00540,0.00,39211.54,C,Aecom Limited,No
Http://opendatacommunities.org/id/metropolitan-district-council/leeds,Leeds City Council,30/04/2021,City Development,Highways,Capital ,OTHER COSTS,7,12/04/2021,2104-00541,0.00,41401.80,C,Aecom Limited,No
Http://opendatacommunities.org/id/metropolitan-district-council/leeds,Leeds City Council,30/04/2021,City Development,Highways,Capital ,OTHER COSTS,7,21/04/2021,2104-00542,0.00,45426.75,C,Aecom Limited,No
Http://opendatacommunities.org/id/metropolitan-district-council/leeds,Leeds City Council,30/04/2021,City Development,Highways,Capital ,OTHER COSTS,7,28/04/2021,2104-00543,0.00,32147.86,C,Aecom Limited,No
Http://opendatacommunities.org/id/metropolitan-district-council/leeds,Leeds City Council,30/04/2021,Adults and Health,Services For Adults Under 65 Mental/Dis,Agency Payments,Home Care,568,01/04/2021,2104-00544,0.00,1278.00,R,Aegis Care Solutions Ltd,No
Http://opendatacommunities.org/id/metropolitan-district-council/leeds,Leeds City Council,30/04/2021,Adults and Health,Services For Adults Under 65 Mental/Dis,Agency Payments,Home Care,568,01/04/2021,2104-00545,0.00,640.80,R,Aegis Care Solutions Ltd,No
Http://opendatacommunities.org/id/metropolitan-district-council/leeds,Leeds City Council,30/04/2021,Adults and Health,Services For Adults Under 65 Mental/Dis,Agency Payments,Home Care,568,01/04/2021,2104-00546,0.00,1812.00,R,Aegis Care Solutions Ltd,No
Http://opendatacommunities.org/id/metropolitan-district-council/leeds,Leeds City Council,30/04/2021,Adults and Health,Services For Adults Under 65 Mental/Dis,Agency Payments,Home Care,568,01/04/2021,2104-00547,0.00,3827.20,R,Aegis Care Solutions Ltd,No
Http://opendatacommunities.org/id/metropolitan-district-council/leeds,Leeds City Council,30/04/2021,Adults and Health,Services For Adults Under 65 Mental/Dis,Agency Payments,Home Care,568,01/04/2021,2104-00548,0.00,1122.00,R,Aegis Care Solutions Ltd,No
Http://opendatacommunities.org/id/metropolitan-district-council/leeds,Leeds City Council,30/04/2021,Adults and Health,Services For Older People - 65 And Over,Agency Payments,Home Care,568,14/04/2021,2104-00549,0.00,23542.11,R,Aegis Care Solutions Ltd,No
Http://opendatacommunities.org/id/metropolitan-district-council/leeds,Leeds City Council,30/04/2021,Adults and Health,Services For Older People Under 65 P/Dis,Agency Payments,Home Care,568,14/04/2021,2104-00550,0.00,7056.50,R,Aegis Care Solutions Ltd,No
Http://opendatacommunities.org/id/metropolitan-district-council/leeds,Leeds City Council,30/04/2021,Adults and Health,Services For Older People Under 65 P/Dis,Agency Payments,HCAIT Community Support,575,14/04/2021,2104-00551,0.00,76.60,R,Aegis Care Solutions Ltd,No
Http://opendatacommunities.org/id/metropolitan-district-council/leeds,Leeds City Council as Accountable Body,30/04/2021,Social Services Pooled Budgets,Jcs For People With Learning Disabilitie,Agency Payments,Home Care,568,14/04/2021,2104-00552,0.00,1948.80,R,Aegis Care Solutions Ltd,No
Http://opendatacommunities.org/id/metropolitan-district-council/leeds,Leeds City Council,30/04/2021,Adults and Health,Services For Adults Under 65 Mental/Dis,Agency Payments,Home Care,568,22/04/2021,2104-00553,0.00,641.00,R,Aegis Care Solutions Ltd,No
Http://opendatacommunities.org/id/metropolitan-district-council/leeds,Leeds City Council,30/04/2021,Adults and Health,Services For Adults Under 65 Mental/Dis,Agency Payments,Home Care,568,22/04/2021,2104-00554,0.00,1028.80,R,Aegis Care Solutions Ltd,No
Http://opendatacommunities.org/id/metropolitan-district-council/leeds,Leeds City Council,30/04/2021,Children and Families,Social Care,Supplies and Services,Subsistence,256,14/03/2021,2104-00555,0.00,10.10,R,Afc,Yes
Http://opendatacommunities.org/id/metropolitan-district-council/leeds,Leeds City Council as Accountable Body,30/04/2021,Social Services Pooled Budgets,Jcs For People With Learning Disabilitie,Agency Payments,Home Care,568,09/04/2021,2104-00556,0.00,269.12,R,Affinity Trust,No
Http://opendatacommunities.org/id/metropolitan-district-council/leeds,Leeds City Council as Accountable Body,30/04/2021,Social Services Pooled Budgets,Jcs For People With Learning Disabilitie,Agency Payments,Home Care,568,09/04/2021,2104-00557,0.00,269.12,R,Affinity Trust,No
Http://opendatacommunities.org/id/metropolitan-district-council/leeds,Leeds City Council as Accountable Body,30/04/2021,Social Services Pooled Budgets,Jcs For People With Learning Disabilitie,Agency Payments,Home Care,568,09/04/2021,2104-00558,0.00,269.12,R,Affinity Trust,No
Http://opendatacommunities.org/id/metropolitan-district-council/leeds,Leeds City Council as Accountable Body,30/04/2021,Social Services Pooled Budgets,Jcs For People With Learning Disabilitie,Agency Payments,Home Care,568,09/04/2021,2104-00559,0.00,319.60,R,Affinity Trust,No
Http://opendatacommunities.org/id/metropolitan-district-council/leeds,Leeds City Council,30/04/2021,Adults and Health,Assessment And Care Management,Agency Payments,Home Care,568,09/04/2021,2104-00560,0.00,94.28,R,Affinity Trust,No
Http://opendatacommunities.org/id/metropolitan-district-council/leeds,Leeds City Council,30/04/2021,Adults and Health,Services For Older People - 65 And Over,Agency Payments,Home Care,568,09/04/2021,2104-00561,0.00,-0.02,R,Affinity Trust,No
Http://opendatacommunities.org/id/metropolitan-district-council/leeds,Leeds City Council,30/04/2021,Adults and Health,Services For Older People - 65 And Over,Agency Payments,HCAIT Community Support,575,09/04/2021,2104-00562,0.00,575.28,R,Affinity Trust,No
Http://opendatacommunities.org/id/metropolitan-district-council/leeds,Leeds City Council,30/04/2021,Adults and Health,Services For Older People - 65 And Over,Agency Payments,Home Care,568,09/04/2021,2104-00563,0.00,335.58,R,Affinity Trust,No
Http://opendatacommunities.org/id/metropolitan-district-council/leeds,Leeds City Council,30/04/2021,Adults and Health,Services For Older People Under 65 P/Dis,Agency Payments,Home Care,568,09/04/2021,2104-00564,0.00,607.24,R,Affinity Trust,No
Http://opendatacommunities.org/id/metropolitan-district-council/leeds,Leeds City Council as Accountable Body,30/04/2021,Social Services Pooled Budgets,Jcs For People With Learning Disabilitie,Agency Payments,Home Care,568,09/04/2021,2104-00565,0.00,319.60,R,Affinity Trust,No
Http://opendatacommunities.org/id/metropolitan-district-council/leeds,Leeds City Council,30/04/2021,Adults and Health,Services For Older People - 65 And Over,Agency Payments,HCAIT Community Support,575,09/04/2021,2104-00566,0.00,575.28,R,Affinity Trust,No
Http://opendatacommunities.org/id/metropolitan-district-council/leeds,Leeds City Council as Accountable Body,30/04/2021,Social Services Pooled Budgets,Jcs For People With Learning Disabilitie,Agency Payments,Home Care,568,23/04/2021,2104-00567,0.00,269.12,R,Affinity Trust,No
Http://opendatacommunities.org/id/metropolitan-district-council/leeds,Leeds City Council as Accountable Body,30/04/2021,Social Services Pooled Budgets,Jcs For People With Learning Disabilitie,Agency Payments,Home Care,568,23/04/2021,2104-00568,0.00,1342.32,R,Affinity Trust,No
Http://opendatacommunities.org/id/metropolitan-district-council/leeds,Leeds City Council as Accountable Body,30/04/2021,Social Services Pooled Budgets,Jcs For People With Learning Disabilitie,Agency Payments,Home Care,568,23/04/2021,2104-00569,0.00,127.84,R,Affinity Trust,No
Http://opendatacommunities.org/id/metropolitan-district-council/leeds,Leeds City Council as Accountable Body,30/04/2021,Social Services Pooled Budgets,Jcs For People With Learning Disabilitie,Agency Payments,Home Care,568,23/04/2021,2104-00570,0.00,990.76,R,Affinity Trust,No
Http://opendatacommunities.org/id/metropolitan-district-council/leeds,Leeds City Council as Accountable Body,30/04/2021,Social Services Pooled Budgets,Jcs For People With Learning Disabilitie,Agency Payments,Day Centre,564,23/04/2021,2104-00571,0.00,416.64,R,Affinity Trust,No
Http://opendatacommunities.org/id/metropolitan-district-council/leeds,Leeds City Council as Accountable Body,30/04/2021,Social Services Pooled Budgets,Jcs For People With Learning Disabilitie,Agency Payments,Home Care,568,23/04/2021,2104-00572,0.00,1446.52,R,Affinity Trust,No
Http://opendatacommunities.org/id/metropolitan-district-council/leeds,Leeds City Council as Accountable Body,30/04/2021,Social Services Pooled Budgets,Jcs For People With Learning Disabilitie,Agency Payments,Home Care,568,23/04/2021,2104-00573,0.00,1211.04,R,Affinity Trust,No
Http://opendatacommunities.org/id/metropolitan-district-council/leeds,Leeds City Council as Accountable Body,30/04/2021,Social Services Pooled Budgets,Jcs For People With Learning Disabilitie,Agency Payments,Home Care,568,23/04/2021,2104-00574,0.00,639.20,R,Affinity Trust,No
Http://opendatacommunities.org/id/metropolitan-district-council/leeds,Leeds City Council as Accountable Body,30/04/2021,Social Services Pooled Budgets,Jcs For People With Learning Disabilitie,Agency Payments,Day Centre,564,23/04/2021,2104-00575,0.00,263.67,R,Affinity Trust,No
Http://opendatacommunities.org/id/metropolitan-district-council/leeds,Leeds City Council as Accountable Body,30/04/2021,Social Services Pooled Budgets,Jcs For People With Learning Disabilitie,Agency Payments,Home Care,568,23/04/2021,2104-00576,0.00,408.00,R,Affinity Trust,No
Http://opendatacommunities.org/id/metropolitan-district-council/leeds,Leeds City Council as Accountable Body,30/04/2021,Social Services Pooled Budgets,Jcs For People With Learning Disabilitie,Agency Payments,Home Care,568,23/04/2021,2104-00577,0.00,886.89,R,Affinity Trust,No
Http://opendatacommunities.org/id/metropolitan-district-council/leeds,Leeds City Council as Accountable Body,30/04/2021,Social Services Pooled Budgets,Jcs For People With Learning Disabilitie,Agency Payments,Home Care,568,23/04/2021,2104-00578,0.00,3859.17,R,Affinity Trust,No
Http://opendatacommunities.org/id/metropolitan-district-council/leeds,Leeds City Council as Accountable Body,30/04/2021,Social Services Pooled Budgets,Jcs For People With Learning Disabilitie,Agency Payments,Home Care,568,23/04/2021,2104-00579,0.00,408.64,R,Affinity Trust,No
Http://opendatacommunities.org/id/metropolitan-district-council/leeds,Leeds City Council as Accountable Body,30/04/2021,Social Services Pooled Budgets,Jcs For People With Learning Disabilitie,Agency Payments,Home Care,568,23/04/2021,2104-00580,0.00,142.97,R,Affinity Trust,No
Http://opendatacommunities.org/id/metropolitan-district-council/leeds,Leeds City Council as Accountable Body,30/04/2021,Social Services Pooled Budgets,Jcs For People With Learning Disabilitie,Agency Payments,Home Care,568,23/04/2021,2104-00581,0.00,958.80,R,Affinity Trust,No
Http://opendatacommunities.org/id/metropolitan-district-council/leeds,Leeds City Council as Accountable Body,30/04/2021,Social Services Pooled Budgets,Jcs For People With Learning Disabilitie,Agency Payments,Home Care,568,23/04/2021,2104-00582,0.00,479.40,R,Affinity Trust,No
Http://opendatacommunities.org/id/metropolitan-district-council/leeds,Leeds City Council as Accountable Body,30/04/2021,Social Services Pooled Budgets,Jcs For People With Learning Disabilitie,Agency Payments,Home Care,568,23/04/2021,2104-00583,0.00,191.76,R,Affinity Trust,No
Http://opendatacommunities.org/id/metropolitan-district-council/leeds,Leeds City Council,30/04/2021,Adults and Health,Services For Adults Under 65 Mental/Dis,Agency Payments,Home Care,568,23/04/2021,2104-00584,0.00,463.42,R,Affinity Trust,No
Http://opendatacommunities.org/id/metropolitan-district-council/leeds,Leeds City Council,30/04/2021,Adults and Health,Services For Older People Under 65 P/Dis,Agency Payments,Home Care,568,23/04/2021,2104-00585,0.00,807.36,R,Affinity Trust,No
Http://opendatacommunities.org/id/metropolitan-district-council/leeds,Leeds City Council,30/04/2021,Adults and Health,Services For Older People Under 65 P/Dis,Agency Payments,Home Care,568,23/04/2021,2104-00586,0.00,740.08,R,Affinity Trust,No
Http://opendatacommunities.org/id/metropolitan-district-council/leeds,Leeds City Council,30/04/2021,Adults and Health,Services For Older People - 65 And Over,Agency Payments,Home Care,568,23/04/2021,2104-00587,0.00,359.55,R,Affinity Trust,No
Http://opendatacommunities.org/id/metropolitan-district-council/leeds,Leeds City Council,30/04/2021,Adults and Health,Services For Older People Under 65 P/Dis,Agency Payments,Home Care,568,23/04/2021,2104-00588,0.00,551.31,R,Affinity Trust,No
Http://opendatacommunities.org/id/metropolitan-district-council/leeds,Leeds City Council as Accountable Body,30/04/2021,Social Services Pooled Budgets,Jcs For People With Learning Disabilitie,Agency Payments,Home Care,568,28/04/2021,2104-00589,0.00,1613.28,R,Affinity Trust,No
Http://opendatacommunities.org/id/metropolitan-district-council/leeds,Leeds City Council as Accountable Body,30/04/2021,Social Services Pooled Budgets,Jcs For People With Learning Disabilitie,Agency Payments,Home Care,568,28/04/2021,2104-00590,0.00,1613.28,R,Affinity Trust,No
Http://opendatacommunities.org/id/metropolitan-district-council/leeds,Leeds City Council,30/04/2021,Adults and Health,Services For Older People Under 65 P/Dis,Agency Payments,Sheltered Accommodation,569,28/04/2021,2104-00591,0.00,-53890.20,R,Affinity Trust North Divisional Office,No
Http://opendatacommunities.org/id/metropolitan-district-council/leeds,Leeds City Council as Accountable Body,30/04/2021,Social Services Pooled Budgets,Jcs For People With Learning Disabilitie,Agency Payments,Sheltered Accommodation,569,28/04/2021,2104-00592,0.00,116074.60,R,Affinity Trust North Divisional Office,No
Http://opendatacommunities.org/id/metropolitan-district-council/leeds,Leeds City Council,30/04/2021,Communities and Environment,Parks and Countryside,Transport,Hire Of Movable Plant & Machinery,315,22/03/2021,2104-00593,0.00,150.00,R,Afi Uplift,Yes
Http://opendatacommunities.org/id/metropolitan-district-council/leeds,Leeds City Council,30/04/2021,Communities and Environment,Parks and Countryside,Transport,External Hire -Occasional,304,22/03/2021,2104-00594,0.00,950.00,R,Afi Uplift,Yes
Http://opendatacommunities.org/id/metropolitan-district-council/leeds,Leeds City Council,30/04/2021,Communities and Environment,Parks and Countryside,Transport,External Hire -Occasional,304,22/03/2021,2104-00595,0.00,950.00,R,Afi Uplift,Yes
Http://opendatacommunities.org/id/metropolitan-district-council/leeds,Leeds City Council,30/04/2021,Communities and Environment,Parks and Countryside,Transport,External Hire -Occasional,304,22/03/2021,2104-00596,0.00,950.00,R,Afi Uplift,Yes
Http://opendatacommunities.org/id/metropolitan-district-council/leeds,Leeds City Council,30/04/2021,Communities and Environment,Parks and Countryside,Transport,External Hire -Occasional,304,22/03/2021,2104-00597,0.00,950.00,R,Afi Uplift,Yes
Http://opendatacommunities.org/id/metropolitan-district-council/leeds,Leeds City Council,30/04/2021,Communities and Environment,Benefits Welfare and Poverty,Supplies and Services,Grant Related Expenditure,298,16/04/2021,2104-00598,0.00,500.00,R,REDACTED PERSONAL DATA,No
Http://opendatacommunities.org/id/metropolitan-district-council/leeds,Leeds City Council,30/04/2021,Resources and Housing,Commercial Services,Supplies and Services,Compensation Claims,200,19/04/2021,2104-00599,0.00,572.00,R,REDACTED PERSONAL DATA,No
Http://opendatacommunities.org/id/metropolitan-district-council/leeds,Leeds City Council,30/04/2021,Communities and Environment,Benefits Welfare and Poverty,Supplies and Services,Grant Related Expenditure,290,14/04/2021,2104-00600,0.00,500.00,R,REDACTED PERSONAL DATA,No
Http://opendatacommunities.org/id/metropolitan-district-council/leeds,Leeds City Council,30/04/2021,Adults and Health,Public Health,Agency Payments,Services Rendered By Voluntary Sector,505,01/04/2021,2104-00601,0.00,5000.00,R,Age Uk Leeds,No
Http://opendatacommunities.org/id/metropolitan-district-council/leeds,Leeds City Council,30/04/2021,Adults and Health,Services For Older People - 65 And Over,Agency Payments,Payments To Voluntary Organisations,561,01/04/2021,2104-00602,0.00,10599.75,R,Age Uk Leeds,No
Http://opendatacommunities.org/id/metropolitan-district-council/leeds,Leeds City Council,30/04/2021,City Development,Highways,Supplies and Services,Operational Materials,205,30/04/2021,2104-00603,0.00,3934.70,R,AGGREGATE INDUSTRIES UK LTD,No
Http://opendatacommunities.org/id/metropolitan-district-council/leeds,Leeds City Council,30/04/2021,City Development,Highways,Supplies and Services,Operational Materials,205,30/04/2021,2104-00604,0.00,2052.30,R,AGGREGATE INDUSTRIES UK LTD,No
Http://opendatacommunities.org/id/metropolitan-district-council/leeds,Leeds City Council,30/04/2021,Communities and Environment,Parks and Countryside,Supplies and Services,Operational Materials,205,01/04/2021,2104-00605,0.00,591.00,R,Agrovista UK Ltd,No
Http://opendatacommunities.org/id/metropolitan-district-council/leeds,Leeds City Council,30/04/2021,Communities and Environment,Waste Management,Premises,General Maintenance,104,09/04/2021,2104-00606,0.00,947.83,R,AGS Aluminium Glass Systems Ltd,No
Http://opendatacommunities.org/id/metropolitan-district-council/leeds,Leeds City Council,30/04/2021,Communities and Environment,Benefits Welfare and Poverty,Supplies and Services,Grant Related Expenditure,290,22/04/2021,2104-00607,0.00,500.00,R,REDACTED PERSONAL DATA,No
Http://opendatacommunities.org/id/metropolitan-district-council/leeds,Leeds City Council,30/04/2021,City Development,Recreation,External Income,Swimming Bath Charges,923,29/04/2021,2104-00608,0.00,24.00,R,REDACTED PERSONAL DATA,No
Http://opendatacommunities.org/id/metropolitan-district-council/leeds,Leeds City Council,30/04/2021,Communities and Environment,Customer Access,Supplies and Services,Bought In Professional Services,277,09/04/2021,2104-00609,0.00,9.00,R,Ahmed Moustafa Moustafa Mousa,No
Http://opendatacommunities.org/id/metropolitan-district-council/leeds,Leeds City Council,30/04/2021,Communities and Environment,Customer Access,Supplies and Services,Bought In Professional Services,277,09/04/2021,2104-00610,0.00,39.80,R,Ahmed T. Al-Hamdi,No
Http://opendatacommunities.org/id/metropolitan-district-council/leeds,Leeds City Council,30/04/2021,Communities and Environment,Customer Access,Supplies and Services,Bought In Professional Services,277,28/04/2021,2104-00611,0.00,23.90,R,Ahmed T. Al-Hamdi,No
Http://opendatacommunities.org/id/metropolitan-district-council/leeds,Leeds City Council,30/04/2021,Children and Families,Social Care,Supplies and Services,Operational Furniture And Equipment,203,22/03/2021,2104-00612,0.00,66.66,R,Ahs Direct / Bbm,Yes
Http://opendatacommunities.org/id/metropolitan-district-council/leeds,Leeds City Council,30/04/2021,City Development,Economic Development,Supplies and Services,Grant Related Expenditure,290,07/04/2021,2104-00613,0.00,500.00,R,REDACTED PERSONAL DATA,No
Http://opendatacommunities.org/id/metropolitan-district-council/leeds,Leeds City Council,30/04/2021,Communities and Environment,Benefits Welfare and Poverty,Supplies and Services,Grant Related Expenditure,290,07/04/2021,2104-00614,0.00,500.00,R,REDACTED PERSONAL DATA,No
Http://opendatacommunities.org/id/metropolitan-district-council/leeds,Leeds City Council as Accountable Body,30/04/2021,Social Services Pooled Budgets,Leeds Community Equip Store Pooled Budgt,Supplies and Services,Other Equipment,203,01/04/2021,2104-00615,0.00,715.00,R,AIDAPT BATHROOMS LTD,No
Http://opendatacommunities.org/id/metropolitan-district-council/leeds,Leeds City Council as Accountable Body,30/04/2021,Social Services Pooled Budgets,Leeds Community Equip Store Pooled Budgt,Supplies and Services,Other Equipment,203,09/04/2021,2104-00616,0.00,541.29,R,AIDAPT BATHROOMS LTD,No
Http://opendatacommunities.org/id/metropolitan-district-council/leeds,Leeds City Council as Accountable Body,30/04/2021,Social Services Pooled Budgets,Leeds Community Equip Store Pooled Budgt,Supplies and Services,Other Equipment,203,13/04/2021,2104-00617,0.00,1430.00,R,AIDAPT BATHROOMS LTD,No
Http://opendatacommunities.org/id/metropolitan-district-council/leeds,Leeds City Council as Accountable Body,30/04/2021,Social Services Pooled Budgets,Leeds Community Equip Store Pooled Budgt,Supplies and Services,Other Equipment,203,13/04/2021,2104-00618,0.00,500.00,R,AIDAPT BATHROOMS LTD,No
Http://opendatacommunities.org/id/metropolitan-district-council/leeds,Leeds City Council as Accountable Body,30/04/2021,Social Services Pooled Budgets,Leeds Community Equip Store Pooled Budgt,Supplies and Services,Other Equipment,203,13/04/2021,2104-00619,0.00,637.25,R,AIDAPT BATHROOMS LTD,No
Http://opendatacommunities.org/id/metropolitan-district-council/leeds,Leeds City Council as Accountable Body,30/04/2021,Social Services Pooled Budgets,Leeds Community Equip Store Pooled Budgt,Supplies and Services,Other Equipment,203,16/04/2021,2104-00620,0.00,627.75,R,AIDAPT BATHROOMS LTD,No
Http://opendatacommunities.org/id/metropolitan-district-council/leeds,Leeds City Council as Accountable Body,30/04/2021,Social Services Pooled Budgets,Leeds Community Equip Store Pooled Budgt,Supplies and Services,Other Equipment,203,23/04/2021,2104-00621,0.00,773.70,R,AIDAPT BATHROOMS LTD,No
Http://opendatacommunities.org/id/metropolitan-district-council/leeds,Leeds City Council as Accountable Body,30/04/2021,Social Services Pooled Budgets,Leeds Community Equip Store Pooled Budgt,Supplies and Services,Other Equipment,203,30/04/2021,2104-00622,0.00,515.80,R,AIDAPT BATHROOMS LTD,No
Http://opendatacommunities.org/id/metropolitan-district-council/leeds,Leeds City Council as Accountable Body,30/04/2021,Social Services Pooled Budgets,Leeds Community Equip Store Pooled Budgt,Supplies and Services,Other Equipment,203,30/04/2021,2104-00623,0.00,599.70,R,AIDAPT BATHROOMS LTD,No
Http://opendatacommunities.org/id/metropolitan-district-council/leeds,Leeds City Council as Accountable Body,30/04/2021,Social Services Pooled Budgets,Leeds Community Equip Store Pooled Budgt,Supplies and Services,Other Equipment,203,30/04/2021,2104-00624,0.00,1550.00,R,AIDAPT BATHROOMS LTD,No
Http://opendatacommunities.org/id/metropolitan-district-council/leeds,Leeds City Council as Accountable Body,30/04/2021,Social Services Pooled Budgets,Leeds Community Equip Store Pooled Budgt,Supplies and Services,Other Equipment,203,30/04/2021,2104-00625,0.00,570.00,R,AIDAPT BATHROOMS LTD,No
Http://opendatacommunities.org/id/metropolitan-district-council/leeds,Leeds City Council,30/04/2021,Communities and Environment,Environmental Health,Supplies and Services,Other Hired And Contracted Services,265,09/04/2021,2104-00626,0.00,564.10,R,AIR LIQUIDE UK,No
Http://opendatacommunities.org/id/metropolitan-district-council/leeds,Leeds City Council,30/04/2021,Communities and Environment,Environmental Health,Supplies and Services,Other Hired And Contracted Services,265,09/04/2021,2104-00627,0.00,564.10,R,AIR LIQUIDE UK,No
Http://opendatacommunities.org/id/metropolitan-district-council/leeds,Leeds City Council,30/04/2021,Communities and Environment,Environmental Health,Supplies and Services,Other Hired And Contracted Services,265,30/04/2021,2104-00628,0.00,10.77,R,AIR LIQUIDE UK,No
Http://opendatacommunities.org/id/metropolitan-district-council/leeds,Leeds City Council,30/04/2021,Communities and Environment,Environmental Health,Supplies and Services,Other Hired And Contracted Services,265,30/04/2021,2104-00629,0.00,10.77,R,AIR LIQUIDE UK,No
Http://opendatacommunities.org/id/metropolitan-district-council/leeds,Leeds City Council,30/04/2021,Communities and Environment,Environmental Health,Supplies and Services,Other Hired And Contracted Services,265,30/04/2021,2104-00630,0.00,16.64,R,AIR LIQUIDE UK,No
Http://opendatacommunities.org/id/metropolitan-district-council/leeds,Leeds City Council,30/04/2021,Communities and Environment,Environmental Health,Supplies and Services,Other Hired And Contracted Services,265,30/04/2021,2104-00631,0.00,75.39,R,AIR LIQUIDE UK,No
Http://opendatacommunities.org/id/metropolitan-district-council/leeds,Leeds City Council,30/04/2021,Children and Families,Social Care,Agency Payments,Placement Support,550,12/03/2021,2104-00632,0.00,1817.00,R,Airbnb * Hm3349rcxj,Yes
Http://opendatacommunities.org/id/metropolitan-district-council/leeds,Leeds City Council,30/04/2021,Children and Families,Social Care,Agency Payments,Placement Support,550,12/03/2021,2104-00633,0.00,-1817.00,R,Airbnb * Hm3349rcxj,Yes
Http://opendatacommunities.org/id/metropolitan-district-council/leeds,Leeds City Council,30/04/2021,Children and Families,Social Care,Agency Payments,Placement Support,550,12/03/2021,2104-00634,0.00,1818.96,R,Airbnb * Hmmswr2xkq,Yes
Http://opendatacommunities.org/id/metropolitan-district-council/leeds,Leeds City Council,30/04/2021,Resources and Housing,Digital and Information Services,Capital ,OTHER COSTS,7,06/04/2021,2104-00635,0.00,44750.00,C,Aire Logic Ltd,No
Http://opendatacommunities.org/id/metropolitan-district-council/leeds,Leeds City Council,30/04/2021,Resources and Housing,Digital and Information Services,Capital ,OTHER COSTS,7,30/04/2021,2104-00636,0.00,25400.00,C,Aire Logic Ltd,No
Http://opendatacommunities.org/id/metropolitan-district-council/leeds,Leeds City Council,30/04/2021,Communities and Environment,Parks and Countryside,Supplies and Services,Other Hired And Contracted Services,265,01/04/2021,2104-00637,0.00,1500.00,R,Aire Valley Tree Services Ltd,No
Http://opendatacommunities.org/id/metropolitan-district-council/leeds,Leeds City Council,30/04/2021,Communities and Environment,Parks and Countryside,Supplies and Services,Other Hired And Contracted Services,265,01/04/2021,2104-00638,0.00,225.00,R,Aire Valley Tree Services Ltd,No
Http://opendatacommunities.org/id/metropolitan-district-council/leeds,Leeds City Council,30/04/2021,Communities and Environment,Parks and Countryside,Supplies and Services,Other Hired And Contracted Services,265,23/04/2021,2104-00639,0.00,920.00,R,Aire Valley Tree Services Ltd,No
Http://opendatacommunities.org/id/metropolitan-district-council/leeds,Leeds City Council,30/04/2021,Communities and Environment,Parks and Countryside,Supplies and Services,Other Hired And Contracted Services,265,28/04/2021,2104-00640,0.00,1555.00,R,Aire Valley Tree Services Ltd,No
Http://opendatacommunities.org/id/metropolitan-district-council/leeds,Leeds City Council,30/04/2021,Adults and Health,Services For Older People - 65 And Over,Agency Payments,Residential Care Dementia,571,28/04/2021,2104-00641,0.00,38985.19,R,Aire View Residential Home,No
Http://opendatacommunities.org/id/metropolitan-district-council/leeds,Leeds City Council,30/04/2021,Adults and Health,Services For Older People - 65 And Over,Agency Payments,Residential,580,28/04/2021,2104-00642,0.00,6290.16,R,Aire View Residential Home,No
Http://opendatacommunities.org/id/metropolitan-district-council/leeds,Leeds City Council,30/04/2021,Children and Families,Social Care,Agency Payments,Section 17,551,07/04/2021,2104-00643,0.00,104.17,R,Aireborough Skip Hire Ltd,No
Http://opendatacommunities.org/id/metropolitan-district-council/leeds,Leeds City Council,30/04/2021,Adults and Health,Services For Older People - 65 And Over,Agency Payments,Residential Care Dementia,571,28/04/2021,2104-00644,0.00,1550.74,R,Airedale Care Home,No
Http://opendatacommunities.org/id/metropolitan-district-council/leeds,Leeds City Council,30/04/2021,Adults and Health,Services For Older People - 65 And Over,Agency Payments,Residential,580,28/04/2021,2104-00645,0.00,16061.22,R,Airedale Care Home,No
Http://opendatacommunities.org/id/metropolitan-district-council/leeds,Leeds City Council,30/04/2021,Children and Families,Social Care,Supplies and Services,Operational Furniture And Equipment,203,14/04/2021,2104-00646,0.00,1005.00,R,AIREDALE CATERING EQUIPMENT LTD,No
Http://opendatacommunities.org/id/metropolitan-district-council/leeds,Leeds City Council,30/04/2021,Resources and Housing,Leeds Building Services,Supplies and Services,Other Hired And Contracted Services,265,14/04/2021,2104-00647,0.00,90.00,R,AIREDALE CATERING EQUIPMENT LTD,No
Http://opendatacommunities.org/id/metropolitan-district-council/leeds,Leeds City Council,30/04/2021,Resources and Housing,Leeds Building Services,Supplies and Services,Other Hired And Contracted Services,265,16/04/2021,2104-00648,0.00,898.00,R,AIREDALE CATERING EQUIPMENT LTD,No
Http://opendatacommunities.org/id/metropolitan-district-council/leeds,Leeds City Council,30/04/2021,Resources and Housing,Commercial Services,Supplies and Services,Operational Furniture And Equipment,203,28/04/2021,2104-00649,0.00,1206.00,R,AIREDALE CATERING EQUIPMENT LTD,No
Http://opendatacommunities.org/id/metropolitan-district-council/leeds,Leeds City Council,30/04/2021,Resources and Housing,Leeds Building Services,Supplies and Services,Other Hired And Contracted Services,265,28/04/2021,2104-00650,0.00,1708.00,R,AIREDALE CATERING EQUIPMENT LTD,No
Http://opendatacommunities.org/id/metropolitan-district-council/leeds,Leeds City Council,30/04/2021,Communities and Environment,Parks and Countryside,Supplies and Services,Other Hired And Contracted Services,265,07/04/2021,2104-00651,0.00,1014.40,R,Airedon Limited,No
Http://opendatacommunities.org/id/metropolitan-district-council/leeds,Leeds City Council,30/04/2021,City Development,Employment & Skills,Agency Payments,Contributions To Partnerships,544,19/04/2021,2104-00652,0.00,5000.00,R,Airnow Cybersecurity Limited,No
Http://opendatacommunities.org/id/metropolitan-district-council/leeds,Leeds City Council,30/04/2021,City Development,Employment & Skills,Agency Payments,Contributions To Partnerships,544,19/04/2021,2104-00653,0.00,1000.00,R,Airnow Cybersecurity Limited,No
Http://opendatacommunities.org/id/metropolitan-district-council/leeds,Leeds City Council,30/04/2021,Children and Families,Social Care,Appropriations,Leaving Care Allowances,634,16/03/2021,2104-00654,0.00,12.85,R,Airpay,Yes
Http://opendatacommunities.org/id/metropolitan-district-council/leeds,Leeds City Council,30/04/2021,Children and Families,Social Care,Appropriations,Leaving Care Allowances,634,16/03/2021,2104-00655,0.00,15.15,R,Airpay,Yes
Http://opendatacommunities.org/id/metropolitan-district-council/leeds,Leeds City Council,30/04/2021,Children and Families,Social Care,Appropriations,Leaving Care Allowances,634,17/03/2021,2104-00656,0.00,13.45,R,Airpay,Yes
Http://opendatacommunities.org/id/metropolitan-district-council/leeds,Leeds City Council,30/04/2021,Children and Families,Social Care,Appropriations,Leaving Care Allowances,634,17/03/2021,2104-00657,0.00,15.05,R,Airpay,Yes
Http://opendatacommunities.org/id/metropolitan-district-council/leeds,Leeds City Council,30/04/2021,Children and Families,Social Care,Appropriations,Leaving Care Allowances,634,18/03/2021,2104-00658,0.00,15.05,R,Airpay,Yes
Http://opendatacommunities.org/id/metropolitan-district-council/leeds,Leeds City Council,30/04/2021,Children and Families,Social Care,Appropriations,Leaving Care Allowances,634,18/03/2021,2104-00659,0.00,10.95,R,Airpay,Yes
Http://opendatacommunities.org/id/metropolitan-district-council/leeds,Leeds City Council,30/04/2021,Children and Families,Social Care,Agency Payments,Placement Support,550,19/03/2021,2104-00660,0.00,4.25,R,Airpay,Yes
Http://opendatacommunities.org/id/metropolitan-district-council/leeds,Leeds City Council,30/04/2021,Children and Families,Social Care,Appropriations,Leaving Care Allowances,634,19/03/2021,2104-00661,0.00,9.55,R,Airpay,Yes
Http://opendatacommunities.org/id/metropolitan-district-council/leeds,Leeds City Council,30/04/2021,Children and Families,Social Care,Appropriations,Leaving Care Allowances,634,19/03/2021,2104-00662,0.00,15.45,R,Airpay,Yes
Http://opendatacommunities.org/id/metropolitan-district-council/leeds,Leeds City Council,30/04/2021,Children and Families,Social Care,Agency Payments,Placement Support,550,26/03/2021,2104-00663,0.00,4.25,R,Airpay,Yes
Http://opendatacommunities.org/id/metropolitan-district-council/leeds,Leeds City Council,30/04/2021,Children and Families,Social Care,Agency Payments,Contact,548,30/03/2021,2104-00664,0.00,8.65,R,Airpay,Yes
Http://opendatacommunities.org/id/metropolitan-district-council/leeds,Leeds City Council,30/04/2021,Children and Families,Social Care,Agency Payments,Contact,548,30/03/2021,2104-00665,0.00,7.95,R,Airpay,Yes
Http://opendatacommunities.org/id/metropolitan-district-council/leeds,Leeds City Council,30/04/2021,Adults and Health,Services For Adults Under 65 Mental/Dis,Agency Payments,Fees - Level 4,520,06/04/2021,2104-00666,0.00,175.00,R,AIT Mitra Limited,No
Http://opendatacommunities.org/id/metropolitan-district-council/leeds,Leeds City Council,30/04/2021,Adults and Health,Services For Adults Under 65 Mental/Dis,Agency Payments,Fees - Level 4,520,06/04/2021,2104-00667,0.00,175.00,R,AIT Mitra Limited,No
Http://opendatacommunities.org/id/metropolitan-district-council/leeds,Leeds City Council,30/04/2021,Adults and Health,Services For Adults Under 65 Mental/Dis,Agency Payments,Fees - Level 4,520,09/04/2021,2104-00668,0.00,175.00,R,AIT Mitra Limited,No
Http://opendatacommunities.org/id/metropolitan-district-council/leeds,Leeds City Council,30/04/2021,Adults and Health,Services For Adults Under 65 Mental/Dis,Agency Payments,Fees - Level 4,520,14/04/2021,2104-00669,0.00,175.00,R,AIT Mitra Limited,No
Http://opendatacommunities.org/id/metropolitan-district-council/leeds,Leeds City Council,30/04/2021,Adults and Health,Services For Adults Under 65 Mental/Dis,Agency Payments,Fees - Level 4,520,16/04/2021,2104-00670,0.00,175.00,R,AIT Mitra Limited,No
Http://opendatacommunities.org/id/metropolitan-district-council/leeds,Leeds City Council,30/04/2021,Adults and Health,Services For Adults Under 65 Mental/Dis,Agency Payments,Fees - Level 4,520,16/04/2021,2104-00671,0.00,175.00,R,AIT Mitra Limited,No
Http://opendatacommunities.org/id/metropolitan-district-council/leeds,Leeds City Council,30/04/2021,Adults and Health,Services For Adults Under 65 Mental/Dis,Agency Payments,Fees - Level 4,520,16/04/2021,2104-00672,0.00,175.00,R,AIT Mitra Limited,No
Http://opendatacommunities.org/id/metropolitan-district-council/leeds,Leeds City Council,30/04/2021,Adults and Health,Services For Adults Under 65 Mental/Dis,Agency Payments,Fees - Level 4,520,21/04/2021,2104-00673,0.00,175.00,R,AIT Mitra Limited,No
Http://opendatacommunities.org/id/metropolitan-district-council/leeds,Leeds City Council,30/04/2021,Adults and Health,Services For Adults Under 65 Mental/Dis,Agency Payments,Fees - Level 4,520,21/04/2021,2104-00674,0.00,350.00,R,AIT Mitra Limited,No
Http://opendatacommunities.org/id/metropolitan-district-council/leeds,Leeds City Council,30/04/2021,Adults and Health,Services For Adults Under 65 Mental/Dis,Agency Payments,Fees - Level 4,520,21/04/2021,2104-00675,0.00,175.00,R,AIT Mitra Limited,No
Http://opendatacommunities.org/id/metropolitan-district-council/leeds,Leeds City Council,30/04/2021,Adults and Health,Services For Adults Under 65 Mental/Dis,Agency Payments,Fees - Level 4,520,21/04/2021,2104-00676,0.00,175.00,R,AIT Mitra Limited,No
Http://opendatacommunities.org/id/metropolitan-district-council/leeds,Leeds City Council,30/04/2021,Adults and Health,Services For Adults Under 65 Mental/Dis,Agency Payments,Fees - Level 4,520,21/04/2021,2104-00677,0.00,175.00,R,AIT Mitra Limited,No
Http://opendatacommunities.org/id/metropolitan-district-council/leeds,Leeds City Council,30/04/2021,Adults and Health,Services For Adults Under 65 Mental/Dis,Agency Payments,Fees - Level 4,520,21/04/2021,2104-00678,0.00,175.00,R,AIT Mitra Limited,No
Http://opendatacommunities.org/id/metropolitan-district-council/leeds,Leeds City Council,30/04/2021,Adults and Health,Services For Adults Under 65 Mental/Dis,Agency Payments,Fees - Level 4,520,28/04/2021,2104-00679,0.00,175.00,R,AIT Mitra Limited,No
Http://opendatacommunities.org/id/metropolitan-district-council/leeds,Leeds City Council as Accountable Body,30/04/2021,Social Services Pooled Budgets,Jcs For People With Learning Disabilitie,Agency Payments,Residential,580,28/04/2021,2104-00680,0.00,6709.72,R,AITCH care homes,No
Http://opendatacommunities.org/id/metropolitan-district-council/leeds,Leeds City Council,30/04/2021,Communities and Environment,Parks and Countryside,Supplies and Services,Operational Materials,205,15/04/2021,2104-00681,0.00,47.80,R,Aitkens Sportsturf Ltd,No
Http://opendatacommunities.org/id/metropolitan-district-council/leeds,Leeds City Council,30/04/2021,City Development,Recreation,Premises,Horticulture Non Contract Work,115,29/04/2021,2104-00682,0.00,489.00,R,Aitkens Sportsturf Ltd,No
Http://opendatacommunities.org/id/metropolitan-district-council/leeds,Leeds City Council,30/04/2021,Resources and Housing,Leeds Building Services,Supplies and Services,Operational Furniture And Equipment,203,08/04/2021,2104-00683,0.00,585.00,R,AJM FIXINGS & POWER TOOLS LTD,No
Http://opendatacommunities.org/id/metropolitan-district-council/leeds,Leeds City Council,30/04/2021,Resources and Housing,Leeds Building Services,Supplies and Services,Operational Furniture And Equipment,203,09/04/2021,2104-00684,0.00,150.00,R,AJM FIXINGS & POWER TOOLS LTD,No
Http://opendatacommunities.org/id/metropolitan-district-council/leeds,Leeds City Council,30/04/2021,Resources and Housing,Leeds Building Services,Supplies and Services,Operational Furniture And Equipment,203,09/04/2021,2104-00685,0.00,299.80,R,AJM FIXINGS & POWER TOOLS LTD,No
Http://opendatacommunities.org/id/metropolitan-district-council/leeds,Leeds City Council,30/04/2021,Resources and Housing,Leeds Building Services,Supplies and Services,Operational Furniture And Equipment,203,09/04/2021,2104-00686,0.00,296.40,R,AJM FIXINGS & POWER TOOLS LTD,No
Http://opendatacommunities.org/id/metropolitan-district-council/leeds,Leeds City Council,30/04/2021,Resources and Housing,Leeds Building Services,Supplies and Services,Operational Furniture And Equipment,203,09/04/2021,2104-00687,0.00,5.00,R,AJM FIXINGS & POWER TOOLS LTD,No
Http://opendatacommunities.org/id/metropolitan-district-council/leeds,Leeds City Council,30/04/2021,Resources and Housing,Leeds Building Services,Supplies and Services,STORES - CENTRAL AND OTHER DEPOTS,005,09/04/2021,2104-00688,0.00,237.50,R,AJM FIXINGS & POWER TOOLS LTD,No
Http://opendatacommunities.org/id/metropolitan-district-council/leeds,Leeds City Council,30/04/2021,Resources and Housing,Leeds Building Services,Supplies and Services,STORES - CENTRAL AND OTHER DEPOTS,005,09/04/2021,2104-00689,0.00,460.20,R,AJM FIXINGS & POWER TOOLS LTD,No
Http://opendatacommunities.org/id/metropolitan-district-council/leeds,Leeds City Council,30/04/2021,Resources and Housing,Leeds Building Services,Supplies and Services,STORES - CENTRAL AND OTHER DEPOTS,005,09/04/2021,2104-00690,0.00,204.00,R,AJM FIXINGS & POWER TOOLS LTD,No
Http://opendatacommunities.org/id/metropolitan-district-council/leeds,Leeds City Council,30/04/2021,Resources and Housing,Leeds Building Services,Supplies and Services,Operational Furniture And Equipment,203,20/04/2021,2104-00691,0.00,165.83,R,AJM FIXINGS & POWER TOOLS LTD,No
Http://opendatacommunities.org/id/metropolitan-district-council/leeds,Leeds City Council,30/04/2021,Resources and Housing,Leeds Building Services,Supplies and Services,Operational Furniture And Equipment,203,20/04/2021,2104-00692,0.00,45.00,R,AJM FIXINGS & POWER TOOLS LTD,No
Http://opendatacommunities.org/id/metropolitan-district-council/leeds,Leeds City Council,30/04/2021,Resources and Housing,Leeds Building Services,Supplies and Services,STORES - CENTRAL AND OTHER DEPOTS,005,20/04/2021,2104-00693,0.00,460.20,R,AJM FIXINGS & POWER TOOLS LTD,No
Http://opendatacommunities.org/id/metropolitan-district-council/leeds,Leeds City Council,30/04/2021,Resources and Housing,Leeds Building Services,Supplies and Services,Operational Furniture And Equipment,203,23/04/2021,2104-00694,0.00,580.00,R,AJM FIXINGS & POWER TOOLS LTD,No
Http://opendatacommunities.org/id/metropolitan-district-council/leeds,Leeds City Council,30/04/2021,Resources and Housing,Leeds Building Services,Supplies and Services,Operational Furniture And Equipment,203,23/04/2021,2104-00695,0.00,542.00,R,AJM FIXINGS & POWER TOOLS LTD,No
Http://opendatacommunities.org/id/metropolitan-district-council/leeds,Leeds City Council,30/04/2021,Resources and Housing,Leeds Building Services,Supplies and Services,Operational Furniture And Equipment,203,23/04/2021,2104-00696,0.00,69.50,R,AJM FIXINGS & POWER TOOLS LTD,No
Http://opendatacommunities.org/id/metropolitan-district-council/leeds,Leeds City Council,30/04/2021,Resources and Housing,Leeds Building Services,Supplies and Services,Operational Furniture And Equipment,203,23/04/2021,2104-00697,0.00,260.01,R,AJM FIXINGS & POWER TOOLS LTD,No
Http://opendatacommunities.org/id/metropolitan-district-council/leeds,Leeds City Council,30/04/2021,Resources and Housing,Leeds Building Services,Supplies and Services,Operational Furniture And Equipment,203,23/04/2021,2104-00698,0.00,345.00,R,AJM FIXINGS & POWER TOOLS LTD,No
Http://opendatacommunities.org/id/metropolitan-district-council/leeds,Leeds City Council,30/04/2021,Resources and Housing,Leeds Building Services,Supplies and Services,Operational Furniture And Equipment,203,23/04/2021,2104-00699,0.00,165.83,R,AJM FIXINGS & POWER TOOLS LTD,No
Http://opendatacommunities.org/id/metropolitan-district-council/leeds,Leeds City Council,30/04/2021,Children and Families,Social Care,Supplies and Services,General Amenity For Clients/Residents,285,09/04/2021,2104-00700,0.00,200.00,R,REDACTED PERSONAL DATA,No
Http://opendatacommunities.org/id/metropolitan-district-council/leeds,Leeds City Council,30/04/2021,Resources and Housing,Strategic Housing Partnerships,Capital ,CONSTRUCTION,3,15/04/2021,2104-00701,0.00,7500.00,C,AKR Construction Ltd,No
Http://opendatacommunities.org/id/metropolitan-district-council/leeds,Leeds City Council,30/04/2021,Adults and Health,Services For Older People - 65 And Over,Agency Payments,Payments To Voluntary Organisations,561,01/04/2021,2104-00702,0.00,3000.00,R,Al Khidmat Centre,No
Http://opendatacommunities.org/id/metropolitan-district-council/leeds,Leeds City Council,30/04/2021,Resources and Housing,Democratic Services,Premises,Grounds Maintenance Work,111,19/03/2021,2104-00703,0.00,30.00,R,Alan Brown Flowers,Yes
Http://opendatacommunities.org/id/metropolitan-district-council/leeds,Leeds City Council,30/04/2021,City Development,Recreation,External Income,Sporting & Other Recreational Fees,928,08/04/2021,2104-00704,0.00,237.20,R,REDACTED PERSONAL DATA,No
Http://opendatacommunities.org/id/metropolitan-district-council/leeds,Leeds City Council,30/04/2021,City Development,Libraries Arts & Heritage,Supplies and Services,Other Hired And Contracted Services,265,01/04/2021,2104-00705,0.00,350.00,R,ALAN HORSEY,No
Http://opendatacommunities.org/id/metropolitan-district-council/leeds,Leeds City Council,30/04/2021,Communities and Environment,Benefits Welfare and Poverty,Supplies and Services,Grant Related Expenditure,290,08/04/2021,2104-00706,0.00,15.00,R,REDACTED PERSONAL DATA,No
Http://opendatacommunities.org/id/metropolitan-district-council/leeds,Leeds City Council,30/04/2021,City Development,Economic Development,Supplies and Services,Grant Related Expenditure,290,28/04/2021,2104-00707,0.00,500.00,R,Alan Woollin,No
Http://opendatacommunities.org/id/metropolitan-district-council/leeds,Leeds City Council,30/04/2021,Children and Families,Social Care,Agency Payments,Services Rendered By Other Organisations,511,01/04/2021,2104-00708,0.00,347.88,R,REDACTED PERSONAL DATA,No
Http://opendatacommunities.org/id/metropolitan-district-council/leeds,Leeds City Council,30/04/2021,Resources and Housing,Strategy and Improvement,Supplies and Services,Memberships,226,12/04/2021,2104-00709,0.00,123.00,R,ALARM,No
Http://opendatacommunities.org/id/metropolitan-district-council/leeds,Leeds City Council,30/04/2021,Communities and Environment,Parks and Countryside,Supplies and Services,Operational Materials,205,19/03/2021,2104-00710,0.00,41666.67,R,Alba Trees Plc,Yes
Http://opendatacommunities.org/id/metropolitan-district-council/leeds,Leeds City Council,30/04/2021,Communities and Environment,Parks and Countryside,Supplies and Services,Operational Materials,205,02/03/2021,2104-00711,0.00,13.00,R,Albion Electric Stores Lt,Yes
Http://opendatacommunities.org/id/metropolitan-district-council/leeds,Leeds City Council,30/04/2021,Communities and Environment,Communities,Supplies and Services,Computer Software & Equipment,214,21/04/2021,2104-00712,0.00,1228.33,R,Alcium Software Ltd,No
Http://opendatacommunities.org/id/metropolitan-district-council/leeds,Leeds City Council,30/04/2021,Resources and Housing,Leeds Building Services,Supplies and Services,Memberships,226,28/04/2021,2104-00713,0.00,10000.00,R,Alcumus Sypol Limited,No
Http://opendatacommunities.org/id/metropolitan-district-council/leeds,Leeds City Council,30/04/2021,Children and Families,Social Care,Appropriations,Leaving Care Allowances,634,19/03/2021,2104-00714,0.00,3.32,R,Aldi,Yes
Http://opendatacommunities.org/id/metropolitan-district-council/leeds,Leeds City Council,30/04/2021,Children and Families,Social Care,Supplies and Services,Food & Drink,231,15/03/2021,2104-00715,0.00,52.29,R,Aldi 40 779,Yes
Http://opendatacommunities.org/id/metropolitan-district-council/leeds,Leeds City Council,30/04/2021,Children and Families,Social Care,Supplies and Services,Operational Materials,205,28/02/2021,2104-00716,0.00,11.35,R,Aldi 49 779,Yes
Http://opendatacommunities.org/id/metropolitan-district-council/leeds,Leeds City Council,30/04/2021,Communities and Environment,Parks and Countryside,Supplies and Services,Food & Drink,231,08/03/2021,2104-00717,0.00,1.54,R,Aldi 63779,Yes
Http://opendatacommunities.org/id/metropolitan-district-council/leeds,Leeds City Council,30/04/2021,Resources and Housing,Strategic Housing Partnership & Support,Supplies and Services,Other Hired And Contracted Services,265,08/03/2021,2104-00718,0.00,15.45,R,Aldi 71 779,Yes
Http://opendatacommunities.org/id/metropolitan-district-council/leeds,Leeds City Council,30/04/2021,Children and Families,Social Care,Supplies and Services,Food & Drink,231,02/03/2021,2104-00719,0.00,12.97,R,Aldi 779-126,Yes
Http://opendatacommunities.org/id/metropolitan-district-council/leeds,Leeds City Council,30/04/2021,Children and Families,Social Care,Supplies and Services,Food & Drink,231,04/03/2021,2104-00720,0.00,10.40,R,Aldi 779-126,Yes
Http://opendatacommunities.org/id/metropolitan-district-council/leeds,Leeds City Council,30/04/2021,Children and Families,Social Care,Supplies and Services,Food & Drink,231,09/03/2021,2104-00721,0.00,15.59,R,Aldi 779-126,Yes
Http://opendatacommunities.org/id/metropolitan-district-council/leeds,Leeds City Council,30/04/2021,Children and Families,Social Care,Supplies and Services,Food & Drink,231,16/03/2021,2104-00722,0.00,14.73,R,Aldi 779-126,Yes
Http://opendatacommunities.org/id/metropolitan-district-council/leeds,Leeds City Council,30/04/2021,Children and Families,Social Care,Supplies and Services,Food & Drink,231,18/03/2021,2104-00723,0.00,11.40,R,Aldi 779-126,Yes
Http://opendatacommunities.org/id/metropolitan-district-council/leeds,Leeds City Council,30/04/2021,Children and Families,Social Care,Premises,Cleaning Maintenance & Toiletries,127,10/03/2021,2104-00724,0.00,3.32,R,Aldi 8 779,Yes
Http://opendatacommunities.org/id/metropolitan-district-council/leeds,Leeds City Council,30/04/2021,Children and Families,Social Care,Supplies and Services,Food & Drink,231,27/02/2021,2104-00725,0.00,50.86,R,Aldi 85 779,Yes
Http://opendatacommunities.org/id/metropolitan-district-council/leeds,Leeds City Council,30/04/2021,Children and Families,Social Care,Supplies and Services,Food & Drink,231,05/03/2021,2104-00726,0.00,5.30,R,Aldi 85 779,Yes
Http://opendatacommunities.org/id/metropolitan-district-council/leeds,Leeds City Council,30/04/2021,Children and Families,Social Care,Supplies and Services,Food & Drink,231,26/03/2021,2104-00727,0.00,45.11,R,Aldi 85 779,Yes
Http://opendatacommunities.org/id/metropolitan-district-council/leeds,Leeds City Council,30/04/2021,Children and Families,Social Care,Supplies and Services,Holidays-  Service Users,284,13/03/2021,2104-00728,0.00,25.07,R,Aldi 88 779,Yes
Http://opendatacommunities.org/id/metropolitan-district-council/leeds,Leeds City Council,30/04/2021,Children and Families,Social Care,Agency Payments,Contact,548,06/04/2021,2104-00729,0.00,9.40,R,REDACTED PERSONAL DATA,No
Http://opendatacommunities.org/id/metropolitan-district-council/leeds,Leeds City Council,30/04/2021,Children and Families,Social Care,Agency Payments,Contact,548,13/04/2021,2104-00730,0.00,9.40,R,REDACTED PERSONAL DATA,No
Http://opendatacommunities.org/id/metropolitan-district-council/leeds,Leeds City Council,30/04/2021,Children and Families,Social Care,Agency Payments,Contact,548,20/04/2021,2104-00731,0.00,9.40,R,REDACTED PERSONAL DATA,No
Http://opendatacommunities.org/id/metropolitan-district-council/leeds,Leeds City Council,30/04/2021,Children and Families,Social Care,Agency Payments,Contact,548,27/04/2021,2104-00732,0.00,9.40,R,REDACTED PERSONAL DATA,No
Http://opendatacommunities.org/id/metropolitan-district-council/leeds,Leeds City Council,30/04/2021,City Development,Economic Development,Supplies and Services,Grant Related Expenditure,290,21/04/2021,2104-00733,0.00,500.00,R,Alejandro Ruiz Del Valle,No
Http://opendatacommunities.org/id/metropolitan-district-council/leeds,Leeds City Council,30/04/2021,Communities and Environment,Benefits Welfare and Poverty,Supplies and Services,Grant Related Expenditure,298,30/04/2021,2104-00734,0.00,500.00,R,REDACTED PERSONAL DATA,No
Http://opendatacommunities.org/id/metropolitan-district-council/leeds,Leeds City Council,30/04/2021,Communities and Environment,Customer Access,Supplies and Services,Bought In Professional Services,277,09/04/2021,2104-00735,0.00,33.00,R,Alena Zueva,No
Http://opendatacommunities.org/id/metropolitan-district-council/leeds,Leeds City Council,30/04/2021,Communities and Environment,Customer Access,Supplies and Services,Bought In Professional Services,277,21/04/2021,2104-00736,0.00,9.00,R,Alena Zueva,No
Http://opendatacommunities.org/id/metropolitan-district-council/leeds,Leeds City Council,30/04/2021,Communities and Environment,Customer Access,Supplies and Services,Bought In Professional Services,277,28/04/2021,2104-00737,0.00,18.00,R,Alena Zueva,No
Http://opendatacommunities.org/id/metropolitan-district-council/leeds,Leeds City Council,30/04/2021,Communities and Environment,Customer Access,Supplies and Services,Bought In Professional Services,277,28/04/2021,2104-00738,0.00,43.50,R,Alena Zueva,No
Http://opendatacommunities.org/id/metropolitan-district-council/leeds,Leeds City Council,30/04/2021,Children and Families,Learning,Supplies and Services,Bought In Professional Services,277,01/04/2021,2104-00739,0.00,750.00,R,Alex Quigley Consultancy Limited,No
Http://opendatacommunities.org/id/metropolitan-district-council/leeds,Leeds City Council,30/04/2021,Children and Families,Social Care,Internal Recharges,Legal Disbursements,411,08/04/2021,2104-00740,0.00,1561.00,R,Alex Taylor,No
Http://opendatacommunities.org/id/metropolitan-district-council/leeds,Leeds City Council,30/04/2021,Resources and Housing,Commercial Services,Supplies and Services,Other Hired And Contracted Services,265,01/04/2021,2104-00741,0.00,100.00,R,ALEX WAGG,No
Http://opendatacommunities.org/id/metropolitan-district-council/leeds,Leeds City Council,30/04/2021,Resources and Housing,Commercial Services,Supplies and Services,Other Hired And Contracted Services,265,01/04/2021,2104-00742,0.00,160.00,R,ALEX WAGG,No
Http://opendatacommunities.org/id/metropolitan-district-council/leeds,Leeds City Council,30/04/2021,Resources and Housing,Commercial Services,Transport,Vehicle Spares,345,01/04/2021,2104-00743,0.00,86.61,R,ALEX WAGG,No
Http://opendatacommunities.org/id/metropolitan-district-council/leeds,Leeds City Council,30/04/2021,Resources and Housing,Commercial Services,Supplies and Services,Other Hired And Contracted Services,265,09/04/2021,2104-00744,0.00,70.00,R,ALEX WAGG,No
Http://opendatacommunities.org/id/metropolitan-district-council/leeds,Leeds City Council,30/04/2021,Resources and Housing,Commercial Services,Supplies and Services,Other Hired And Contracted Services,265,09/04/2021,2104-00745,0.00,80.00,R,ALEX WAGG,No
Http://opendatacommunities.org/id/metropolitan-district-council/leeds,Leeds City Council,30/04/2021,Resources and Housing,Commercial Services,Supplies and Services,Other Hired And Contracted Services,265,09/04/2021,2104-00746,0.00,80.00,R,ALEX WAGG,No
Http://opendatacommunities.org/id/metropolitan-district-council/leeds,Leeds City Council,30/04/2021,Resources and Housing,Commercial Services,Supplies and Services,Other Hired And Contracted Services,265,09/04/2021,2104-00747,0.00,277.00,R,ALEX WAGG,No
Http://opendatacommunities.org/id/metropolitan-district-council/leeds,Leeds City Council,30/04/2021,Resources and Housing,Commercial Services,Supplies and Services,Other Hired And Contracted Services,265,09/04/2021,2104-00748,0.00,120.00,R,ALEX WAGG,No
Http://opendatacommunities.org/id/metropolitan-district-council/leeds,Leeds City Council,30/04/2021,Resources and Housing,Commercial Services,Supplies and Services,Other Hired And Contracted Services,265,09/04/2021,2104-00749,0.00,120.00,R,ALEX WAGG,No
Http://opendatacommunities.org/id/metropolitan-district-council/leeds,Leeds City Council,30/04/2021,Resources and Housing,Commercial Services,Supplies and Services,Other Hired And Contracted Services,265,09/04/2021,2104-00750,0.00,40.00,R,ALEX WAGG,No
Http://opendatacommunities.org/id/metropolitan-district-council/leeds,Leeds City Council,30/04/2021,Resources and Housing,Commercial Services,Supplies and Services,Other Hired And Contracted Services,265,09/04/2021,2104-00751,0.00,40.00,R,ALEX WAGG,No
Http://opendatacommunities.org/id/metropolitan-district-council/leeds,Leeds City Council,30/04/2021,Resources and Housing,Commercial Services,Supplies and Services,Other Hired And Contracted Services,265,09/04/2021,2104-00752,0.00,80.00,R,ALEX WAGG,No
Http://opendatacommunities.org/id/metropolitan-district-council/leeds,Leeds City Council,30/04/2021,Resources and Housing,Commercial Services,Supplies and Services,Other Hired And Contracted Services,265,14/04/2021,2104-00753,0.00,70.00,R,ALEX WAGG,No
Http://opendatacommunities.org/id/metropolitan-district-council/leeds,Leeds City Council,30/04/2021,Resources and Housing,Commercial Services,Supplies and Services,Other Hired And Contracted Services,265,14/04/2021,2104-00754,0.00,70.00,R,ALEX WAGG,No
Http://opendatacommunities.org/id/metropolitan-district-council/leeds,Leeds City Council,30/04/2021,Resources and Housing,Commercial Services,Supplies and Services,Other Hired And Contracted Services,265,14/04/2021,2104-00755,0.00,70.00,R,ALEX WAGG,No
Http://opendatacommunities.org/id/metropolitan-district-council/leeds,Leeds City Council,30/04/2021,Resources and Housing,Commercial Services,Supplies and Services,Other Hired And Contracted Services,265,14/04/2021,2104-00756,0.00,70.00,R,ALEX WAGG,No
Http://opendatacommunities.org/id/metropolitan-district-council/leeds,Leeds City Council,30/04/2021,Resources and Housing,Commercial Services,Supplies and Services,Other Hired And Contracted Services,265,22/04/2021,2104-00757,0.00,257.00,R,ALEX WAGG,No
Http://opendatacommunities.org/id/metropolitan-district-council/leeds,Leeds City Council,30/04/2021,Resources and Housing,Commercial Services,Supplies and Services,Other Hired And Contracted Services,265,22/04/2021,2104-00758,0.00,100.00,R,ALEX WAGG,No
Http://opendatacommunities.org/id/metropolitan-district-council/leeds,Leeds City Council,30/04/2021,Resources and Housing,Commercial Services,Supplies and Services,Other Hired And Contracted Services,265,23/04/2021,2104-00759,0.00,360.00,R,ALEX WAGG,No
Http://opendatacommunities.org/id/metropolitan-district-council/leeds,Leeds City Council,30/04/2021,Resources and Housing,Commercial Services,Supplies and Services,Other Hired And Contracted Services,265,23/04/2021,2104-00760,0.00,95.45,R,ALEX WAGG,No
Http://opendatacommunities.org/id/metropolitan-district-council/leeds,Leeds City Council,30/04/2021,Resources and Housing,Commercial Services,Supplies and Services,Other Hired And Contracted Services,265,23/04/2021,2104-00761,0.00,140.00,R,ALEX WAGG,No
Http://opendatacommunities.org/id/metropolitan-district-council/leeds,Leeds City Council,30/04/2021,Resources and Housing,Commercial Services,Supplies and Services,Other Hired And Contracted Services,265,23/04/2021,2104-00762,0.00,180.00,R,ALEX WAGG,No
Http://opendatacommunities.org/id/metropolitan-district-council/leeds,Leeds City Council,30/04/2021,Resources and Housing,Commercial Services,Supplies and Services,Other Hired And Contracted Services,265,23/04/2021,2104-00763,0.00,270.00,R,ALEX WAGG,No
Http://opendatacommunities.org/id/metropolitan-district-council/leeds,Leeds City Council,30/04/2021,Resources and Housing,Commercial Services,Supplies and Services,Other Hired And Contracted Services,265,23/04/2021,2104-00764,0.00,556.44,R,ALEX WAGG,No
Http://opendatacommunities.org/id/metropolitan-district-council/leeds,Leeds City Council,30/04/2021,Resources and Housing,Commercial Services,Supplies and Services,Other Hired And Contracted Services,265,23/04/2021,2104-00765,0.00,320.00,R,ALEX WAGG,No
Http://opendatacommunities.org/id/metropolitan-district-council/leeds,Leeds City Council,30/04/2021,Resources and Housing,Commercial Services,Supplies and Services,Other Hired And Contracted Services,265,23/04/2021,2104-00766,0.00,100.00,R,ALEX WAGG,No
Http://opendatacommunities.org/id/metropolitan-district-council/leeds,Leeds City Council,30/04/2021,Resources and Housing,Commercial Services,Supplies and Services,Other Hired And Contracted Services,265,23/04/2021,2104-00767,0.00,120.00,R,ALEX WAGG,No
Http://opendatacommunities.org/id/metropolitan-district-council/leeds,Leeds City Council,30/04/2021,Resources and Housing,Commercial Services,Supplies and Services,Other Hired And Contracted Services,265,23/04/2021,2104-00768,0.00,120.00,R,ALEX WAGG,No
Http://opendatacommunities.org/id/metropolitan-district-council/leeds,Leeds City Council,30/04/2021,Resources and Housing,Commercial Services,Supplies and Services,Other Hired And Contracted Services,265,23/04/2021,2104-00769,0.00,64.85,R,ALEX WAGG,No
Http://opendatacommunities.org/id/metropolitan-district-council/leeds,Leeds City Council,30/04/2021,Resources and Housing,Commercial Services,Supplies and Services,Other Hired And Contracted Services,265,23/04/2021,2104-00770,0.00,310.90,R,ALEX WAGG,No
Http://opendatacommunities.org/id/metropolitan-district-council/leeds,Leeds City Council,30/04/2021,Resources and Housing,Commercial Services,Supplies and Services,Other Hired And Contracted Services,265,23/04/2021,2104-00771,0.00,175.45,R,ALEX WAGG,No
Http://opendatacommunities.org/id/metropolitan-district-council/leeds,Leeds City Council,30/04/2021,Resources and Housing,Commercial Services,Supplies and Services,Other Hired And Contracted Services,265,23/04/2021,2104-00772,0.00,80.00,R,ALEX WAGG,No
Http://opendatacommunities.org/id/metropolitan-district-council/leeds,Leeds City Council,30/04/2021,Resources and Housing,Commercial Services,Supplies and Services,Other Hired And Contracted Services,265,23/04/2021,2104-00773,0.00,40.00,R,ALEX WAGG,No
Http://opendatacommunities.org/id/metropolitan-district-council/leeds,Leeds City Council,30/04/2021,Resources and Housing,Commercial Services,Supplies and Services,Other Hired And Contracted Services,265,28/04/2021,2104-00774,0.00,60.00,R,ALEX WAGG,No
Http://opendatacommunities.org/id/metropolitan-district-council/leeds,Leeds City Council,30/04/2021,Adults and Health,Other Adult Services,Agency Payments,Payments To Voluntary Organisations,561,08/04/2021,2104-00775,0.00,10045.00,R,ALEXANDER RESIDENTIAL HOME,No
Http://opendatacommunities.org/id/metropolitan-district-council/leeds,Leeds City Council,30/04/2021,Adults and Health,Services For Older People - 65 And Over,Agency Payments,Residential Care Dementia,571,28/04/2021,2104-00776,0.00,22037.52,R,ALEXANDER RESIDENTIAL HOME,No
